Workbook

Sheet Calculation
B3: Price | C3: =Monte_Carlo!F8 -> 13.58915053
B4: Production | C4: =Monte_Carlo!F9 -> 100.5450351
B5: M&O cost | C5: 5
B6: Investment | C6: =Monte_Carlo!F7 -> 777.0282209
B7: Tax | C7: 0.2
B8: Discount rate | C8: 0.1
B11: Period | C11: 0 | D11: 1 | E11: 2 | F11: 3 | G11: 4 | H11: 5
B12: Investment | C12: =-C6 -> -777.0282209
B13: Revenue | D13: =$C$3*$C$4 -> 1366.321617 | E13: =$C$3*$C$4 -> 1366.321617 | F13: =$C$3*$C$4 -> 1366.321617 | G13: =$C$3*$C$4 -> 1366.321617 | H13: =$C$3*$C$4 -> 1366.321617
B14: =B5 -> M&O cost | D14: =-$C$4*$C$5 -> -502.7251757 | E14: =-$C$4*$C$5 -> -502.7251757 | F14: =-$C$4*$C$5 -> -502.7251757 | G14: =-$C$4*$C$5 -> -502.7251757 | H14: =-$C$4*$C$5 -> -502.7251757
B15: Tax | D15: =-(D13+D14)*$C$7 -> -172.7192883 | E15: =-(E13+E14)*$C$7 -> -172.7192883 | F15: =-(F13+F14)*$C$7 -> -172.7192883 | G15: =-(G13+G14)*$C$7 -> -172.7192883 | H15: =-(H13+H14)*$C$7 -> -172.7192883
B16: DCF | C16: =SUM(C12:C15)/(1+$C$8)^C11 -> -777.0282209 | D16: =SUM(D12:D15)/(1+$C$8)^D11 -> 628.0701393 | E16: =SUM(E12:E15)/(1+$C$8)^E11 -> 570.9728539 | F16: =SUM(F12:F15)/(1+$C$8)^F11 -> 519.0662308 | G16: 471.8783917 | H16: =SUM(H12:H15)/(1+$C$8)^H11 -> 428.9803561
B17: DCF cum | C17: =SUM($C$16:C16) -> -777.0282209 | D17: =SUM($C$16:D16) -> -148.9580816 | E17: =SUM($C$16:E16) -> 422.0147724 | F17: =SUM($C$16:F16) -> 941.0810032 | G17: =SUM($C$16:G16) -> 1412.959395 | H17: =SUM($C$16:H16) -> 1841.939751

Sheet Monte_Carlo
B2: MONTE CARLO SIMULATION | H2: DECOMPOSITION | P2: RESULTS
P4: Min | Q4: =MIN(MCdata) -> 99.68550064 | S4: ="Probability of negative "&C15 -> Probability of negative NPV | T4: =COUNTIF(MCdata,"<0")/runs -> 0
B5: Uncertain variables | H5: States/subranges | P5: Expected mean | Q5: =AVERAGE(MCdata) -> 1855.273481 | S5: ="Probability of positive "&C15 -> Probability of positive NPV | T5: =COUNTIF(MCdata,">=0")/runs -> 1
B6: Variable | D6: min | E6: max | F6: random value | H6: Variable | I6: # of states | J6: Labels | P6: Max | Q6: =MAX(MCdata) -> 3924.664587 | S6: Standard deviation | T6: =_xlfn.STDEV.P(MCdata) -> 712.7027744
B7: variables for decomposition | C7: Investment | D7: 500 | E7: 1500 | F7: =IF(E7="","",D7+(E7-D7)*RAND()) -> 777.0282209 | H7: =C7 -> Investment | I7: 2 | J7: tight | K7: loose
C8: Price | D8: 10 | E8: 15 | F8: =IF(E8="","",D8+(E8-D8)*RAND()) -> 13.58915053 | H8: =C8 -> Price | I8: 3 | J8: pessimistic | K8: realistic | L8: optimistic | U8: Legend
C9: Production | D9: 100 | E9: 150 | F9: 100.5450351 | H9: =C9 -> Production | U9: Color | V9: Scenario | W9: =H7 -> Investment | X9: =H8 -> Price | Y9: =H9 -> Production
B10: other uncertain variables | V10: sc1 | W10: tight | X10: pessimistic
H11: Thresholds | V11: sc2 | W11: tight | X11: realistic
H12: Variable | I12: # of thresholds | J12: Min | K12: Threshold 1 | L12: Threshold 2 | M12: Threshold 3 | N12: Max | V12: sc3 | W12: tight | X12: optimistic
H13: =H7 -> Investment | I13: =MAX(I7-1,0) -> 1 | J13: =D7 -> 500 | K13: 1000 | N13: =E7 -> 1500 | V13: sc4 | W13: loose | X13: pessimistic
H14: =H8 -> Price | I14: =MAX(I8-1,0) -> 2 | J14: =D8 -> 10 | K14: 12 | L14: 14 | N14: =E8 -> 15 | V14: sc5 | W14: loose | X14: realistic
B15: outcome | C15: NPV | D15: =Calculation!H17 -> 1841.939751 | H15: =H9 -> Production | I15: =MAX(I9-1,0) -> 0 | J15: =D9 -> 100 | N15: 150 | V15: sc6 | W15: loose | X15: optimistic
V16: sc7
B17: Monte Carlo simulation | V17: sc8
B18: Runs | D18: 10000 | V18: sc9
V19: sc10
K20: # of scenarios | L20: =PRODUCT(I7:I9) -> 6 | V20: sc11
V21: sc12
B22: To STOP press Esc or Ctrl + Break | V22: sc13
V23: sc14
B24: Probability distribution | H24: All in one | V24: sc15
B25: Horizontal axis limits | E25: min | F25: max | H25: Monte Carlo simulation, scenario decomposition, chart update with # of bins & colors | V25: sc16
B26: Axis limits | D26: automatic | E26: 0 | F26: 4000 | V26: sc17
V27: sc18
B28: Number of bins | D28: 40 | V28: sc19
V29: sc20
V30: sc21
V31: sc22
V32: sc23
V33: sc24
V34: sc25
V35: sc26
V36: sc27
V37: sc28
V38: sc29
V39: sc30
V40: sc31
V41: sc32
V42: sc33
V43: sc34
V44: sc35
V45: sc36
V46: sc37
V47: sc38
V48: sc39
V49: sc40
V50: sc41
V51: sc42
V52: sc43
V53: sc44
V54: sc45
V55: sc46
V56: sc47
V57: sc48
V58: sc49
V59: sc50
V60: sc51
V61: sc52
V62: sc53
V63: sc54
V64: sc55
V65: sc56
V66: sc57
V67: sc58
V68: sc59
V69: sc60
V70: sc61
V71: sc62
V72: sc63
V73: sc64

Sheet MC_hist
A1: # of bins | B1: =Monte_Carlo!D28 -> 40 | E1: intervals | F1: probability | K1: 1 | L1: =IFERROR(IF(K1+1>Monte_Carlo!$L$20,"",K1+1),"") -> 2 | M1: =IFERROR(IF(L1+1>Monte_Carlo!$L$20,"",L1+1),"") -> 3 | N1: =IFERROR(IF(M1+1>Monte_Carlo!$L$20,"",M1+1),"") -> 4 | O1: =IFERROR(IF(N1+1>Monte_Carlo!$L$20,"",N1+1),"") -> 5 | P1: =IFERROR(IF(O1+1>Monte_Carlo!$L$20,"",O1+1),"") -> 6 | Q1: =IFERROR(IF(P1+1>Monte_Carlo!$L$20,"",P1+1),"") ->  | R1: =IFERROR(IF(Q1+1>Monte_Carlo!$L$20,"",Q1+1),"") ->  | S1: =IFERROR(IF(R1+1>Monte_Carlo!$L$20,"",R1+1),"") ->  | T1: =IFERROR(IF(S1+1>Monte_Carlo!$L$20,"",S1+1),"") ->  | U1: =IFERROR(IF(T1+1>Monte_Carlo!$L$20,"",T1+1),"") ->  | V1: =IFERROR(IF(U1+1>Monte_Carlo!$L$20,"",U1+1),"") ->  | W1: =IFERROR(IF(V1+1>Monte_Carlo!$L$20,"",V1+1),"") ->  | X1: =IFERROR(IF(W1+1>Monte_Carlo!$L$20,"",W1+1),"") ->  | Y1: =IFERROR(IF(X1+1>Monte_Carlo!$L$20,"",X1+1),"") ->  | Z1: =IFERROR(IF(Y1+1>Monte_Carlo!$L$20,"",Y1+1),"") ->  | AA1: =IFERROR(IF(Z1+1>Monte_Carlo!$L$20,"",Z1+1),"") ->  | AB1: =IFERROR(IF(AA1+1>Monte_Carlo!$L$20,"",AA1+1),"") ->  | AC1: =IFERROR(IF(AB1+1>Monte_Carlo!$L$20,"",AB1+1),"") ->  | AD1: =IFERROR(IF(AC1+1>Monte_Carlo!$L$20,"",AC1+1),"") ->  | AE1: =IFERROR(IF(AD1+1>Monte_Carlo!$L$20,"",AD1+1),"") ->  | AF1: =IFERROR(IF(AE1+1>Monte_Carlo!$L$20,"",AE1+1),"") ->  | AG1: =IFERROR(IF(AF1+1>Monte_Carlo!$L$20,"",AF1+1),"") ->  | AH1: =IFERROR(IF(AG1+1>Monte_Carlo!$L$20,"",AG1+1),"") ->  | AI1: =IFERROR(IF(AH1+1>Monte_Carlo!$L$20,"",AH1+1),"") ->  | AJ1: =IFERROR(IF(AI1+1>Monte_Carlo!$L$20,"",AI1+1),"") ->  | AK1: =IFERROR(IF(AJ1+1>Monte_Carlo!$L$20,"",AJ1+1),"") ->  | AL1: =IFERROR(IF(AK1+1>Monte_Carlo!$L$20,"",AK1+1),"") ->  | AM1: =IFERROR(IF(AL1+1>Monte_Carlo!$L$20,"",AL1+1),"") ->  | AN1: =IFERROR(IF(AM1+1>Monte_Carlo!$L$20,"",AM1+1),"") ->  | AO1: =IFERROR(IF(AN1+1>Monte_Carlo!$L$20,"",AN1+1),"") ->  | AP1: =IFERROR(IF(AO1+1>Monte_Carlo!$L$20,"",AO1+1),"") ->  | AQ1: =IFERROR(IF(AP1+1>Monte_Carlo!$L$20,"",AP1+1),"") ->  | AR1: =IFERROR(IF(AQ1+1>Monte_Carlo!$L$20,"",AQ1+1),"") ->  | AS1: =IFERROR(IF(AR1+1>Monte_Carlo!$L$20,"",AR1+1),"") ->  | AT1: =IFERROR(IF(AS1+1>Monte_Carlo!$L$20,"",AS1+1),"") ->  | AU1: =IFERROR(IF(AT1+1>Monte_Carlo!$L$20,"",AT1+1),"") ->  | AV1: =IFERROR(IF(AU1+1>Monte_Carlo!$L$20,"",AU1+1),"") ->  | AW1: =IFERROR(IF(AV1+1>Monte_Carlo!$L$20,"",AV1+1),"") ->  | AX1: =IFERROR(IF(AW1+1>Monte_Carlo!$L$20,"",AW1+1),"") ->  | AY1: =IFERROR(IF(AX1+1>Monte_Carlo!$L$20,"",AX1+1),"") ->  | AZ1: =IFERROR(IF(AY1+1>Monte_Carlo!$L$20,"",AY1+1),"") ->  | BA1: =IFERROR(IF(AZ1+1>Monte_Carlo!$L$20,"",AZ1+1),"") ->  | BB1: =IFERROR(IF(BA1+1>Monte_Carlo!$L$20,"",BA1+1),"") ->  | BC1: =IFERROR(IF(BB1+1>Monte_Carlo!$L$20,"",BB1+1),"") ->  | BD1: =IFERROR(IF(BC1+1>Monte_Carlo!$L$20,"",BC1+1),"") ->  | BE1: =IFERROR(IF(BD1+1>Monte_Carlo!$L$20,"",BD1+1),"") ->  | BF1: =IFERROR(IF(BE1+1>Monte_Carlo!$L$20,"",BE1+1),"") ->  | BG1: =IFERROR(IF(BF1+1>Monte_Carlo!$L$20,"",BF1+1),"") ->  | BH1: =IFERROR(IF(BG1+1>Monte_Carlo!$L$20,"",BG1+1),"") ->  | BI1: =IFERROR(IF(BH1+1>Monte_Carlo!$L$20,"",BH1+1),"") ->  | BJ1: =IFERROR(IF(BI1+1>Monte_Carlo!$L$20,"",BI1+1),"") ->  | BK1: =IFERROR(IF(BJ1+1>Monte_Carlo!$L$20,"",BJ1+1),"") ->  | BL1: =IFERROR(IF(BK1+1>Monte_Carlo!$L$20,"",BK1+1),"") ->  | BM1: =IFERROR(IF(BL1+1>Monte_Carlo!$L$20,"",BL1+1),"") ->  | BN1: =IFERROR(IF(BM1+1>Monte_Carlo!$L$20,"",BM1+1),"") ->  | BO1: =IFERROR(IF(BN1+1>Monte_Carlo!$L$20,"",BN1+1),"") ->  | BP1: =IFERROR(IF(BO1+1>Monte_Carlo!$L$20,"",BO1+1),"") ->  | BQ1: =IFERROR(IF(BP1+1>Monte_Carlo!$L$20,"",BP1+1),"") ->  | BR1: =IFERROR(IF(BQ1+1>Monte_Carlo!$L$20,"",BQ1+1),"") ->  | BS1: =IFERROR(IF(BR1+1>Monte_Carlo!$L$20,"",BR1+1),"") ->  | BT1: =IFERROR(IF(BS1+1>Monte_Carlo!$L$20,"",BS1+1),"") ->  | BU1: =IFERROR(IF(BT1+1>Monte_Carlo!$L$20,"",BT1+1),"") ->  | BV1: =IFERROR(IF(BU1+1>Monte_Carlo!$L$20,"",BU1+1),"") -> 
A2: min | B2: =MIN(MCdata) -> 99.68550064 | E2: -1000 | F2: =IFERROR(IF(ISBLANK(E3),"",COUNTIFS(MCdata,">"&E2,MCdata,"<="&E3))/runs,"") -> 0 | K2: =IFERROR(IF(ISBLANK($E3),"",COUNTIFS(MCdata,">"&$E2,MCdata,"<="&$E3,sc_data,"="&K$1))/runs,"") -> 0 | L2: =IFERROR(IF(ISBLANK($E3),"",COUNTIFS(MCdata,">"&$E2,MCdata,"<="&$E3,sc_data,"="&L$1))/runs,"") -> 0 | M2: =IFERROR(IF(ISBLANK($E3),"",COUNTIFS(MCdata,">"&$E2,MCdata,"<="&$E3,sc_data,"="&M$1))/runs,"") -> 0 | N2: =IFERROR(IF(ISBLANK($E3),"",COUNTIFS(MCdata,">"&$E2,MCdata,"<="&$E3,sc_data,"="&N$1))/runs,"") -> 0 | O2: =IFERROR(IF(ISBLANK($E3),"",COUNTIFS(MCdata,">"&$E2,MCdata,"<="&$E3,sc_data,"="&O$1))/runs,"") -> 0 | P2: =IFERROR(IF(ISBLANK($E3),"",COUNTIFS(MCdata,">"&$E2,MCdata,"<="&$E3,sc_data,"="&P$1))/runs,"") -> 0 | Q2: =IFERROR(IF(ISBLANK($E3),"",COUNTIFS(MCdata,">"&$E2,MCdata,"<="&$E3,sc_data,"="&Q$1))/runs,"") -> 0 | R2: =IFERROR(IF(ISBLANK($E3),"",COUNTIFS(MCdata,">"&$E2,MCdata,"<="&$E3,sc_data,"="&R$1))/runs,"") -> 0 | S2: =IFERROR(IF(ISBLANK($E3),"",COUNTIFS(MCdata,">"&$E2,MCdata,"<="&$E3,sc_data,"="&S$1))/runs,"") -> 0 | T2: =IFERROR(IF(ISBLANK($E3),"",COUNTIFS(MCdata,">"&$E2,MCdata,"<="&$E3,sc_data,"="&T$1))/runs,"") -> 0 | U2: =IFERROR(IF(ISBLANK($E3),"",COUNTIFS(MCdata,">"&$E2,MCdata,"<="&$E3,sc_data,"="&U$1))/runs,"") -> 0 | V2: =IFERROR(IF(ISBLANK($E3),"",COUNTIFS(MCdata,">"&$E2,MCdata,"<="&$E3,sc_data,"="&V$1))/runs,"") -> 0 | W2: =IFERROR(IF(ISBLANK($E3),"",COUNTIFS(MCdata,">"&$E2,MCdata,"<="&$E3,sc_data,"="&W$1))/runs,"") -> 0 | X2: =IFERROR(IF(ISBLANK($E3),"",COUNTIFS(MCdata,">"&$E2,MCdata,"<="&$E3,sc_data,"="&X$1))/runs,"") -> 0 | Y2: =IFERROR(IF(ISBLANK($E3),"",COUNTIFS(MCdata,">"&$E2,MCdata,"<="&$E3,sc_data,"="&Y$1))/runs,"") -> 0 | Z2: =IFERROR(IF(ISBLANK($E3),"",COUNTIFS(MCdata,">"&$E2,MCdata,"<="&$E3,sc_data,"="&Z$1))/runs,"") -> 0 | AA2: =IFERROR(IF(ISBLANK($E3),"",COUNTIFS(MCdata,">"&$E2,MCdata,"<="&$E3,sc_data,"="&AA$1))/runs,"") -> 0 | AB2: =IFERROR(IF(ISBLANK($E3),"",COUNTIFS(MCdata,">"&$E2,MCdata,"<="&$E3,sc_data,"="&AB$1))/runs,"") -> 0 | AC2: =IFERROR(IF(ISBLANK($E3),"",COUNTIFS(MCdata,">"&$E2,MCdata,"<="&$E3,sc_data,"="&AC$1))/runs,"") -> 0 | AD2: =IFERROR(IF(ISBLANK($E3),"",COUNTIFS(MCdata,">"&$E2,MCdata,"<="&$E3,sc_data,"="&AD$1))/runs,"") -> 0 | AE2: =IFERROR(IF(ISBLANK($E3),"",COUNTIFS(MCdata,">"&$E2,MCdata,"<="&$E3,sc_data,"="&AE$1))/runs,"") -> 0 | AF2: =IFERROR(IF(ISBLANK($E3),"",COUNTIFS(MCdata,">"&$E2,MCdata,"<="&$E3,sc_data,"="&AF$1))/runs,"") -> 0 | AG2: =IFERROR(IF(ISBLANK($E3),"",COUNTIFS(MCdata,">"&$E2,MCdata,"<="&$E3,sc_data,"="&AG$1))/runs,"") -> 0 | AH2: =IFERROR(IF(ISBLANK($E3),"",COUNTIFS(MCdata,">"&$E2,MCdata,"<="&$E3,sc_data,"="&AH$1))/runs,"") -> 0 | AI2: =IFERROR(IF(ISBLANK($E3),"",COUNTIFS(MCdata,">"&$E2,MCdata,"<="&$E3,sc_data,"="&AI$1))/runs,"") -> 0 | AJ2: =IFERROR(IF(ISBLANK($E3),"",COUNTIFS(MCdata,">"&$E2,MCdata,"<="&$E3,sc_data,"="&AJ$1))/runs,"") -> 0 | AK2: =IFERROR(IF(ISBLANK($E3),"",COUNTIFS(MCdata,">"&$E2,MCdata,"<="&$E3,sc_data,"="&AK$1))/runs,"") -> 0 | AL2: =IFERROR(IF(ISBLANK($E3),"",COUNTIFS(MCdata,">"&$E2,MCdata,"<="&$E3,sc_data,"="&AL$1))/runs,"") -> 0 | AM2: =IFERROR(IF(ISBLANK($E3),"",COUNTIFS(MCdata,">"&$E2,MCdata,"<="&$E3,sc_data,"="&AM$1))/runs,"") -> 0 | AN2: =IFERROR(IF(ISBLANK($E3),"",COUNTIFS(MCdata,">"&$E2,MCdata,"<="&$E3,sc_data,"="&AN$1))/runs,"") -> 0 | AO2: =IFERROR(IF(ISBLANK($E3),"",COUNTIFS(MCdata,">"&$E2,MCdata,"<="&$E3,sc_data,"="&AO$1))/runs,"") -> 0 | AP2: =IFERROR(IF(ISBLANK($E3),"",COUNTIFS(MCdata,">"&$E2,MCdata,"<="&$E3,sc_data,"="&AP$1))/runs,"") -> 0 | AQ2: =IFERROR(IF(ISBLANK($E3),"",COUNTIFS(MCdata,">"&$E2,MCdata,"<="&$E3,sc_data,"="&AQ$1))/runs,"") -> 0 | AR2: =IFERROR(IF(ISBLANK($E3),"",COUNTIFS(MCdata,">"&$E2,MCdata,"<="&$E3,sc_data,"="&AR$1))/runs,"") -> 0 | AS2: =IFERROR(IF(ISBLANK($E3),"",COUNTIFS(MCdata,">"&$E2,MCdata,"<="&$E3,sc_data,"="&AS$1))/runs,"") -> 0 | AT2: =IFERROR(IF(ISBLANK($E3),"",COUNTIFS(MCdata,">"&$E2,MCdata,"<="&$E3,sc_data,"="&AT$1))/runs,"") -> 0 | AU2: =IFERROR(IF(ISBLANK($E3),"",COUNTIFS(MCdata,">"&$E2,MCdata,"<="&$E3,sc_data,"="&AU$1))/runs,"") -> 0 | AV2: =IFERROR(IF(ISBLANK($E3),"",COUNTIFS(MCdata,">"&$E2,MCdata,"<="&$E3,sc_data,"="&AV$1))/runs,"") -> 0 | AW2: =IFERROR(IF(ISBLANK($E3),"",COUNTIFS(MCdata,">"&$E2,MCdata,"<="&$E3,sc_data,"="&AW$1))/runs,"") -> 0 | AX2: =IFERROR(IF(ISBLANK($E3),"",COUNTIFS(MCdata,">"&$E2,MCdata,"<="&$E3,sc_data,"="&AX$1))/runs,"") -> 0 | AY2: =IFERROR(IF(ISBLANK($E3),"",COUNTIFS(MCdata,">"&$E2,MCdata,"<="&$E3,sc_data,"="&AY$1))/runs,"") -> 0 | AZ2: =IFERROR(IF(ISBLANK($E3),"",COUNTIFS(MCdata,">"&$E2,MCdata,"<="&$E3,sc_data,"="&AZ$1))/runs,"") -> 0 | BA2: =IFERROR(IF(ISBLANK($E3),"",COUNTIFS(MCdata,">"&$E2,MCdata,"<="&$E3,sc_data,"="&BA$1))/runs,"") -> 0 | BB2: =IFERROR(IF(ISBLANK($E3),"",COUNTIFS(MCdata,">"&$E2,MCdata,"<="&$E3,sc_data,"="&BB$1))/runs,"") -> 0 | BC2: =IFERROR(IF(ISBLANK($E3),"",COUNTIFS(MCdata,">"&$E2,MCdata,"<="&$E3,sc_data,"="&BC$1))/runs,"") -> 0 | BD2: =IFERROR(IF(ISBLANK($E3),"",COUNTIFS(MCdata,">"&$E2,MCdata,"<="&$E3,sc_data,"="&BD$1))/runs,"") -> 0 | BE2: =IFERROR(IF(ISBLANK($E3),"",COUNTIFS(MCdata,">"&$E2,MCdata,"<="&$E3,sc_data,"="&BE$1))/runs,"") -> 0 | BF2: =IFERROR(IF(ISBLANK($E3),"",COUNTIFS(MCdata,">"&$E2,MCdata,"<="&$E3,sc_data,"="&BF$1))/runs,"") -> 0 | BG2: =IFERROR(IF(ISBLANK($E3),"",COUNTIFS(MCdata,">"&$E2,MCdata,"<="&$E3,sc_data,"="&BG$1))/runs,"") -> 0 | BH2: =IFERROR(IF(ISBLANK($E3),"",COUNTIFS(MCdata,">"&$E2,MCdata,"<="&$E3,sc_data,"="&BH$1))/runs,"") -> 0 | BI2: =IFERROR(IF(ISBLANK($E3),"",COUNTIFS(MCdata,">"&$E2,MCdata,"<="&$E3,sc_data,"="&BI$1))/runs,"") -> 0 | BJ2: =IFERROR(IF(ISBLANK($E3),"",COUNTIFS(MCdata,">"&$E2,MCdata,"<="&$E3,sc_data,"="&BJ$1))/runs,"") -> 0 | BK2: =IFERROR(IF(ISBLANK($E3),"",COUNTIFS(MCdata,">"&$E2,MCdata,"<="&$E3,sc_data,"="&BK$1))/runs,"") -> 0 | BL2: =IFERROR(IF(ISBLANK($E3),"",COUNTIFS(MCdata,">"&$E2,MCdata,"<="&$E3,sc_data,"="&BL$1))/runs,"") -> 0 | BM2: =IFERROR(IF(ISBLANK($E3),"",COUNTIFS(MCdata,">"&$E2,MCdata,"<="&$E3,sc_data,"="&BM$1))/runs,"") -> 0 | BN2: =IFERROR(IF(ISBLANK($E3),"",COUNTIFS(MCdata,">"&$E2,MCdata,"<="&$E3,sc_data,"="&BN$1))/runs,"") -> 0 | BO2: =IFERROR(IF(ISBLANK($E3),"",COUNTIFS(MCdata,">"&$E2,MCdata,"<="&$E3,sc_data,"="&BO$1))/runs,"") -> 0 | BP2: =IFERROR(IF(ISBLANK($E3),"",COUNTIFS(MCdata,">"&$E2,MCdata,"<="&$E3,sc_data,"="&BP$1))/runs,"") -> 0 | BQ2: =IFERROR(IF(ISBLANK($E3),"",COUNTIFS(MCdata,">"&$E2,MCdata,"<="&$E3,sc_data,"="&BQ$1))/runs,"") -> 0 | BR2: =IFERROR(IF(ISBLANK($E3),"",COUNTIFS(MCdata,">"&$E2,MCdata,"<="&$E3,sc_data,"="&BR$1))/runs,"") -> 0 | BS2: =IFERROR(IF(ISBLANK($E3),"",COUNTIFS(MCdata,">"&$E2,MCdata,"<="&$E3,sc_data,"="&BS$1))/runs,"") -> 0 | BT2: =IFERROR(IF(ISBLANK($E3),"",COUNTIFS(MCdata,">"&$E2,MCdata,"<="&$E3,sc_data,"="&BT$1))/runs,"") -> 0 | BU2: =IFERROR(IF(ISBLANK($E3),"",COUNTIFS(MCdata,">"&$E2,MCdata,"<="&$E3,sc_data,"="&BU$1))/runs,"") -> 0 | BV2: =IFERROR(IF(ISBLANK($E3),"",COUNTIFS(MCdata,">"&$E2,MCdata,"<="&$E3,sc_data,"="&BV$1))/runs,"") -> 0 | BW2: =IFERROR(IF(ISBLANK($E3),"",COUNTIFS(MCdata,">"&$E2,MCdata,"<="&$E3,scenarios,"="&BW$1))/runs,"") ->  | BX2: =IFERROR(IF(ISBLANK($E3),"",COUNTIFS(MCdata,">"&$E2,MCdata,"<="&$E3,scenarios,"="&BX$1))/runs,"") ->  | BY2: =IFERROR(IF(ISBLANK($E3),"",COUNTIFS(MCdata,">"&$E2,MCdata,"<="&$E3,scenarios,"="&BY$1))/runs,"") ->  | BZ2: =IFERROR(IF(ISBLANK($E3),"",COUNTIFS(MCdata,">"&$E2,MCdata,"<="&$E3,scenarios,"="&BZ$1))/runs,"") ->  | CA2: =IFERROR(IF(ISBLANK($E3),"",COUNTIFS(MCdata,">"&$E2,MCdata,"<="&$E3,scenarios,"="&CA$1))/runs,"") ->  | CB2: =IFERROR(IF(ISBLANK($E3),"",COUNTIFS(MCdata,">"&$E2,MCdata,"<="&$E3,scenarios,"="&CB$1))/runs,"") ->  | CC2: =IFERROR(IF(ISBLANK($E3),"",COUNTIFS(MCdata,">"&$E2,MCdata,"<="&$E3,scenarios,"="&CC$1))/runs,"") ->  | CD2: =IFERROR(IF(ISBLANK($E3),"",COUNTIFS(MCdata,">"&$E2,MCdata,"<="&$E3,scenarios,"="&CD$1))/runs,"") ->  | CE2: =IFERROR(IF(ISBLANK($E3),"",COUNTIFS(MCdata,">"&$E2,MCdata,"<="&$E3,scenarios,"="&CE$1))/runs,"") ->  | CF2: =IFERROR(IF(ISBLANK($E3),"",COUNTIFS(MCdata,">"&$E2,MCdata,"<="&$E3,scenarios,"="&CF$1))/runs,"") ->  | CG2: =IFERROR(IF(ISBLANK($E3),"",COUNTIFS(MCdata,">"&$E2,MCdata,"<="&$E3,scenarios,"="&CG$1))/runs,"") ->  | CH2: =IFERROR(IF(ISBLANK($E3),"",COUNTIFS(MCdata,">"&$E2,MCdata,"<="&$E3,scenarios,"="&CH$1))/runs,"") ->  | CI2: =IFERROR(IF(ISBLANK($E3),"",COUNTIFS(MCdata,">"&$E2,MCdata,"<="&$E3,scenarios,"="&CI$1))/runs,"") ->  | CJ2: =IFERROR(IF(ISBLANK($E3),"",COUNTIFS(MCdata,">"&$E2,MCdata,"<="&$E3,scenarios,"="&CJ$1))/runs,"") -> 
A3: max | B3: =MAX(MCdata) -> 3924.664587 | E3: -875 | F3: 0 | K3: 0 | L3: 0 | M3: 0 | N3: 0 | O3: 0 | P3: 0 | Q3: 0 | R3: 0 | S3: 0 | T3: 0 | U3: 0 | V3: 0 | W3: 0 | X3: 0 | Y3: 0 | Z3: 0 | AA3: 0 | AB3: 0 | AC3: 0 | AD3: 0 | AE3: 0 | AF3: 0 | AG3: 0 | AH3: 0 | AI3: 0 | AJ3: 0 | AK3: 0 | AL3: 0 | AM3: 0 | AN3: 0 | AO3: 0 | AP3: 0 | AQ3: 0 | AR3: 0 | AS3: 0 | AT3: 0 | AU3: 0 | AV3: 0 | AW3: 0 | AX3: 0 | AY3: 0 | AZ3: 0 | BA3: 0 | BB3: 0 | BC3: 0 | BD3: 0 | BE3: 0 | BF3: 0 | BG3: 0 | BH3: 0 | BI3: 0 | BJ3: 0 | BK3: 0 | BL3: 0 | BM3: 0 | BN3: 0 | BO3: 0 | BP3: 0 | BQ3: 0 | BR3: 0 | BS3: 0 | BT3: 0 | BU3: 0 | BV3: 0
A4: round | B4: =10^(LEN(ROUND(B3-B2,0))-1) -> 1000 | E4: -750 | F4: 0 | K4: 0 | L4: 0 | M4: 0 | N4: 0 | O4: 0 | P4: 0 | Q4: 0 | R4: 0 | S4: 0 | T4: 0 | U4: 0 | V4: 0 | W4: 0 | X4: 0 | Y4: 0 | Z4: 0 | AA4: 0 | AB4: 0 | AC4: 0 | AD4: 0 | AE4: 0 | AF4: 0 | AG4: 0 | AH4: 0 | AI4: 0 | AJ4: 0 | AK4: 0 | AL4: 0 | AM4: 0 | AN4: 0 | AO4: 0 | AP4: 0 | AQ4: 0 | AR4: 0 | AS4: 0 | AT4: 0 | AU4: 0 | AV4: 0 | AW4: 0 | AX4: 0 | AY4: 0 | AZ4: 0 | BA4: 0 | BB4: 0 | BC4: 0 | BD4: 0 | BE4: 0 | BF4: 0 | BG4: 0 | BH4: 0 | BI4: 0 | BJ4: 0 | BK4: 0 | BL4: 0 | BM4: 0 | BN4: 0 | BO4: 0 | BP4: 0 | BQ4: 0 | BR4: 0 | BS4: 0 | BT4: 0 | BU4: 0 | BV4: 0
A5: min | B5: =IF(Monte_Carlo!D26="automatic",ROUNDUP(B2/B4,0)*B4*IF(B2>0,-1,1),Monte_Carlo!E26) -> -1000 | E5: -625 | F5: 0 | K5: 0 | L5: 0 | M5: 0 | N5: 0 | O5: 0 | P5: 0 | Q5: 0 | R5: 0 | S5: 0 | T5: 0 | U5: 0 | V5: 0 | W5: 0 | X5: 0 | Y5: 0 | Z5: 0 | AA5: 0 | AB5: 0 | AC5: 0 | AD5: 0 | AE5: 0 | AF5: 0 | AG5: 0 | AH5: 0 | AI5: 0 | AJ5: 0 | AK5: 0 | AL5: 0 | AM5: 0 | AN5: 0 | AO5: 0 | AP5: 0 | AQ5: 0 | AR5: 0 | AS5: 0 | AT5: 0 | AU5: 0 | AV5: 0 | AW5: 0 | AX5: 0 | AY5: 0 | AZ5: 0 | BA5: 0 | BB5: 0 | BC5: 0 | BD5: 0 | BE5: 0 | BF5: 0 | BG5: 0 | BH5: 0 | BI5: 0 | BJ5: 0 | BK5: 0 | BL5: 0 | BM5: 0 | BN5: 0 | BO5: 0 | BP5: 0 | BQ5: 0 | BR5: 0 | BS5: 0 | BT5: 0 | BU5: 0 | BV5: 0
A6: max | B6: =IF(Monte_Carlo!D26="automatic",ROUNDUP(B3/B4,0)*B4*IF(B3>0,1,-1),Monte_Carlo!F26) -> 4000 | E6: -500 | F6: 0 | K6: 0 | L6: 0 | M6: 0 | N6: 0 | O6: 0 | P6: 0 | Q6: 0 | R6: 0 | S6: 0 | T6: 0 | U6: 0 | V6: 0 | W6: 0 | X6: 0 | Y6: 0 | Z6: 0 | AA6: 0 | AB6: 0 | AC6: 0 | AD6: 0 | AE6: 0 | AF6: 0 | AG6: 0 | AH6: 0 | AI6: 0 | AJ6: 0 | AK6: 0 | AL6: 0 | AM6: 0 | AN6: 0 | AO6: 0 | AP6: 0 | AQ6: 0 | AR6: 0 | AS6: 0 | AT6: 0 | AU6: 0 | AV6: 0 | AW6: 0 | AX6: 0 | AY6: 0 | AZ6: 0 | BA6: 0 | BB6: 0 | BC6: 0 | BD6: 0 | BE6: 0 | BF6: 0 | BG6: 0 | BH6: 0 | BI6: 0 | BJ6: 0 | BK6: 0 | BL6: 0 | BM6: 0 | BN6: 0 | BO6: 0 | BP6: 0 | BQ6: 0 | BR6: 0 | BS6: 0 | BT6: 0 | BU6: 0 | BV6: 0
A7: range | B7: =B6-B5 -> 5000 | E7: -375 | F7: 0 | K7: 0 | L7: 0 | M7: 0 | N7: 0 | O7: 0 | P7: 0 | Q7: 0 | R7: 0 | S7: 0 | T7: 0 | U7: 0 | V7: 0 | W7: 0 | X7: 0 | Y7: 0 | Z7: 0 | AA7: 0 | AB7: 0 | AC7: 0 | AD7: 0 | AE7: 0 | AF7: 0 | AG7: 0 | AH7: 0 | AI7: 0 | AJ7: 0 | AK7: 0 | AL7: 0 | AM7: 0 | AN7: 0 | AO7: 0 | AP7: 0 | AQ7: 0 | AR7: 0 | AS7: 0 | AT7: 0 | AU7: 0 | AV7: 0 | AW7: 0 | AX7: 0 | AY7: 0 | AZ7: 0 | BA7: 0 | BB7: 0 | BC7: 0 | BD7: 0 | BE7: 0 | BF7: 0 | BG7: 0 | BH7: 0 | BI7: 0 | BJ7: 0 | BK7: 0 | BL7: 0 | BM7: 0 | BN7: 0 | BO7: 0 | BP7: 0 | BQ7: 0 | BR7: 0 | BS7: 0 | BT7: 0 | BU7: 0 | BV7: 0
E8: -250 | F8: 0 | K8: 0 | L8: 0 | M8: 0 | N8: 0 | O8: 0 | P8: 0 | Q8: 0 | R8: 0 | S8: 0 | T8: 0 | U8: 0 | V8: 0 | W8: 0 | X8: 0 | Y8: 0 | Z8: 0 | AA8: 0 | AB8: 0 | AC8: 0 | AD8: 0 | AE8: 0 | AF8: 0 | AG8: 0 | AH8: 0 | AI8: 0 | AJ8: 0 | AK8: 0 | AL8: 0 | AM8: 0 | AN8: 0 | AO8: 0 | AP8: 0 | AQ8: 0 | AR8: 0 | AS8: 0 | AT8: 0 | AU8: 0 | AV8: 0 | AW8: 0 | AX8: 0 | AY8: 0 | AZ8: 0 | BA8: 0 | BB8: 0 | BC8: 0 | BD8: 0 | BE8: 0 | BF8: 0 | BG8: 0 | BH8: 0 | BI8: 0 | BJ8: 0 | BK8: 0 | BL8: 0 | BM8: 0 | BN8: 0 | BO8: 0 | BP8: 0 | BQ8: 0 | BR8: 0 | BS8: 0 | BT8: 0 | BU8: 0 | BV8: 0
E9: -125 | F9: 0 | K9: 0 | L9: 0 | M9: 0 | N9: 0 | O9: 0 | P9: 0 | Q9: 0 | R9: 0 | S9: 0 | T9: 0 | U9: 0 | V9: 0 | W9: 0 | X9: 0 | Y9: 0 | Z9: 0 | AA9: 0 | AB9: 0 | AC9: 0 | AD9: 0 | AE9: 0 | AF9: 0 | AG9: 0 | AH9: 0 | AI9: 0 | AJ9: 0 | AK9: 0 | AL9: 0 | AM9: 0 | AN9: 0 | AO9: 0 | AP9: 0 | AQ9: 0 | AR9: 0 | AS9: 0 | AT9: 0 | AU9: 0 | AV9: 0 | AW9: 0 | AX9: 0 | AY9: 0 | AZ9: 0 | BA9: 0 | BB9: 0 | BC9: 0 | BD9: 0 | BE9: 0 | BF9: 0 | BG9: 0 | BH9: 0 | BI9: 0 | BJ9: 0 | BK9: 0 | BL9: 0 | BM9: 0 | BN9: 0 | BO9: 0 | BP9: 0 | BQ9: 0 | BR9: 0 | BS9: 0 | BT9: 0 | BU9: 0 | BV9: 0
E10: 0 | F10: 0.0001 | K10: 0 | L10: 0 | M10: 0 | N10: 0.0001 | O10: 0 | P10: 0 | Q10: 0 | R10: 0 | S10: 0 | T10: 0 | U10: 0 | V10: 0 | W10: 0 | X10: 0 | Y10: 0 | Z10: 0 | AA10: 0 | AB10: 0 | AC10: 0 | AD10: 0 | AE10: 0 | AF10: 0 | AG10: 0 | AH10: 0 | AI10: 0 | AJ10: 0 | AK10: 0 | AL10: 0 | AM10: 0 | AN10: 0 | AO10: 0 | AP10: 0 | AQ10: 0 | AR10: 0 | AS10: 0 | AT10: 0 | AU10: 0 | AV10: 0 | AW10: 0 | AX10: 0 | AY10: 0 | AZ10: 0 | BA10: 0 | BB10: 0 | BC10: 0 | BD10: 0 | BE10: 0 | BF10: 0 | BG10: 0 | BH10: 0 | BI10: 0 | BJ10: 0 | BK10: 0 | BL10: 0 | BM10: 0 | BN10: 0 | BO10: 0 | BP10: 0 | BQ10: 0 | BR10: 0 | BS10: 0 | BT10: 0 | BU10: 0 | BV10: 0
E11: 125 | F11: 0.0013 | K11: 0 | L11: 0 | M11: 0 | N11: 0.0013 | O11: 0 | P11: 0 | Q11: 0 | R11: 0 | S11: 0 | T11: 0 | U11: 0 | V11: 0 | W11: 0 | X11: 0 | Y11: 0 | Z11: 0 | AA11: 0 | AB11: 0 | AC11: 0 | AD11: 0 | AE11: 0 | AF11: 0 | AG11: 0 | AH11: 0 | AI11: 0 | AJ11: 0 | AK11: 0 | AL11: 0 | AM11: 0 | AN11: 0 | AO11: 0 | AP11: 0 | AQ11: 0 | AR11: 0 | AS11: 0 | AT11: 0 | AU11: 0 | AV11: 0 | AW11: 0 | AX11: 0 | AY11: 0 | AZ11: 0 | BA11: 0 | BB11: 0 | BC11: 0 | BD11: 0 | BE11: 0 | BF11: 0 | BG11: 0 | BH11: 0 | BI11: 0 | BJ11: 0 | BK11: 0 | BL11: 0 | BM11: 0 | BN11: 0 | BO11: 0 | BP11: 0 | BQ11: 0 | BR11: 0 | BS11: 0 | BT11: 0 | BU11: 0 | BV11: 0
E12: 250 | F12: 0.0051 | K12: 0 | L12: 0 | M12: 0 | N12: 0.0051 | O12: 0 | P12: 0 | Q12: 0 | R12: 0 | S12: 0 | T12: 0 | U12: 0 | V12: 0 | W12: 0 | X12: 0 | Y12: 0 | Z12: 0 | AA12: 0 | AB12: 0 | AC12: 0 | AD12: 0 | AE12: 0 | AF12: 0 | AG12: 0 | AH12: 0 | AI12: 0 | AJ12: 0 | AK12: 0 | AL12: 0 | AM12: 0 | AN12: 0 | AO12: 0 | AP12: 0 | AQ12: 0 | AR12: 0 | AS12: 0 | AT12: 0 | AU12: 0 | AV12: 0 | AW12: 0 | AX12: 0 | AY12: 0 | AZ12: 0 | BA12: 0 | BB12: 0 | BC12: 0 | BD12: 0 | BE12: 0 | BF12: 0 | BG12: 0 | BH12: 0 | BI12: 0 | BJ12: 0 | BK12: 0 | BL12: 0 | BM12: 0 | BN12: 0 | BO12: 0 | BP12: 0 | BQ12: 0 | BR12: 0 | BS12: 0 | BT12: 0 | BU12: 0 | BV12: 0
E13: 375 | F13: 0.009 | K13: 0 | L13: 0 | M13: 0 | N13: 0.009 | O13: 0 | P13: 0 | Q13: 0 | R13: 0 | S13: 0 | T13: 0 | U13: 0 | V13: 0 | W13: 0 | X13: 0 | Y13: 0 | Z13: 0 | AA13: 0 | AB13: 0 | AC13: 0 | AD13: 0 | AE13: 0 | AF13: 0 | AG13: 0 | AH13: 0 | AI13: 0 | AJ13: 0 | AK13: 0 | AL13: 0 | AM13: 0 | AN13: 0 | AO13: 0 | AP13: 0 | AQ13: 0 | AR13: 0 | AS13: 0 | AT13: 0 | AU13: 0 | AV13: 0 | AW13: 0 | AX13: 0 | AY13: 0 | AZ13: 0 | BA13: 0 | BB13: 0 | BC13: 0 | BD13: 0 | BE13: 0 | BF13: 0 | BG13: 0 | BH13: 0 | BI13: 0 | BJ13: 0 | BK13: 0 | BL13: 0 | BM13: 0 | BN13: 0 | BO13: 0 | BP13: 0 | BQ13: 0 | BR13: 0 | BS13: 0 | BT13: 0 | BU13: 0 | BV13: 0
E14: 500 | F14: 0.0156 | K14: 0.0002 | L14: 0 | M14: 0 | N14: 0.0154 | O14: 0 | P14: 0 | Q14: 0 | R14: 0 | S14: 0 | T14: 0 | U14: 0 | V14: 0 | W14: 0 | X14: 0 | Y14: 0 | Z14: 0 | AA14: 0 | AB14: 0 | AC14: 0 | AD14: 0 | AE14: 0 | AF14: 0 | AG14: 0 | AH14: 0 | AI14: 0 | AJ14: 0 | AK14: 0 | AL14: 0 | AM14: 0 | AN14: 0 | AO14: 0 | AP14: 0 | AQ14: 0 | AR14: 0 | AS14: 0 | AT14: 0 | AU14: 0 | AV14: 0 | AW14: 0 | AX14: 0 | AY14: 0 | AZ14: 0 | BA14: 0 | BB14: 0 | BC14: 0 | BD14: 0 | BE14: 0 | BF14: 0 | BG14: 0 | BH14: 0 | BI14: 0 | BJ14: 0 | BK14: 0 | BL14: 0 | BM14: 0 | BN14: 0 | BO14: 0 | BP14: 0 | BQ14: 0 | BR14: 0 | BS14: 0 | BT14: 0 | BU14: 0 | BV14: 0
E15: 625 | F15: 0.0203 | K15: 0.0016 | L15: 0 | M15: 0 | N15: 0.0186 | O15: 0.0001 | P15: 0 | Q15: 0 | R15: 0 | S15: 0 | T15: 0 | U15: 0 | V15: 0 | W15: 0 | X15: 0 | Y15: 0 | Z15: 0 | AA15: 0 | AB15: 0 | AC15: 0 | AD15: 0 | AE15: 0 | AF15: 0 | AG15: 0 | AH15: 0 | AI15: 0 | AJ15: 0 | AK15: 0 | AL15: 0 | AM15: 0 | AN15: 0 | AO15: 0 | AP15: 0 | AQ15: 0 | AR15: 0 | AS15: 0 | AT15: 0 | AU15: 0 | AV15: 0 | AW15: 0 | AX15: 0 | AY15: 0 | AZ15: 0 | BA15: 0 | BB15: 0 | BC15: 0 | BD15: 0 | BE15: 0 | BF15: 0 | BG15: 0 | BH15: 0 | BI15: 0 | BJ15: 0 | BK15: 0 | BL15: 0 | BM15: 0 | BN15: 0 | BO15: 0 | BP15: 0 | BQ15: 0 | BR15: 0 | BS15: 0 | BT15: 0 | BU15: 0 | BV15: 0
E16: 750 | F16: 0.0285 | K16: 0.0049 | L16: 0 | M16: 0 | N16: 0.0224 | O16: 0.0012 | P16: 0 | Q16: 0 | R16: 0 | S16: 0 | T16: 0 | U16: 0 | V16: 0 | W16: 0 | X16: 0 | Y16: 0 | Z16: 0 | AA16: 0 | AB16: 0 | AC16: 0 | AD16: 0 | AE16: 0 | AF16: 0 | AG16: 0 | AH16: 0 | AI16: 0 | AJ16: 0 | AK16: 0 | AL16: 0 | AM16: 0 | AN16: 0 | AO16: 0 | AP16: 0 | AQ16: 0 | AR16: 0 | AS16: 0 | AT16: 0 | AU16: 0 | AV16: 0 | AW16: 0 | AX16: 0 | AY16: 0 | AZ16: 0 | BA16: 0 | BB16: 0 | BC16: 0 | BD16: 0 | BE16: 0 | BF16: 0 | BG16: 0 | BH16: 0 | BI16: 0 | BJ16: 0 | BK16: 0 | BL16: 0 | BM16: 0 | BN16: 0 | BO16: 0 | BP16: 0 | BQ16: 0 | BR16: 0 | BS16: 0 | BT16: 0 | BU16: 0 | BV16: 0
E17: 875 | F17: 0.04 | K17: 0.0089 | L17: 0 | M17: 0 | N17: 0.0263 | O17: 0.0048 | P17: 0 | Q17: 0 | R17: 0 | S17: 0 | T17: 0 | U17: 0 | V17: 0 | W17: 0 | X17: 0 | Y17: 0 | Z17: 0 | AA17: 0 | AB17: 0 | AC17: 0 | AD17: 0 | AE17: 0 | AF17: 0 | AG17: 0 | AH17: 0 | AI17: 0 | AJ17: 0 | AK17: 0 | AL17: 0 | AM17: 0 | AN17: 0 | AO17: 0 | AP17: 0 | AQ17: 0 | AR17: 0 | AS17: 0 | AT17: 0 | AU17: 0 | AV17: 0 | AW17: 0 | AX17: 0 | AY17: 0 | AZ17: 0 | BA17: 0 | BB17: 0 | BC17: 0 | BD17: 0 | BE17: 0 | BF17: 0 | BG17: 0 | BH17: 0 | BI17: 0 | BJ17: 0 | BK17: 0 | BL17: 0 | BM17: 0 | BN17: 0 | BO17: 0 | BP17: 0 | BQ17: 0 | BR17: 0 | BS17: 0 | BT17: 0 | BU17: 0 | BV17: 0
E18: 1000 | F18: 0.0463 | K18: 0.0133 | L18: 0 | M18: 0 | N18: 0.0265 | O18: 0.0065 | P18: 0 | Q18: 0 | R18: 0 | S18: 0 | T18: 0 | U18: 0 | V18: 0 | W18: 0 | X18: 0 | Y18: 0 | Z18: 0 | AA18: 0 | AB18: 0 | AC18: 0 | AD18: 0 | AE18: 0 | AF18: 0 | AG18: 0 | AH18: 0 | AI18: 0 | AJ18: 0 | AK18: 0 | AL18: 0 | AM18: 0 | AN18: 0 | AO18: 0 | AP18: 0 | AQ18: 0 | AR18: 0 | AS18: 0 | AT18: 0 | AU18: 0 | AV18: 0 | AW18: 0 | AX18: 0 | AY18: 0 | AZ18: 0 | BA18: 0 | BB18: 0 | BC18: 0 | BD18: 0 | BE18: 0 | BF18: 0 | BG18: 0 | BH18: 0 | BI18: 0 | BJ18: 0 | BK18: 0 | BL18: 0 | BM18: 0 | BN18: 0 | BO18: 0 | BP18: 0 | BQ18: 0 | BR18: 0 | BS18: 0 | BT18: 0 | BU18: 0 | BV18: 0
E19: 1125 | F19: 0.0506 | K19: 0.0202 | L19: 0.0002 | M19: 0 | N19: 0.0198 | O19: 0.0104 | P19: 0 | Q19: 0 | R19: 0 | S19: 0 | T19: 0 | U19: 0 | V19: 0 | W19: 0 | X19: 0 | Y19: 0 | Z19: 0 | AA19: 0 | AB19: 0 | AC19: 0 | AD19: 0 | AE19: 0 | AF19: 0 | AG19: 0 | AH19: 0 | AI19: 0 | AJ19: 0 | AK19: 0 | AL19: 0 | AM19: 0 | AN19: 0 | AO19: 0 | AP19: 0 | AQ19: 0 | AR19: 0 | AS19: 0 | AT19: 0 | AU19: 0 | AV19: 0 | AW19: 0 | AX19: 0 | AY19: 0 | AZ19: 0 | BA19: 0 | BB19: 0 | BC19: 0 | BD19: 0 | BE19: 0 | BF19: 0 | BG19: 0 | BH19: 0 | BI19: 0 | BJ19: 0 | BK19: 0 | BL19: 0 | BM19: 0 | BN19: 0 | BO19: 0 | BP19: 0 | BQ19: 0 | BR19: 0 | BS19: 0 | BT19: 0 | BU19: 0 | BV19: 0
E20: 1250 | F20: 0.0557 | K20: 0.0186 | L20: 0.0017 | M20: 0 | N20: 0.0192 | O20: 0.0161 | P20: 0.0001 | Q20: 0 | R20: 0 | S20: 0 | T20: 0 | U20: 0 | V20: 0 | W20: 0 | X20: 0 | Y20: 0 | Z20: 0 | AA20: 0 | AB20: 0 | AC20: 0 | AD20: 0 | AE20: 0 | AF20: 0 | AG20: 0 | AH20: 0 | AI20: 0 | AJ20: 0 | AK20: 0 | AL20: 0 | AM20: 0 | AN20: 0 | AO20: 0 | AP20: 0 | AQ20: 0 | AR20: 0 | AS20: 0 | AT20: 0 | AU20: 0 | AV20: 0 | AW20: 0 | AX20: 0 | AY20: 0 | AZ20: 0 | BA20: 0 | BB20: 0 | BC20: 0 | BD20: 0 | BE20: 0 | BF20: 0 | BG20: 0 | BH20: 0 | BI20: 0 | BJ20: 0 | BK20: 0 | BL20: 0 | BM20: 0 | BN20: 0 | BO20: 0 | BP20: 0 | BQ20: 0 | BR20: 0 | BS20: 0 | BT20: 0 | BU20: 0 | BV20: 0
E21: 1375 | F21: 0.0657 | K21: 0.0255 | L21: 0.0047 | M21: 0 | N21: 0.0149 | O21: 0.0197 | P21: 0.0009 | Q21: 0 | R21: 0 | S21: 0 | T21: 0 | U21: 0 | V21: 0 | W21: 0 | X21: 0 | Y21: 0 | Z21: 0 | AA21: 0 | AB21: 0 | AC21: 0 | AD21: 0 | AE21: 0 | AF21: 0 | AG21: 0 | AH21: 0 | AI21: 0 | AJ21: 0 | AK21: 0 | AL21: 0 | AM21: 0 | AN21: 0 | AO21: 0 | AP21: 0 | AQ21: 0 | AR21: 0 | AS21: 0 | AT21: 0 | AU21: 0 | AV21: 0 | AW21: 0 | AX21: 0 | AY21: 0 | AZ21: 0 | BA21: 0 | BB21: 0 | BC21: 0 | BD21: 0 | BE21: 0 | BF21: 0 | BG21: 0 | BH21: 0 | BI21: 0 | BJ21: 0 | BK21: 0 | BL21: 0 | BM21: 0 | BN21: 0 | BO21: 0 | BP21: 0 | BQ21: 0 | BR21: 0 | BS21: 0 | BT21: 0 | BU21: 0 | BV21: 0
E22: 1500 | F22: 0.0618 | K22: 0.0241 | L22: 0.0068 | M22: 0 | N22: 0.0092 | O22: 0.0189 | P22: 0.0028 | Q22: 0 | R22: 0 | S22: 0 | T22: 0 | U22: 0 | V22: 0 | W22: 0 | X22: 0 | Y22: 0 | Z22: 0 | AA22: 0 | AB22: 0 | AC22: 0 | AD22: 0 | AE22: 0 | AF22: 0 | AG22: 0 | AH22: 0 | AI22: 0 | AJ22: 0 | AK22: 0 | AL22: 0 | AM22: 0 | AN22: 0 | AO22: 0 | AP22: 0 | AQ22: 0 | AR22: 0 | AS22: 0 | AT22: 0 | AU22: 0 | AV22: 0 | AW22: 0 | AX22: 0 | AY22: 0 | AZ22: 0 | BA22: 0 | BB22: 0 | BC22: 0 | BD22: 0 | BE22: 0 | BF22: 0 | BG22: 0 | BH22: 0 | BI22: 0 | BJ22: 0 | BK22: 0 | BL22: 0 | BM22: 0 | BN22: 0 | BO22: 0 | BP22: 0 | BQ22: 0 | BR22: 0 | BS22: 0 | BT22: 0 | BU22: 0 | BV22: 0
E23: 1625 | F23: 0.0619 | K23: 0.0218 | L23: 0.0099 | M23: 0 | N23: 0.0059 | O23: 0.0201 | P23: 0.0042 | Q23: 0 | R23: 0 | S23: 0 | T23: 0 | U23: 0 | V23: 0 | W23: 0 | X23: 0 | Y23: 0 | Z23: 0 | AA23: 0 | AB23: 0 | AC23: 0 | AD23: 0 | AE23: 0 | AF23: 0 | AG23: 0 | AH23: 0 | AI23: 0 | AJ23: 0 | AK23: 0 | AL23: 0 | AM23: 0 | AN23: 0 | AO23: 0 | AP23: 0 | AQ23: 0 | AR23: 0 | AS23: 0 | AT23: 0 | AU23: 0 | AV23: 0 | AW23: 0 | AX23: 0 | AY23: 0 | AZ23: 0 | BA23: 0 | BB23: 0 | BC23: 0 | BD23: 0 | BE23: 0 | BF23: 0 | BG23: 0 | BH23: 0 | BI23: 0 | BJ23: 0 | BK23: 0 | BL23: 0 | BM23: 0 | BN23: 0 | BO23: 0 | BP23: 0 | BQ23: 0 | BR23: 0 | BS23: 0 | BT23: 0 | BU23: 0 | BV23: 0
E24: 1750 | F24: 0.0658 | K24: 0.0179 | L24: 0.0157 | M24: 0.0003 | N24: 0.0042 | O24: 0.0213 | P24: 0.0064 | Q24: 0 | R24: 0 | S24: 0 | T24: 0 | U24: 0 | V24: 0 | W24: 0 | X24: 0 | Y24: 0 | Z24: 0 | AA24: 0 | AB24: 0 | AC24: 0 | AD24: 0 | AE24: 0 | AF24: 0 | AG24: 0 | AH24: 0 | AI24: 0 | AJ24: 0 | AK24: 0 | AL24: 0 | AM24: 0 | AN24: 0 | AO24: 0 | AP24: 0 | AQ24: 0 | AR24: 0 | AS24: 0 | AT24: 0 | AU24: 0 | AV24: 0 | AW24: 0 | AX24: 0 | AY24: 0 | AZ24: 0 | BA24: 0 | BB24: 0 | BC24: 0 | BD24: 0 | BE24: 0 | BF24: 0 | BG24: 0 | BH24: 0 | BI24: 0 | BJ24: 0 | BK24: 0 | BL24: 0 | BM24: 0 | BN24: 0 | BO24: 0 | BP24: 0 | BQ24: 0 | BR24: 0 | BS24: 0 | BT24: 0 | BU24: 0 | BV24: 0
E25: 1875 | F25: 0.0625 | K25: 0.0154 | L25: 0.0164 | M25: 0.0014 | N25: 0.0008 | O25: 0.0197 | P25: 0.0088 | Q25: 0 | R25: 0 | S25: 0 | T25: 0 | U25: 0 | V25: 0 | W25: 0 | X25: 0 | Y25: 0 | Z25: 0 | AA25: 0 | AB25: 0 | AC25: 0 | AD25: 0 | AE25: 0 | AF25: 0 | AG25: 0 | AH25: 0 | AI25: 0 | AJ25: 0 | AK25: 0 | AL25: 0 | AM25: 0 | AN25: 0 | AO25: 0 | AP25: 0 | AQ25: 0 | AR25: 0 | AS25: 0 | AT25: 0 | AU25: 0 | AV25: 0 | AW25: 0 | AX25: 0 | AY25: 0 | AZ25: 0 | BA25: 0 | BB25: 0 | BC25: 0 | BD25: 0 | BE25: 0 | BF25: 0 | BG25: 0 | BH25: 0 | BI25: 0 | BJ25: 0 | BK25: 0 | BL25: 0 | BM25: 0 | BN25: 0 | BO25: 0 | BP25: 0 | BQ25: 0 | BR25: 0 | BS25: 0 | BT25: 0 | BU25: 0 | BV25: 0
E26: 2000 | F26: 0.0599 | K26: 0.0103 | L26: 0.0197 | M26: 0.0028 | N26: 0.0005 | O26: 0.0181 | P26: 0.0085 | Q26: 0 | R26: 0 | S26: 0 | T26: 0 | U26: 0 | V26: 0 | W26: 0 | X26: 0 | Y26: 0 | Z26: 0 | AA26: 0 | AB26: 0 | AC26: 0 | AD26: 0 | AE26: 0 | AF26: 0 | AG26: 0 | AH26: 0 | AI26: 0 | AJ26: 0 | AK26: 0 | AL26: 0 | AM26: 0 | AN26: 0 | AO26: 0 | AP26: 0 | AQ26: 0 | AR26: 0 | AS26: 0 | AT26: 0 | AU26: 0 | AV26: 0 | AW26: 0 | AX26: 0 | AY26: 0 | AZ26: 0 | BA26: 0 | BB26: 0 | BC26: 0 | BD26: 0 | BE26: 0 | BF26: 0 | BG26: 0 | BH26: 0 | BI26: 0 | BJ26: 0 | BK26: 0 | BL26: 0 | BM26: 0 | BN26: 0 | BO26: 0 | BP26: 0 | BQ26: 0 | BR26: 0 | BS26: 0 | BT26: 0 | BU26: 0 | BV26: 0
E27: 2125 | F27: 0.0558 | K27: 0.0071 | L27: 0.0185 | M27: 0.005 | N27: 0 | O27: 0.0154 | P27: 0.0098 | Q27: 0 | R27: 0 | S27: 0 | T27: 0 | U27: 0 | V27: 0 | W27: 0 | X27: 0 | Y27: 0 | Z27: 0 | AA27: 0 | AB27: 0 | AC27: 0 | AD27: 0 | AE27: 0 | AF27: 0 | AG27: 0 | AH27: 0 | AI27: 0 | AJ27: 0 | AK27: 0 | AL27: 0 | AM27: 0 | AN27: 0 | AO27: 0 | AP27: 0 | AQ27: 0 | AR27: 0 | AS27: 0 | AT27: 0 | AU27: 0 | AV27: 0 | AW27: 0 | AX27: 0 | AY27: 0 | AZ27: 0 | BA27: 0 | BB27: 0 | BC27: 0 | BD27: 0 | BE27: 0 | BF27: 0 | BG27: 0 | BH27: 0 | BI27: 0 | BJ27: 0 | BK27: 0 | BL27: 0 | BM27: 0 | BN27: 0 | BO27: 0 | BP27: 0 | BQ27: 0 | BR27: 0 | BS27: 0 | BT27: 0 | BU27: 0 | BV27: 0
E28: 2250 | F28: 0.0522 | K28: 0.0037 | L28: 0.0181 | M28: 0.0075 | N28: 0 | O28: 0.0136 | P28: 0.0093 | Q28: 0 | R28: 0 | S28: 0 | T28: 0 | U28: 0 | V28: 0 | W28: 0 | X28: 0 | Y28: 0 | Z28: 0 | AA28: 0 | AB28: 0 | AC28: 0 | AD28: 0 | AE28: 0 | AF28: 0 | AG28: 0 | AH28: 0 | AI28: 0 | AJ28: 0 | AK28: 0 | AL28: 0 | AM28: 0 | AN28: 0 | AO28: 0 | AP28: 0 | AQ28: 0 | AR28: 0 | AS28: 0 | AT28: 0 | AU28: 0 | AV28: 0 | AW28: 0 | AX28: 0 | AY28: 0 | AZ28: 0 | BA28: 0 | BB28: 0 | BC28: 0 | BD28: 0 | BE28: 0 | BF28: 0 | BG28: 0 | BH28: 0 | BI28: 0 | BJ28: 0 | BK28: 0 | BL28: 0 | BM28: 0 | BN28: 0 | BO28: 0 | BP28: 0 | BQ28: 0 | BR28: 0 | BS28: 0 | BT28: 0 | BU28: 0 | BV28: 0
E29: 2375 | F29: 0.0435 | K29: 0.0011 | L29: 0.0189 | M29: 0.0085 | N29: 0 | O29: 0.0066 | P29: 0.0084 | Q29: 0 | R29: 0 | S29: 0 | T29: 0 | U29: 0 | V29: 0 | W29: 0 | X29: 0 | Y29: 0 | Z29: 0 | AA29: 0 | AB29: 0 | AC29: 0 | AD29: 0 | AE29: 0 | AF29: 0 | AG29: 0 | AH29: 0 | AI29: 0 | AJ29: 0 | AK29: 0 | AL29: 0 | AM29: 0 | AN29: 0 | AO29: 0 | AP29: 0 | AQ29: 0 | AR29: 0 | AS29: 0 | AT29: 0 | AU29: 0 | AV29: 0 | AW29: 0 | AX29: 0 | AY29: 0 | AZ29: 0 | BA29: 0 | BB29: 0 | BC29: 0 | BD29: 0 | BE29: 0 | BF29: 0 | BG29: 0 | BH29: 0 | BI29: 0 | BJ29: 0 | BK29: 0 | BL29: 0 | BM29: 0 | BN29: 0 | BO29: 0 | BP29: 0 | BQ29: 0 | BR29: 0 | BS29: 0 | BT29: 0 | BU29: 0 | BV29: 0
E30: 2500 | F30: 0.0433 | K30: 0.0008 | L30: 0.0179 | M30: 0.0101 | N30: 0 | O30: 0.006 | P30: 0.0085 | Q30: 0 | R30: 0 | S30: 0 | T30: 0 | U30: 0 | V30: 0 | W30: 0 | X30: 0 | Y30: 0 | Z30: 0 | AA30: 0 | AB30: 0 | AC30: 0 | AD30: 0 | AE30: 0 | AF30: 0 | AG30: 0 | AH30: 0 | AI30: 0 | AJ30: 0 | AK30: 0 | AL30: 0 | AM30: 0 | AN30: 0 | AO30: 0 | AP30: 0 | AQ30: 0 | AR30: 0 | AS30: 0 | AT30: 0 | AU30: 0 | AV30: 0 | AW30: 0 | AX30: 0 | AY30: 0 | AZ30: 0 | BA30: 0 | BB30: 0 | BC30: 0 | BD30: 0 | BE30: 0 | BF30: 0 | BG30: 0 | BH30: 0 | BI30: 0 | BJ30: 0 | BK30: 0 | BL30: 0 | BM30: 0 | BN30: 0 | BO30: 0 | BP30: 0 | BQ30: 0 | BR30: 0 | BS30: 0 | BT30: 0 | BU30: 0 | BV30: 0
E31: 2625 | F31: 0.0369 | K31: 0 | L31: 0.0134 | M31: 0.0098 | N31: 0 | O31: 0.0046 | P31: 0.0091 | Q31: 0 | R31: 0 | S31: 0 | T31: 0 | U31: 0 | V31: 0 | W31: 0 | X31: 0 | Y31: 0 | Z31: 0 | AA31: 0 | AB31: 0 | AC31: 0 | AD31: 0 | AE31: 0 | AF31: 0 | AG31: 0 | AH31: 0 | AI31: 0 | AJ31: 0 | AK31: 0 | AL31: 0 | AM31: 0 | AN31: 0 | AO31: 0 | AP31: 0 | AQ31: 0 | AR31: 0 | AS31: 0 | AT31: 0 | AU31: 0 | AV31: 0 | AW31: 0 | AX31: 0 | AY31: 0 | AZ31: 0 | BA31: 0 | BB31: 0 | BC31: 0 | BD31: 0 | BE31: 0 | BF31: 0 | BG31: 0 | BH31: 0 | BI31: 0 | BJ31: 0 | BK31: 0 | BL31: 0 | BM31: 0 | BN31: 0 | BO31: 0 | BP31: 0 | BQ31: 0 | BR31: 0 | BS31: 0 | BT31: 0 | BU31: 0 | BV31: 0
E32: 2750 | F32: 0.0273 | K32: 0 | L32: 0.0098 | M32: 0.0091 | N32: 0 | O32: 0.0018 | P32: 0.0066 | Q32: 0 | R32: 0 | S32: 0 | T32: 0 | U32: 0 | V32: 0 | W32: 0 | X32: 0 | Y32: 0 | Z32: 0 | AA32: 0 | AB32: 0 | AC32: 0 | AD32: 0 | AE32: 0 | AF32: 0 | AG32: 0 | AH32: 0 | AI32: 0 | AJ32: 0 | AK32: 0 | AL32: 0 | AM32: 0 | AN32: 0 | AO32: 0 | AP32: 0 | AQ32: 0 | AR32: 0 | AS32: 0 | AT32: 0 | AU32: 0 | AV32: 0 | AW32: 0 | AX32: 0 | AY32: 0 | AZ32: 0 | BA32: 0 | BB32: 0 | BC32: 0 | BD32: 0 | BE32: 0 | BF32: 0 | BG32: 0 | BH32: 0 | BI32: 0 | BJ32: 0 | BK32: 0 | BL32: 0 | BM32: 0 | BN32: 0 | BO32: 0 | BP32: 0 | BQ32: 0 | BR32: 0 | BS32: 0 | BT32: 0 | BU32: 0 | BV32: 0
E33: 2875 | F33: 0.0255 | K33: 0 | L33: 0.0084 | M33: 0.0098 | N33: 0 | O33: 0.0009 | P33: 0.0064 | Q33: 0 | R33: 0 | S33: 0 | T33: 0 | U33: 0 | V33: 0 | W33: 0 | X33: 0 | Y33: 0 | Z33: 0 | AA33: 0 | AB33: 0 | AC33: 0 | AD33: 0 | AE33: 0 | AF33: 0 | AG33: 0 | AH33: 0 | AI33: 0 | AJ33: 0 | AK33: 0 | AL33: 0 | AM33: 0 | AN33: 0 | AO33: 0 | AP33: 0 | AQ33: 0 | AR33: 0 | AS33: 0 | AT33: 0 | AU33: 0 | AV33: 0 | AW33: 0 | AX33: 0 | AY33: 0 | AZ33: 0 | BA33: 0 | BB33: 0 | BC33: 0 | BD33: 0 | BE33: 0 | BF33: 0 | BG33: 0 | BH33: 0 | BI33: 0 | BJ33: 0 | BK33: 0 | BL33: 0 | BM33: 0 | BN33: 0 | BO33: 0 | BP33: 0 | BQ33: 0 | BR33: 0 | BS33: 0 | BT33: 0 | BU33: 0 | BV33: 0
E34: 3000 | F34: 0.0202 | K34: 0 | L34: 0.0063 | M34: 0.0102 | N34: 0 | O34: 0.0001 | P34: 0.0036 | Q34: 0 | R34: 0 | S34: 0 | T34: 0 | U34: 0 | V34: 0 | W34: 0 | X34: 0 | Y34: 0 | Z34: 0 | AA34: 0 | AB34: 0 | AC34: 0 | AD34: 0 | AE34: 0 | AF34: 0 | AG34: 0 | AH34: 0 | AI34: 0 | AJ34: 0 | AK34: 0 | AL34: 0 | AM34: 0 | AN34: 0 | AO34: 0 | AP34: 0 | AQ34: 0 | AR34: 0 | AS34: 0 | AT34: 0 | AU34: 0 | AV34: 0 | AW34: 0 | AX34: 0 | AY34: 0 | AZ34: 0 | BA34: 0 | BB34: 0 | BC34: 0 | BD34: 0 | BE34: 0 | BF34: 0 | BG34: 0 | BH34: 0 | BI34: 0 | BJ34: 0 | BK34: 0 | BL34: 0 | BM34: 0 | BN34: 0 | BO34: 0 | BP34: 0 | BQ34: 0 | BR34: 0 | BS34: 0 | BT34: 0 | BU34: 0 | BV34: 0
E35: 3125 | F35: 0.0159 | K35: 0 | L35: 0.0033 | M35: 0.0092 | N35: 0 | O35: 0 | P35: 0.0034 | Q35: 0 | R35: 0 | S35: 0 | T35: 0 | U35: 0 | V35: 0 | W35: 0 | X35: 0 | Y35: 0 | Z35: 0 | AA35: 0 | AB35: 0 | AC35: 0 | AD35: 0 | AE35: 0 | AF35: 0 | AG35: 0 | AH35: 0 | AI35: 0 | AJ35: 0 | AK35: 0 | AL35: 0 | AM35: 0 | AN35: 0 | AO35: 0 | AP35: 0 | AQ35: 0 | AR35: 0 | AS35: 0 | AT35: 0 | AU35: 0 | AV35: 0 | AW35: 0 | AX35: 0 | AY35: 0 | AZ35: 0 | BA35: 0 | BB35: 0 | BC35: 0 | BD35: 0 | BE35: 0 | BF35: 0 | BG35: 0 | BH35: 0 | BI35: 0 | BJ35: 0 | BK35: 0 | BL35: 0 | BM35: 0 | BN35: 0 | BO35: 0 | BP35: 0 | BQ35: 0 | BR35: 0 | BS35: 0 | BT35: 0 | BU35: 0 | BV35: 0
E36: 3250 | F36: 0.0118 | K36: 0 | L36: 0.0019 | M36: 0.0088 | N36: 0 | O36: 0 | P36: 0.0011 | Q36: 0 | R36: 0 | S36: 0 | T36: 0 | U36: 0 | V36: 0 | W36: 0 | X36: 0 | Y36: 0 | Z36: 0 | AA36: 0 | AB36: 0 | AC36: 0 | AD36: 0 | AE36: 0 | AF36: 0 | AG36: 0 | AH36: 0 | AI36: 0 | AJ36: 0 | AK36: 0 | AL36: 0 | AM36: 0 | AN36: 0 | AO36: 0 | AP36: 0 | AQ36: 0 | AR36: 0 | AS36: 0 | AT36: 0 | AU36: 0 | AV36: 0 | AW36: 0 | AX36: 0 | AY36: 0 | AZ36: 0 | BA36: 0 | BB36: 0 | BC36: 0 | BD36: 0 | BE36: 0 | BF36: 0 | BG36: 0 | BH36: 0 | BI36: 0 | BJ36: 0 | BK36: 0 | BL36: 0 | BM36: 0 | BN36: 0 | BO36: 0 | BP36: 0 | BQ36: 0 | BR36: 0 | BS36: 0 | BT36: 0 | BU36: 0 | BV36: 0
E37: 3375 | F37: 0.0078 | K37: 0 | L37: 0.0007 | M37: 0.0069 | N37: 0 | O37: 0 | P37: 0.0002 | Q37: 0 | R37: 0 | S37: 0 | T37: 0 | U37: 0 | V37: 0 | W37: 0 | X37: 0 | Y37: 0 | Z37: 0 | AA37: 0 | AB37: 0 | AC37: 0 | AD37: 0 | AE37: 0 | AF37: 0 | AG37: 0 | AH37: 0 | AI37: 0 | AJ37: 0 | AK37: 0 | AL37: 0 | AM37: 0 | AN37: 0 | AO37: 0 | AP37: 0 | AQ37: 0 | AR37: 0 | AS37: 0 | AT37: 0 | AU37: 0 | AV37: 0 | AW37: 0 | AX37: 0 | AY37: 0 | AZ37: 0 | BA37: 0 | BB37: 0 | BC37: 0 | BD37: 0 | BE37: 0 | BF37: 0 | BG37: 0 | BH37: 0 | BI37: 0 | BJ37: 0 | BK37: 0 | BL37: 0 | BM37: 0 | BN37: 0 | BO37: 0 | BP37: 0 | BQ37: 0 | BR37: 0 | BS37: 0 | BT37: 0 | BU37: 0 | BV37: 0
E38: 3500 | F38: 0.0056 | K38: 0 | L38: 0 | M38: 0.0055 | N38: 0 | O38: 0 | P38: 0.0001 | Q38: 0 | R38: 0 | S38: 0 | T38: 0 | U38: 0 | V38: 0 | W38: 0 | X38: 0 | Y38: 0 | Z38: 0 | AA38: 0 | AB38: 0 | AC38: 0 | AD38: 0 | AE38: 0 | AF38: 0 | AG38: 0 | AH38: 0 | AI38: 0 | AJ38: 0 | AK38: 0 | AL38: 0 | AM38: 0 | AN38: 0 | AO38: 0 | AP38: 0 | AQ38: 0 | AR38: 0 | AS38: 0 | AT38: 0 | AU38: 0 | AV38: 0 | AW38: 0 | AX38: 0 | AY38: 0 | AZ38: 0 | BA38: 0 | BB38: 0 | BC38: 0 | BD38: 0 | BE38: 0 | BF38: 0 | BG38: 0 | BH38: 0 | BI38: 0 | BJ38: 0 | BK38: 0 | BL38: 0 | BM38: 0 | BN38: 0 | BO38: 0 | BP38: 0 | BQ38: 0 | BR38: 0 | BS38: 0 | BT38: 0 | BU38: 0 | BV38: 0
E39: 3625 | F39: 0.0029 | K39: 0 | L39: 0 | M39: 0.0029 | N39: 0 | O39: 0 | P39: 0 | Q39: 0 | R39: 0 | S39: 0 | T39: 0 | U39: 0 | V39: 0 | W39: 0 | X39: 0 | Y39: 0 | Z39: 0 | AA39: 0 | AB39: 0 | AC39: 0 | AD39: 0 | AE39: 0 | AF39: 0 | AG39: 0 | AH39: 0 | AI39: 0 | AJ39: 0 | AK39: 0 | AL39: 0 | AM39: 0 | AN39: 0 | AO39: 0 | AP39: 0 | AQ39: 0 | AR39: 0 | AS39: 0 | AT39: 0 | AU39: 0 | AV39: 0 | AW39: 0 | AX39: 0 | AY39: 0 | AZ39: 0 | BA39: 0 | BB39: 0 | BC39: 0 | BD39: 0 | BE39: 0 | BF39: 0 | BG39: 0 | BH39: 0 | BI39: 0 | BJ39: 0 | BK39: 0 | BL39: 0 | BM39: 0 | BN39: 0 | BO39: 0 | BP39: 0 | BQ39: 0 | BR39: 0 | BS39: 0 | BT39: 0 | BU39: 0 | BV39: 0
E40: 3750 | F40: 0.0009 | K40: 0 | L40: 0 | M40: 0.0009 | N40: 0 | O40: 0 | P40: 0 | Q40: 0 | R40: 0 | S40: 0 | T40: 0 | U40: 0 | V40: 0 | W40: 0 | X40: 0 | Y40: 0 | Z40: 0 | AA40: 0 | AB40: 0 | AC40: 0 | AD40: 0 | AE40: 0 | AF40: 0 | AG40: 0 | AH40: 0 | AI40: 0 | AJ40: 0 | AK40: 0 | AL40: 0 | AM40: 0 | AN40: 0 | AO40: 0 | AP40: 0 | AQ40: 0 | AR40: 0 | AS40: 0 | AT40: 0 | AU40: 0 | AV40: 0 | AW40: 0 | AX40: 0 | AY40: 0 | AZ40: 0 | BA40: 0 | BB40: 0 | BC40: 0 | BD40: 0 | BE40: 0 | BF40: 0 | BG40: 0 | BH40: 0 | BI40: 0 | BJ40: 0 | BK40: 0 | BL40: 0 | BM40: 0 | BN40: 0 | BO40: 0 | BP40: 0 | BQ40: 0 | BR40: 0 | BS40: 0 | BT40: 0 | BU40: 0 | BV40: 0
E41: 3875 | F41: 0.0003 | K41: 0 | L41: 0 | M41: 0.0003 | N41: 0 | O41: 0 | P41: 0 | Q41: 0 | R41: 0 | S41: 0 | T41: 0 | U41: 0 | V41: 0 | W41: 0 | X41: 0 | Y41: 0 | Z41: 0 | AA41: 0 | AB41: 0 | AC41: 0 | AD41: 0 | AE41: 0 | AF41: 0 | AG41: 0 | AH41: 0 | AI41: 0 | AJ41: 0 | AK41: 0 | AL41: 0 | AM41: 0 | AN41: 0 | AO41: 0 | AP41: 0 | AQ41: 0 | AR41: 0 | AS41: 0 | AT41: 0 | AU41: 0 | AV41: 0 | AW41: 0 | AX41: 0 | AY41: 0 | AZ41: 0 | BA41: 0 | BB41: 0 | BC41: 0 | BD41: 0 | BE41: 0 | BF41: 0 | BG41: 0 | BH41: 0 | BI41: 0 | BJ41: 0 | BK41: 0 | BL41: 0 | BM41: 0 | BN41: 0 | BO41: 0 | BP41: 0 | BQ41: 0 | BR41: 0 | BS41: 0 | BT41: 0 | BU41: 0 | BV41: 0
E42: 4000
F66: =IFERROR(IF(ISBLANK(E67),"",COUNTIFS(MCdata,">"&E66,MCdata,"<="&E67))/runs,"") ->  | K66: =IFERROR(IF(ISBLANK($E67),"",COUNTIFS(MCdata,">"&$E66,MCdata,"<="&$E67,sc_data,"="&K$1))/runs,"") ->  | L66: =IFERROR(IF(ISBLANK($E67),"",COUNTIFS(MCdata,">"&$E66,MCdata,"<="&$E67,sc_data,"="&L$1))/runs,"") ->  | M66: =IFERROR(IF(ISBLANK($E67),"",COUNTIFS(MCdata,">"&$E66,MCdata,"<="&$E67,sc_data,"="&M$1))/runs,"") ->  | N66: =IFERROR(IF(ISBLANK($E67),"",COUNTIFS(MCdata,">"&$E66,MCdata,"<="&$E67,sc_data,"="&N$1))/runs,"") ->  | O66: =IFERROR(IF(ISBLANK($E67),"",COUNTIFS(MCdata,">"&$E66,MCdata,"<="&$E67,sc_data,"="&O$1))/runs,"") ->  | P66: =IFERROR(IF(ISBLANK($E67),"",COUNTIFS(MCdata,">"&$E66,MCdata,"<="&$E67,sc_data,"="&P$1))/runs,"") ->  | Q66: =IFERROR(IF(ISBLANK($E67),"",COUNTIFS(MCdata,">"&$E66,MCdata,"<="&$E67,sc_data,"="&Q$1))/runs,"") ->  | R66: =IFERROR(IF(ISBLANK($E67),"",COUNTIFS(MCdata,">"&$E66,MCdata,"<="&$E67,sc_data,"="&R$1))/runs,"") ->  | S66: =IFERROR(IF(ISBLANK($E67),"",COUNTIFS(MCdata,">"&$E66,MCdata,"<="&$E67,sc_data,"="&S$1))/runs,"") ->  | T66: =IFERROR(IF(ISBLANK($E67),"",COUNTIFS(MCdata,">"&$E66,MCdata,"<="&$E67,sc_data,"="&T$1))/runs,"") ->  | U66: =IFERROR(IF(ISBLANK($E67),"",COUNTIFS(MCdata,">"&$E66,MCdata,"<="&$E67,sc_data,"="&U$1))/runs,"") ->  | V66: =IFERROR(IF(ISBLANK($E67),"",COUNTIFS(MCdata,">"&$E66,MCdata,"<="&$E67,sc_data,"="&V$1))/runs,"") ->  | W66: =IFERROR(IF(ISBLANK($E67),"",COUNTIFS(MCdata,">"&$E66,MCdata,"<="&$E67,sc_data,"="&W$1))/runs,"") ->  | X66: =IFERROR(IF(ISBLANK($E67),"",COUNTIFS(MCdata,">"&$E66,MCdata,"<="&$E67,sc_data,"="&X$1))/runs,"") ->  | Y66: =IFERROR(IF(ISBLANK($E67),"",COUNTIFS(MCdata,">"&$E66,MCdata,"<="&$E67,sc_data,"="&Y$1))/runs,"") ->  | Z66: =IFERROR(IF(ISBLANK($E67),"",COUNTIFS(MCdata,">"&$E66,MCdata,"<="&$E67,sc_data,"="&Z$1))/runs,"") ->  | AA66: =IFERROR(IF(ISBLANK($E67),"",COUNTIFS(MCdata,">"&$E66,MCdata,"<="&$E67,sc_data,"="&AA$1))/runs,"") ->  | AB66: =IFERROR(IF(ISBLANK($E67),"",COUNTIFS(MCdata,">"&$E66,MCdata,"<="&$E67,sc_data,"="&AB$1))/runs,"") ->  | AC66: =IFERROR(IF(ISBLANK($E67),"",COUNTIFS(MCdata,">"&$E66,MCdata,"<="&$E67,sc_data,"="&AC$1))/runs,"") ->  | AD66: =IFERROR(IF(ISBLANK($E67),"",COUNTIFS(MCdata,">"&$E66,MCdata,"<="&$E67,sc_data,"="&AD$1))/runs,"") ->  | AE66: =IFERROR(IF(ISBLANK($E67),"",COUNTIFS(MCdata,">"&$E66,MCdata,"<="&$E67,sc_data,"="&AE$1))/runs,"") ->  | AF66: =IFERROR(IF(ISBLANK($E67),"",COUNTIFS(MCdata,">"&$E66,MCdata,"<="&$E67,sc_data,"="&AF$1))/runs,"") ->  | AG66: =IFERROR(IF(ISBLANK($E67),"",COUNTIFS(MCdata,">"&$E66,MCdata,"<="&$E67,sc_data,"="&AG$1))/runs,"") ->  | AH66: =IFERROR(IF(ISBLANK($E67),"",COUNTIFS(MCdata,">"&$E66,MCdata,"<="&$E67,sc_data,"="&AH$1))/runs,"") ->  | AI66: =IFERROR(IF(ISBLANK($E67),"",COUNTIFS(MCdata,">"&$E66,MCdata,"<="&$E67,sc_data,"="&AI$1))/runs,"") ->  | AJ66: =IFERROR(IF(ISBLANK($E67),"",COUNTIFS(MCdata,">"&$E66,MCdata,"<="&$E67,sc_data,"="&AJ$1))/runs,"") ->  | AK66: =IFERROR(IF(ISBLANK($E67),"",COUNTIFS(MCdata,">"&$E66,MCdata,"<="&$E67,sc_data,"="&AK$1))/runs,"") ->  | AL66: =IFERROR(IF(ISBLANK($E67),"",COUNTIFS(MCdata,">"&$E66,MCdata,"<="&$E67,sc_data,"="&AL$1))/runs,"") ->  | AM66: =IFERROR(IF(ISBLANK($E67),"",COUNTIFS(MCdata,">"&$E66,MCdata,"<="&$E67,sc_data,"="&AM$1))/runs,"") ->  | AN66: =IFERROR(IF(ISBLANK($E67),"",COUNTIFS(MCdata,">"&$E66,MCdata,"<="&$E67,sc_data,"="&AN$1))/runs,"") ->  | AO66: =IFERROR(IF(ISBLANK($E67),"",COUNTIFS(MCdata,">"&$E66,MCdata,"<="&$E67,sc_data,"="&AO$1))/runs,"") ->  | AP66: =IFERROR(IF(ISBLANK($E67),"",COUNTIFS(MCdata,">"&$E66,MCdata,"<="&$E67,sc_data,"="&AP$1))/runs,"") ->  | AQ66: =IFERROR(IF(ISBLANK($E67),"",COUNTIFS(MCdata,">"&$E66,MCdata,"<="&$E67,sc_data,"="&AQ$1))/runs,"") ->  | AR66: =IFERROR(IF(ISBLANK($E67),"",COUNTIFS(MCdata,">"&$E66,MCdata,"<="&$E67,sc_data,"="&AR$1))/runs,"") ->  | AS66: =IFERROR(IF(ISBLANK($E67),"",COUNTIFS(MCdata,">"&$E66,MCdata,"<="&$E67,sc_data,"="&AS$1))/runs,"") ->  | AT66: =IFERROR(IF(ISBLANK($E67),"",COUNTIFS(MCdata,">"&$E66,MCdata,"<="&$E67,sc_data,"="&AT$1))/runs,"") ->  | AU66: =IFERROR(IF(ISBLANK($E67),"",COUNTIFS(MCdata,">"&$E66,MCdata,"<="&$E67,sc_data,"="&AU$1))/runs,"") ->  | AV66: =IFERROR(IF(ISBLANK($E67),"",COUNTIFS(MCdata,">"&$E66,MCdata,"<="&$E67,sc_data,"="&AV$1))/runs,"") ->  | AW66: =IFERROR(IF(ISBLANK($E67),"",COUNTIFS(MCdata,">"&$E66,MCdata,"<="&$E67,sc_data,"="&AW$1))/runs,"") ->  | AX66: =IFERROR(IF(ISBLANK($E67),"",COUNTIFS(MCdata,">"&$E66,MCdata,"<="&$E67,sc_data,"="&AX$1))/runs,"") ->  | AY66: =IFERROR(IF(ISBLANK($E67),"",COUNTIFS(MCdata,">"&$E66,MCdata,"<="&$E67,sc_data,"="&AY$1))/runs,"") ->  | AZ66: =IFERROR(IF(ISBLANK($E67),"",COUNTIFS(MCdata,">"&$E66,MCdata,"<="&$E67,sc_data,"="&AZ$1))/runs,"") ->  | BA66: =IFERROR(IF(ISBLANK($E67),"",COUNTIFS(MCdata,">"&$E66,MCdata,"<="&$E67,sc_data,"="&BA$1))/runs,"") ->  | BB66: =IFERROR(IF(ISBLANK($E67),"",COUNTIFS(MCdata,">"&$E66,MCdata,"<="&$E67,sc_data,"="&BB$1))/runs,"") ->  | BC66: =IFERROR(IF(ISBLANK($E67),"",COUNTIFS(MCdata,">"&$E66,MCdata,"<="&$E67,sc_data,"="&BC$1))/runs,"") ->  | BD66: =IFERROR(IF(ISBLANK($E67),"",COUNTIFS(MCdata,">"&$E66,MCdata,"<="&$E67,sc_data,"="&BD$1))/runs,"") ->  | BE66: =IFERROR(IF(ISBLANK($E67),"",COUNTIFS(MCdata,">"&$E66,MCdata,"<="&$E67,sc_data,"="&BE$1))/runs,"") ->  | BF66: =IFERROR(IF(ISBLANK($E67),"",COUNTIFS(MCdata,">"&$E66,MCdata,"<="&$E67,sc_data,"="&BF$1))/runs,"") ->  | BG66: =IFERROR(IF(ISBLANK($E67),"",COUNTIFS(MCdata,">"&$E66,MCdata,"<="&$E67,sc_data,"="&BG$1))/runs,"") ->  | BH66: =IFERROR(IF(ISBLANK($E67),"",COUNTIFS(MCdata,">"&$E66,MCdata,"<="&$E67,sc_data,"="&BH$1))/runs,"") ->  | BI66: =IFERROR(IF(ISBLANK($E67),"",COUNTIFS(MCdata,">"&$E66,MCdata,"<="&$E67,sc_data,"="&BI$1))/runs,"") ->  | BJ66: =IFERROR(IF(ISBLANK($E67),"",COUNTIFS(MCdata,">"&$E66,MCdata,"<="&$E67,sc_data,"="&BJ$1))/runs,"") ->  | BK66: =IFERROR(IF(ISBLANK($E67),"",COUNTIFS(MCdata,">"&$E66,MCdata,"<="&$E67,sc_data,"="&BK$1))/runs,"") ->  | BL66: =IFERROR(IF(ISBLANK($E67),"",COUNTIFS(MCdata,">"&$E66,MCdata,"<="&$E67,sc_data,"="&BL$1))/runs,"") ->  | BM66: =IFERROR(IF(ISBLANK($E67),"",COUNTIFS(MCdata,">"&$E66,MCdata,"<="&$E67,sc_data,"="&BM$1))/runs,"") ->  | BN66: =IFERROR(IF(ISBLANK($E67),"",COUNTIFS(MCdata,">"&$E66,MCdata,"<="&$E67,sc_data,"="&BN$1))/runs,"") ->  | BO66: =IFERROR(IF(ISBLANK($E67),"",COUNTIFS(MCdata,">"&$E66,MCdata,"<="&$E67,sc_data,"="&BO$1))/runs,"") ->  | BP66: =IFERROR(IF(ISBLANK($E67),"",COUNTIFS(MCdata,">"&$E66,MCdata,"<="&$E67,sc_data,"="&BP$1))/runs,"") ->  | BQ66: =IFERROR(IF(ISBLANK($E67),"",COUNTIFS(MCdata,">"&$E66,MCdata,"<="&$E67,sc_data,"="&BQ$1))/runs,"") ->  | BR66: =IFERROR(IF(ISBLANK($E67),"",COUNTIFS(MCdata,">"&$E66,MCdata,"<="&$E67,sc_data,"="&BR$1))/runs,"") ->  | BS66: =IFERROR(IF(ISBLANK($E67),"",COUNTIFS(MCdata,">"&$E66,MCdata,"<="&$E67,sc_data,"="&BS$1))/runs,"") ->  | BT66: =IFERROR(IF(ISBLANK($E67),"",COUNTIFS(MCdata,">"&$E66,MCdata,"<="&$E67,sc_data,"="&BT$1))/runs,"") ->  | BU66: =IFERROR(IF(ISBLANK($E67),"",COUNTIFS(MCdata,">"&$E66,MCdata,"<="&$E67,sc_data,"="&BU$1))/runs,"") ->  | BV66: =IFERROR(IF(ISBLANK($E67),"",COUNTIFS(MCdata,">"&$E66,MCdata,"<="&$E67,sc_data,"="&BV$1))/runs,"") ->  | BW66: =IFERROR(IF(ISBLANK($E67),"",COUNTIFS(MCdata,">"&$E66,MCdata,"<="&$E67,scenarios,"="&BW$1))/runs,"") ->  | BX66: =IFERROR(IF(ISBLANK($E67),"",COUNTIFS(MCdata,">"&$E66,MCdata,"<="&$E67,scenarios,"="&BX$1))/runs,"") ->  | BY66: =IFERROR(IF(ISBLANK($E67),"",COUNTIFS(MCdata,">"&$E66,MCdata,"<="&$E67,scenarios,"="&BY$1))/runs,"") ->  | BZ66: =IFERROR(IF(ISBLANK($E67),"",COUNTIFS(MCdata,">"&$E66,MCdata,"<="&$E67,scenarios,"="&BZ$1))/runs,"") ->  | CA66: =IFERROR(IF(ISBLANK($E67),"",COUNTIFS(MCdata,">"&$E66,MCdata,"<="&$E67,scenarios,"="&CA$1))/runs,"") ->  | CB66: =IFERROR(IF(ISBLANK($E67),"",COUNTIFS(MCdata,">"&$E66,MCdata,"<="&$E67,scenarios,"="&CB$1))/runs,"") ->  | CC66: =IFERROR(IF(ISBLANK($E67),"",COUNTIFS(MCdata,">"&$E66,MCdata,"<="&$E67,scenarios,"="&CC$1))/runs,"") ->  | CD66: =IFERROR(IF(ISBLANK($E67),"",COUNTIFS(MCdata,">"&$E66,MCdata,"<="&$E67,scenarios,"="&CD$1))/runs,"") ->  | CE66: =IFERROR(IF(ISBLANK($E67),"",COUNTIFS(MCdata,">"&$E66,MCdata,"<="&$E67,scenarios,"="&CE$1))/runs,"") ->  | CF66: =IFERROR(IF(ISBLANK($E67),"",COUNTIFS(MCdata,">"&$E66,MCdata,"<="&$E67,scenarios,"="&CF$1))/runs,"") ->  | CG66: =IFERROR(IF(ISBLANK($E67),"",COUNTIFS(MCdata,">"&$E66,MCdata,"<="&$E67,scenarios,"="&CG$1))/runs,"") ->  | CH66: =IFERROR(IF(ISBLANK($E67),"",COUNTIFS(MCdata,">"&$E66,MCdata,"<="&$E67,scenarios,"="&CH$1))/runs,"") ->  | CI66: =IFERROR(IF(ISBLANK($E67),"",COUNTIFS(MCdata,">"&$E66,MCdata,"<="&$E67,scenarios,"="&CI$1))/runs,"") ->  | CJ66: =IFERROR(IF(ISBLANK($E67),"",COUNTIFS(MCdata,">"&$E66,MCdata,"<="&$E67,scenarios,"="&CJ$1))/runs,"") -> 
F130: =IFERROR(IF(ISBLANK(E131),"",COUNTIFS(MCdata,">"&E130,MCdata,"<="&E131))/runs,"") ->  | K130: =IFERROR(IF(ISBLANK($E131),"",COUNTIFS(MCdata,">"&$E130,MCdata,"<="&$E131,sc_data,"="&K$1))/runs,"") ->  | L130: =IFERROR(IF(ISBLANK($E131),"",COUNTIFS(MCdata,">"&$E130,MCdata,"<="&$E131,sc_data,"="&L$1))/runs,"") ->  | M130: =IFERROR(IF(ISBLANK($E131),"",COUNTIFS(MCdata,">"&$E130,MCdata,"<="&$E131,sc_data,"="&M$1))/runs,"") ->  | N130: =IFERROR(IF(ISBLANK($E131),"",COUNTIFS(MCdata,">"&$E130,MCdata,"<="&$E131,sc_data,"="&N$1))/runs,"") ->  | O130: =IFERROR(IF(ISBLANK($E131),"",COUNTIFS(MCdata,">"&$E130,MCdata,"<="&$E131,sc_data,"="&O$1))/runs,"") ->  | P130: =IFERROR(IF(ISBLANK($E131),"",COUNTIFS(MCdata,">"&$E130,MCdata,"<="&$E131,sc_data,"="&P$1))/runs,"") ->  | Q130: =IFERROR(IF(ISBLANK($E131),"",COUNTIFS(MCdata,">"&$E130,MCdata,"<="&$E131,sc_data,"="&Q$1))/runs,"") ->  | R130: =IFERROR(IF(ISBLANK($E131),"",COUNTIFS(MCdata,">"&$E130,MCdata,"<="&$E131,sc_data,"="&R$1))/runs,"") ->  | S130: =IFERROR(IF(ISBLANK($E131),"",COUNTIFS(MCdata,">"&$E130,MCdata,"<="&$E131,sc_data,"="&S$1))/runs,"") ->  | T130: =IFERROR(IF(ISBLANK($E131),"",COUNTIFS(MCdata,">"&$E130,MCdata,"<="&$E131,sc_data,"="&T$1))/runs,"") ->  | U130: =IFERROR(IF(ISBLANK($E131),"",COUNTIFS(MCdata,">"&$E130,MCdata,"<="&$E131,sc_data,"="&U$1))/runs,"") ->  | V130: =IFERROR(IF(ISBLANK($E131),"",COUNTIFS(MCdata,">"&$E130,MCdata,"<="&$E131,sc_data,"="&V$1))/runs,"") ->  | W130: =IFERROR(IF(ISBLANK($E131),"",COUNTIFS(MCdata,">"&$E130,MCdata,"<="&$E131,sc_data,"="&W$1))/runs,"") ->  | X130: =IFERROR(IF(ISBLANK($E131),"",COUNTIFS(MCdata,">"&$E130,MCdata,"<="&$E131,sc_data,"="&X$1))/runs,"") ->  | Y130: =IFERROR(IF(ISBLANK($E131),"",COUNTIFS(MCdata,">"&$E130,MCdata,"<="&$E131,sc_data,"="&Y$1))/runs,"") ->  | Z130: =IFERROR(IF(ISBLANK($E131),"",COUNTIFS(MCdata,">"&$E130,MCdata,"<="&$E131,sc_data,"="&Z$1))/runs,"") ->  | AA130: =IFERROR(IF(ISBLANK($E131),"",COUNTIFS(MCdata,">"&$E130,MCdata,"<="&$E131,sc_data,"="&AA$1))/runs,"") ->  | AB130: =IFERROR(IF(ISBLANK($E131),"",COUNTIFS(MCdata,">"&$E130,MCdata,"<="&$E131,sc_data,"="&AB$1))/runs,"") ->  | AC130: =IFERROR(IF(ISBLANK($E131),"",COUNTIFS(MCdata,">"&$E130,MCdata,"<="&$E131,sc_data,"="&AC$1))/runs,"") ->  | AD130: =IFERROR(IF(ISBLANK($E131),"",COUNTIFS(MCdata,">"&$E130,MCdata,"<="&$E131,sc_data,"="&AD$1))/runs,"") ->  | AE130: =IFERROR(IF(ISBLANK($E131),"",COUNTIFS(MCdata,">"&$E130,MCdata,"<="&$E131,sc_data,"="&AE$1))/runs,"") ->  | AF130: =IFERROR(IF(ISBLANK($E131),"",COUNTIFS(MCdata,">"&$E130,MCdata,"<="&$E131,sc_data,"="&AF$1))/runs,"") ->  | AG130: =IFERROR(IF(ISBLANK($E131),"",COUNTIFS(MCdata,">"&$E130,MCdata,"<="&$E131,sc_data,"="&AG$1))/runs,"") ->  | AH130: =IFERROR(IF(ISBLANK($E131),"",COUNTIFS(MCdata,">"&$E130,MCdata,"<="&$E131,sc_data,"="&AH$1))/runs,"") ->  | AI130: =IFERROR(IF(ISBLANK($E131),"",COUNTIFS(MCdata,">"&$E130,MCdata,"<="&$E131,sc_data,"="&AI$1))/runs,"") ->  | AJ130: =IFERROR(IF(ISBLANK($E131),"",COUNTIFS(MCdata,">"&$E130,MCdata,"<="&$E131,sc_data,"="&AJ$1))/runs,"") ->  | AK130: =IFERROR(IF(ISBLANK($E131),"",COUNTIFS(MCdata,">"&$E130,MCdata,"<="&$E131,sc_data,"="&AK$1))/runs,"") ->  | AL130: =IFERROR(IF(ISBLANK($E131),"",COUNTIFS(MCdata,">"&$E130,MCdata,"<="&$E131,sc_data,"="&AL$1))/runs,"") ->  | AM130: =IFERROR(IF(ISBLANK($E131),"",COUNTIFS(MCdata,">"&$E130,MCdata,"<="&$E131,sc_data,"="&AM$1))/runs,"") ->  | AN130: =IFERROR(IF(ISBLANK($E131),"",COUNTIFS(MCdata,">"&$E130,MCdata,"<="&$E131,sc_data,"="&AN$1))/runs,"") ->  | AO130: =IFERROR(IF(ISBLANK($E131),"",COUNTIFS(MCdata,">"&$E130,MCdata,"<="&$E131,sc_data,"="&AO$1))/runs,"") ->  | AP130: =IFERROR(IF(ISBLANK($E131),"",COUNTIFS(MCdata,">"&$E130,MCdata,"<="&$E131,sc_data,"="&AP$1))/runs,"") ->  | AQ130: =IFERROR(IF(ISBLANK($E131),"",COUNTIFS(MCdata,">"&$E130,MCdata,"<="&$E131,sc_data,"="&AQ$1))/runs,"") ->  | AR130: =IFERROR(IF(ISBLANK($E131),"",COUNTIFS(MCdata,">"&$E130,MCdata,"<="&$E131,sc_data,"="&AR$1))/runs,"") ->  | AS130: =IFERROR(IF(ISBLANK($E131),"",COUNTIFS(MCdata,">"&$E130,MCdata,"<="&$E131,sc_data,"="&AS$1))/runs,"") ->  | AT130: =IFERROR(IF(ISBLANK($E131),"",COUNTIFS(MCdata,">"&$E130,MCdata,"<="&$E131,sc_data,"="&AT$1))/runs,"") ->  | AU130: =IFERROR(IF(ISBLANK($E131),"",COUNTIFS(MCdata,">"&$E130,MCdata,"<="&$E131,sc_data,"="&AU$1))/runs,"") ->  | AV130: =IFERROR(IF(ISBLANK($E131),"",COUNTIFS(MCdata,">"&$E130,MCdata,"<="&$E131,sc_data,"="&AV$1))/runs,"") ->  | AW130: =IFERROR(IF(ISBLANK($E131),"",COUNTIFS(MCdata,">"&$E130,MCdata,"<="&$E131,sc_data,"="&AW$1))/runs,"") ->  | AX130: =IFERROR(IF(ISBLANK($E131),"",COUNTIFS(MCdata,">"&$E130,MCdata,"<="&$E131,sc_data,"="&AX$1))/runs,"") ->  | AY130: =IFERROR(IF(ISBLANK($E131),"",COUNTIFS(MCdata,">"&$E130,MCdata,"<="&$E131,sc_data,"="&AY$1))/runs,"") ->  | AZ130: =IFERROR(IF(ISBLANK($E131),"",COUNTIFS(MCdata,">"&$E130,MCdata,"<="&$E131,sc_data,"="&AZ$1))/runs,"") ->  | BA130: =IFERROR(IF(ISBLANK($E131),"",COUNTIFS(MCdata,">"&$E130,MCdata,"<="&$E131,sc_data,"="&BA$1))/runs,"") ->  | BB130: =IFERROR(IF(ISBLANK($E131),"",COUNTIFS(MCdata,">"&$E130,MCdata,"<="&$E131,sc_data,"="&BB$1))/runs,"") ->  | BC130: =IFERROR(IF(ISBLANK($E131),"",COUNTIFS(MCdata,">"&$E130,MCdata,"<="&$E131,sc_data,"="&BC$1))/runs,"") ->  | BD130: =IFERROR(IF(ISBLANK($E131),"",COUNTIFS(MCdata,">"&$E130,MCdata,"<="&$E131,sc_data,"="&BD$1))/runs,"") ->  | BE130: =IFERROR(IF(ISBLANK($E131),"",COUNTIFS(MCdata,">"&$E130,MCdata,"<="&$E131,sc_data,"="&BE$1))/runs,"") ->  | BF130: =IFERROR(IF(ISBLANK($E131),"",COUNTIFS(MCdata,">"&$E130,MCdata,"<="&$E131,sc_data,"="&BF$1))/runs,"") ->  | BG130: =IFERROR(IF(ISBLANK($E131),"",COUNTIFS(MCdata,">"&$E130,MCdata,"<="&$E131,sc_data,"="&BG$1))/runs,"") ->  | BH130: =IFERROR(IF(ISBLANK($E131),"",COUNTIFS(MCdata,">"&$E130,MCdata,"<="&$E131,sc_data,"="&BH$1))/runs,"") ->  | BI130: =IFERROR(IF(ISBLANK($E131),"",COUNTIFS(MCdata,">"&$E130,MCdata,"<="&$E131,sc_data,"="&BI$1))/runs,"") ->  | BJ130: =IFERROR(IF(ISBLANK($E131),"",COUNTIFS(MCdata,">"&$E130,MCdata,"<="&$E131,sc_data,"="&BJ$1))/runs,"") ->  | BK130: =IFERROR(IF(ISBLANK($E131),"",COUNTIFS(MCdata,">"&$E130,MCdata,"<="&$E131,sc_data,"="&BK$1))/runs,"") ->  | BL130: =IFERROR(IF(ISBLANK($E131),"",COUNTIFS(MCdata,">"&$E130,MCdata,"<="&$E131,sc_data,"="&BL$1))/runs,"") ->  | BM130: =IFERROR(IF(ISBLANK($E131),"",COUNTIFS(MCdata,">"&$E130,MCdata,"<="&$E131,sc_data,"="&BM$1))/runs,"") ->  | BN130: =IFERROR(IF(ISBLANK($E131),"",COUNTIFS(MCdata,">"&$E130,MCdata,"<="&$E131,sc_data,"="&BN$1))/runs,"") ->  | BO130: =IFERROR(IF(ISBLANK($E131),"",COUNTIFS(MCdata,">"&$E130,MCdata,"<="&$E131,sc_data,"="&BO$1))/runs,"") ->  | BP130: =IFERROR(IF(ISBLANK($E131),"",COUNTIFS(MCdata,">"&$E130,MCdata,"<="&$E131,sc_data,"="&BP$1))/runs,"") ->  | BQ130: =IFERROR(IF(ISBLANK($E131),"",COUNTIFS(MCdata,">"&$E130,MCdata,"<="&$E131,sc_data,"="&BQ$1))/runs,"") ->  | BR130: =IFERROR(IF(ISBLANK($E131),"",COUNTIFS(MCdata,">"&$E130,MCdata,"<="&$E131,sc_data,"="&BR$1))/runs,"") ->  | BS130: =IFERROR(IF(ISBLANK($E131),"",COUNTIFS(MCdata,">"&$E130,MCdata,"<="&$E131,sc_data,"="&BS$1))/runs,"") ->  | BT130: =IFERROR(IF(ISBLANK($E131),"",COUNTIFS(MCdata,">"&$E130,MCdata,"<="&$E131,sc_data,"="&BT$1))/runs,"") ->  | BU130: =IFERROR(IF(ISBLANK($E131),"",COUNTIFS(MCdata,">"&$E130,MCdata,"<="&$E131,sc_data,"="&BU$1))/runs,"") ->  | BV130: =IFERROR(IF(ISBLANK($E131),"",COUNTIFS(MCdata,">"&$E130,MCdata,"<="&$E131,sc_data,"="&BV$1))/runs,"") ->  | BW130: =IFERROR(IF(ISBLANK($E131),"",COUNTIFS(MCdata,">"&$E130,MCdata,"<="&$E131,scenarios,"="&BW$1))/runs,"") ->  | BX130: =IFERROR(IF(ISBLANK($E131),"",COUNTIFS(MCdata,">"&$E130,MCdata,"<="&$E131,scenarios,"="&BX$1))/runs,"") ->  | BY130: =IFERROR(IF(ISBLANK($E131),"",COUNTIFS(MCdata,">"&$E130,MCdata,"<="&$E131,scenarios,"="&BY$1))/runs,"") ->  | BZ130: =IFERROR(IF(ISBLANK($E131),"",COUNTIFS(MCdata,">"&$E130,MCdata,"<="&$E131,scenarios,"="&BZ$1))/runs,"") ->  | CA130: =IFERROR(IF(ISBLANK($E131),"",COUNTIFS(MCdata,">"&$E130,MCdata,"<="&$E131,scenarios,"="&CA$1))/runs,"") ->  | CB130: =IFERROR(IF(ISBLANK($E131),"",COUNTIFS(MCdata,">"&$E130,MCdata,"<="&$E131,scenarios,"="&CB$1))/runs,"") ->  | CC130: =IFERROR(IF(ISBLANK($E131),"",COUNTIFS(MCdata,">"&$E130,MCdata,"<="&$E131,scenarios,"="&CC$1))/runs,"") ->  | CD130: =IFERROR(IF(ISBLANK($E131),"",COUNTIFS(MCdata,">"&$E130,MCdata,"<="&$E131,scenarios,"="&CD$1))/runs,"") ->  | CE130: =IFERROR(IF(ISBLANK($E131),"",COUNTIFS(MCdata,">"&$E130,MCdata,"<="&$E131,scenarios,"="&CE$1))/runs,"") ->  | CF130: =IFERROR(IF(ISBLANK($E131),"",COUNTIFS(MCdata,">"&$E130,MCdata,"<="&$E131,scenarios,"="&CF$1))/runs,"") ->  | CG130: =IFERROR(IF(ISBLANK($E131),"",COUNTIFS(MCdata,">"&$E130,MCdata,"<="&$E131,scenarios,"="&CG$1))/runs,"") ->  | CH130: =IFERROR(IF(ISBLANK($E131),"",COUNTIFS(MCdata,">"&$E130,MCdata,"<="&$E131,scenarios,"="&CH$1))/runs,"") ->  | CI130: =IFERROR(IF(ISBLANK($E131),"",COUNTIFS(MCdata,">"&$E130,MCdata,"<="&$E131,scenarios,"="&CI$1))/runs,"") ->  | CJ130: =IFERROR(IF(ISBLANK($E131),"",COUNTIFS(MCdata,">"&$E130,MCdata,"<="&$E131,scenarios,"="&CJ$1))/runs,"") -> 
F194: =IFERROR(IF(ISBLANK(E195),"",COUNTIFS(MCdata,">"&E194,MCdata,"<="&E195))/runs,"") ->  | K194: =IFERROR(IF(ISBLANK($E195),"",COUNTIFS(MCdata,">"&$E194,MCdata,"<="&$E195,sc_data,"="&K$1))/runs,"") ->  | L194: =IFERROR(IF(ISBLANK($E195),"",COUNTIFS(MCdata,">"&$E194,MCdata,"<="&$E195,sc_data,"="&L$1))/runs,"") ->  | M194: =IFERROR(IF(ISBLANK($E195),"",COUNTIFS(MCdata,">"&$E194,MCdata,"<="&$E195,sc_data,"="&M$1))/runs,"") ->  | N194: =IFERROR(IF(ISBLANK($E195),"",COUNTIFS(MCdata,">"&$E194,MCdata,"<="&$E195,sc_data,"="&N$1))/runs,"") ->  | O194: =IFERROR(IF(ISBLANK($E195),"",COUNTIFS(MCdata,">"&$E194,MCdata,"<="&$E195,sc_data,"="&O$1))/runs,"") ->  | P194: =IFERROR(IF(ISBLANK($E195),"",COUNTIFS(MCdata,">"&$E194,MCdata,"<="&$E195,sc_data,"="&P$1))/runs,"") ->  | Q194: =IFERROR(IF(ISBLANK($E195),"",COUNTIFS(MCdata,">"&$E194,MCdata,"<="&$E195,sc_data,"="&Q$1))/runs,"") ->  | R194: =IFERROR(IF(ISBLANK($E195),"",COUNTIFS(MCdata,">"&$E194,MCdata,"<="&$E195,sc_data,"="&R$1))/runs,"") ->  | S194: =IFERROR(IF(ISBLANK($E195),"",COUNTIFS(MCdata,">"&$E194,MCdata,"<="&$E195,sc_data,"="&S$1))/runs,"") ->  | T194: =IFERROR(IF(ISBLANK($E195),"",COUNTIFS(MCdata,">"&$E194,MCdata,"<="&$E195,sc_data,"="&T$1))/runs,"") ->  | U194: =IFERROR(IF(ISBLANK($E195),"",COUNTIFS(MCdata,">"&$E194,MCdata,"<="&$E195,sc_data,"="&U$1))/runs,"") ->  | V194: =IFERROR(IF(ISBLANK($E195),"",COUNTIFS(MCdata,">"&$E194,MCdata,"<="&$E195,sc_data,"="&V$1))/runs,"") ->  | W194: =IFERROR(IF(ISBLANK($E195),"",COUNTIFS(MCdata,">"&$E194,MCdata,"<="&$E195,sc_data,"="&W$1))/runs,"") ->  | X194: =IFERROR(IF(ISBLANK($E195),"",COUNTIFS(MCdata,">"&$E194,MCdata,"<="&$E195,sc_data,"="&X$1))/runs,"") ->  | Y194: =IFERROR(IF(ISBLANK($E195),"",COUNTIFS(MCdata,">"&$E194,MCdata,"<="&$E195,sc_data,"="&Y$1))/runs,"") ->  | Z194: =IFERROR(IF(ISBLANK($E195),"",COUNTIFS(MCdata,">"&$E194,MCdata,"<="&$E195,sc_data,"="&Z$1))/runs,"") ->  | AA194: =IFERROR(IF(ISBLANK($E195),"",COUNTIFS(MCdata,">"&$E194,MCdata,"<="&$E195,sc_data,"="&AA$1))/runs,"") ->  | AB194: =IFERROR(IF(ISBLANK($E195),"",COUNTIFS(MCdata,">"&$E194,MCdata,"<="&$E195,sc_data,"="&AB$1))/runs,"") ->  | AC194: =IFERROR(IF(ISBLANK($E195),"",COUNTIFS(MCdata,">"&$E194,MCdata,"<="&$E195,sc_data,"="&AC$1))/runs,"") ->  | AD194: =IFERROR(IF(ISBLANK($E195),"",COUNTIFS(MCdata,">"&$E194,MCdata,"<="&$E195,sc_data,"="&AD$1))/runs,"") ->  | AE194: =IFERROR(IF(ISBLANK($E195),"",COUNTIFS(MCdata,">"&$E194,MCdata,"<="&$E195,sc_data,"="&AE$1))/runs,"") ->  | AF194: =IFERROR(IF(ISBLANK($E195),"",COUNTIFS(MCdata,">"&$E194,MCdata,"<="&$E195,sc_data,"="&AF$1))/runs,"") ->  | AG194: =IFERROR(IF(ISBLANK($E195),"",COUNTIFS(MCdata,">"&$E194,MCdata,"<="&$E195,sc_data,"="&AG$1))/runs,"") ->  | AH194: =IFERROR(IF(ISBLANK($E195),"",COUNTIFS(MCdata,">"&$E194,MCdata,"<="&$E195,sc_data,"="&AH$1))/runs,"") ->  | AI194: =IFERROR(IF(ISBLANK($E195),"",COUNTIFS(MCdata,">"&$E194,MCdata,"<="&$E195,sc_data,"="&AI$1))/runs,"") ->  | AJ194: =IFERROR(IF(ISBLANK($E195),"",COUNTIFS(MCdata,">"&$E194,MCdata,"<="&$E195,sc_data,"="&AJ$1))/runs,"") ->  | AK194: =IFERROR(IF(ISBLANK($E195),"",COUNTIFS(MCdata,">"&$E194,MCdata,"<="&$E195,sc_data,"="&AK$1))/runs,"") ->  | AL194: =IFERROR(IF(ISBLANK($E195),"",COUNTIFS(MCdata,">"&$E194,MCdata,"<="&$E195,sc_data,"="&AL$1))/runs,"") ->  | AM194: =IFERROR(IF(ISBLANK($E195),"",COUNTIFS(MCdata,">"&$E194,MCdata,"<="&$E195,sc_data,"="&AM$1))/runs,"") ->  | AN194: =IFERROR(IF(ISBLANK($E195),"",COUNTIFS(MCdata,">"&$E194,MCdata,"<="&$E195,sc_data,"="&AN$1))/runs,"") ->  | AO194: =IFERROR(IF(ISBLANK($E195),"",COUNTIFS(MCdata,">"&$E194,MCdata,"<="&$E195,sc_data,"="&AO$1))/runs,"") ->  | AP194: =IFERROR(IF(ISBLANK($E195),"",COUNTIFS(MCdata,">"&$E194,MCdata,"<="&$E195,sc_data,"="&AP$1))/runs,"") ->  | AQ194: =IFERROR(IF(ISBLANK($E195),"",COUNTIFS(MCdata,">"&$E194,MCdata,"<="&$E195,sc_data,"="&AQ$1))/runs,"") ->  | AR194: =IFERROR(IF(ISBLANK($E195),"",COUNTIFS(MCdata,">"&$E194,MCdata,"<="&$E195,sc_data,"="&AR$1))/runs,"") ->  | AS194: =IFERROR(IF(ISBLANK($E195),"",COUNTIFS(MCdata,">"&$E194,MCdata,"<="&$E195,sc_data,"="&AS$1))/runs,"") ->  | AT194: =IFERROR(IF(ISBLANK($E195),"",COUNTIFS(MCdata,">"&$E194,MCdata,"<="&$E195,sc_data,"="&AT$1))/runs,"") ->  | AU194: =IFERROR(IF(ISBLANK($E195),"",COUNTIFS(MCdata,">"&$E194,MCdata,"<="&$E195,sc_data,"="&AU$1))/runs,"") ->  | AV194: =IFERROR(IF(ISBLANK($E195),"",COUNTIFS(MCdata,">"&$E194,MCdata,"<="&$E195,sc_data,"="&AV$1))/runs,"") ->  | AW194: =IFERROR(IF(ISBLANK($E195),"",COUNTIFS(MCdata,">"&$E194,MCdata,"<="&$E195,sc_data,"="&AW$1))/runs,"") ->  | AX194: =IFERROR(IF(ISBLANK($E195),"",COUNTIFS(MCdata,">"&$E194,MCdata,"<="&$E195,sc_data,"="&AX$1))/runs,"") ->  | AY194: =IFERROR(IF(ISBLANK($E195),"",COUNTIFS(MCdata,">"&$E194,MCdata,"<="&$E195,sc_data,"="&AY$1))/runs,"") ->  | AZ194: =IFERROR(IF(ISBLANK($E195),"",COUNTIFS(MCdata,">"&$E194,MCdata,"<="&$E195,sc_data,"="&AZ$1))/runs,"") ->  | BA194: =IFERROR(IF(ISBLANK($E195),"",COUNTIFS(MCdata,">"&$E194,MCdata,"<="&$E195,sc_data,"="&BA$1))/runs,"") ->  | BB194: =IFERROR(IF(ISBLANK($E195),"",COUNTIFS(MCdata,">"&$E194,MCdata,"<="&$E195,sc_data,"="&BB$1))/runs,"") ->  | BC194: =IFERROR(IF(ISBLANK($E195),"",COUNTIFS(MCdata,">"&$E194,MCdata,"<="&$E195,sc_data,"="&BC$1))/runs,"") ->  | BD194: =IFERROR(IF(ISBLANK($E195),"",COUNTIFS(MCdata,">"&$E194,MCdata,"<="&$E195,sc_data,"="&BD$1))/runs,"") ->  | BE194: =IFERROR(IF(ISBLANK($E195),"",COUNTIFS(MCdata,">"&$E194,MCdata,"<="&$E195,sc_data,"="&BE$1))/runs,"") ->  | BF194: =IFERROR(IF(ISBLANK($E195),"",COUNTIFS(MCdata,">"&$E194,MCdata,"<="&$E195,sc_data,"="&BF$1))/runs,"") ->  | BG194: =IFERROR(IF(ISBLANK($E195),"",COUNTIFS(MCdata,">"&$E194,MCdata,"<="&$E195,sc_data,"="&BG$1))/runs,"") ->  | BH194: =IFERROR(IF(ISBLANK($E195),"",COUNTIFS(MCdata,">"&$E194,MCdata,"<="&$E195,sc_data,"="&BH$1))/runs,"") ->  | BI194: =IFERROR(IF(ISBLANK($E195),"",COUNTIFS(MCdata,">"&$E194,MCdata,"<="&$E195,sc_data,"="&BI$1))/runs,"") ->  | BJ194: =IFERROR(IF(ISBLANK($E195),"",COUNTIFS(MCdata,">"&$E194,MCdata,"<="&$E195,sc_data,"="&BJ$1))/runs,"") ->  | BK194: =IFERROR(IF(ISBLANK($E195),"",COUNTIFS(MCdata,">"&$E194,MCdata,"<="&$E195,sc_data,"="&BK$1))/runs,"") ->  | BL194: =IFERROR(IF(ISBLANK($E195),"",COUNTIFS(MCdata,">"&$E194,MCdata,"<="&$E195,sc_data,"="&BL$1))/runs,"") ->  | BM194: =IFERROR(IF(ISBLANK($E195),"",COUNTIFS(MCdata,">"&$E194,MCdata,"<="&$E195,sc_data,"="&BM$1))/runs,"") ->  | BN194: =IFERROR(IF(ISBLANK($E195),"",COUNTIFS(MCdata,">"&$E194,MCdata,"<="&$E195,sc_data,"="&BN$1))/runs,"") ->  | BO194: =IFERROR(IF(ISBLANK($E195),"",COUNTIFS(MCdata,">"&$E194,MCdata,"<="&$E195,sc_data,"="&BO$1))/runs,"") ->  | BP194: =IFERROR(IF(ISBLANK($E195),"",COUNTIFS(MCdata,">"&$E194,MCdata,"<="&$E195,sc_data,"="&BP$1))/runs,"") ->  | BQ194: =IFERROR(IF(ISBLANK($E195),"",COUNTIFS(MCdata,">"&$E194,MCdata,"<="&$E195,sc_data,"="&BQ$1))/runs,"") ->  | BR194: =IFERROR(IF(ISBLANK($E195),"",COUNTIFS(MCdata,">"&$E194,MCdata,"<="&$E195,sc_data,"="&BR$1))/runs,"") ->  | BS194: =IFERROR(IF(ISBLANK($E195),"",COUNTIFS(MCdata,">"&$E194,MCdata,"<="&$E195,sc_data,"="&BS$1))/runs,"") ->  | BT194: =IFERROR(IF(ISBLANK($E195),"",COUNTIFS(MCdata,">"&$E194,MCdata,"<="&$E195,sc_data,"="&BT$1))/runs,"") ->  | BU194: =IFERROR(IF(ISBLANK($E195),"",COUNTIFS(MCdata,">"&$E194,MCdata,"<="&$E195,sc_data,"="&BU$1))/runs,"") ->  | BV194: =IFERROR(IF(ISBLANK($E195),"",COUNTIFS(MCdata,">"&$E194,MCdata,"<="&$E195,sc_data,"="&BV$1))/runs,"") ->  | BW194: =IFERROR(IF(ISBLANK($E195),"",COUNTIFS(MCdata,">"&$E194,MCdata,"<="&$E195,scenarios,"="&BW$1))/runs,"") ->  | BX194: =IFERROR(IF(ISBLANK($E195),"",COUNTIFS(MCdata,">"&$E194,MCdata,"<="&$E195,scenarios,"="&BX$1))/runs,"") ->  | BY194: =IFERROR(IF(ISBLANK($E195),"",COUNTIFS(MCdata,">"&$E194,MCdata,"<="&$E195,scenarios,"="&BY$1))/runs,"") ->  | BZ194: =IFERROR(IF(ISBLANK($E195),"",COUNTIFS(MCdata,">"&$E194,MCdata,"<="&$E195,scenarios,"="&BZ$1))/runs,"") ->  | CA194: =IFERROR(IF(ISBLANK($E195),"",COUNTIFS(MCdata,">"&$E194,MCdata,"<="&$E195,scenarios,"="&CA$1))/runs,"") ->  | CB194: =IFERROR(IF(ISBLANK($E195),"",COUNTIFS(MCdata,">"&$E194,MCdata,"<="&$E195,scenarios,"="&CB$1))/runs,"") ->  | CC194: =IFERROR(IF(ISBLANK($E195),"",COUNTIFS(MCdata,">"&$E194,MCdata,"<="&$E195,scenarios,"="&CC$1))/runs,"") ->  | CD194: =IFERROR(IF(ISBLANK($E195),"",COUNTIFS(MCdata,">"&$E194,MCdata,"<="&$E195,scenarios,"="&CD$1))/runs,"") ->  | CE194: =IFERROR(IF(ISBLANK($E195),"",COUNTIFS(MCdata,">"&$E194,MCdata,"<="&$E195,scenarios,"="&CE$1))/runs,"") ->  | CF194: =IFERROR(IF(ISBLANK($E195),"",COUNTIFS(MCdata,">"&$E194,MCdata,"<="&$E195,scenarios,"="&CF$1))/runs,"") ->  | CG194: =IFERROR(IF(ISBLANK($E195),"",COUNTIFS(MCdata,">"&$E194,MCdata,"<="&$E195,scenarios,"="&CG$1))/runs,"") ->  | CH194: =IFERROR(IF(ISBLANK($E195),"",COUNTIFS(MCdata,">"&$E194,MCdata,"<="&$E195,scenarios,"="&CH$1))/runs,"") ->  | CI194: =IFERROR(IF(ISBLANK($E195),"",COUNTIFS(MCdata,">"&$E194,MCdata,"<="&$E195,scenarios,"="&CI$1))/runs,"") ->  | CJ194: =IFERROR(IF(ISBLANK($E195),"",COUNTIFS(MCdata,">"&$E194,MCdata,"<="&$E195,scenarios,"="&CJ$1))/runs,"") -> 
F258: =IFERROR(IF(ISBLANK(E259),"",COUNTIFS(MCdata,">"&E258,MCdata,"<="&E259))/runs,"") ->  | K258: =IFERROR(IF(ISBLANK($E259),"",COUNTIFS(MCdata,">"&$E258,MCdata,"<="&$E259,sc_data,"="&K$1))/runs,"") ->  | L258: =IFERROR(IF(ISBLANK($E259),"",COUNTIFS(MCdata,">"&$E258,MCdata,"<="&$E259,sc_data,"="&L$1))/runs,"") ->  | M258: =IFERROR(IF(ISBLANK($E259),"",COUNTIFS(MCdata,">"&$E258,MCdata,"<="&$E259,sc_data,"="&M$1))/runs,"") ->  | N258: =IFERROR(IF(ISBLANK($E259),"",COUNTIFS(MCdata,">"&$E258,MCdata,"<="&$E259,sc_data,"="&N$1))/runs,"") ->  | O258: =IFERROR(IF(ISBLANK($E259),"",COUNTIFS(MCdata,">"&$E258,MCdata,"<="&$E259,sc_data,"="&O$1))/runs,"") ->  | P258: =IFERROR(IF(ISBLANK($E259),"",COUNTIFS(MCdata,">"&$E258,MCdata,"<="&$E259,sc_data,"="&P$1))/runs,"") ->  | Q258: =IFERROR(IF(ISBLANK($E259),"",COUNTIFS(MCdata,">"&$E258,MCdata,"<="&$E259,sc_data,"="&Q$1))/runs,"") ->  | R258: =IFERROR(IF(ISBLANK($E259),"",COUNTIFS(MCdata,">"&$E258,MCdata,"<="&$E259,sc_data,"="&R$1))/runs,"") ->  | S258: =IFERROR(IF(ISBLANK($E259),"",COUNTIFS(MCdata,">"&$E258,MCdata,"<="&$E259,sc_data,"="&S$1))/runs,"") ->  | T258: =IFERROR(IF(ISBLANK($E259),"",COUNTIFS(MCdata,">"&$E258,MCdata,"<="&$E259,sc_data,"="&T$1))/runs,"") ->  | U258: =IFERROR(IF(ISBLANK($E259),"",COUNTIFS(MCdata,">"&$E258,MCdata,"<="&$E259,sc_data,"="&U$1))/runs,"") ->  | V258: =IFERROR(IF(ISBLANK($E259),"",COUNTIFS(MCdata,">"&$E258,MCdata,"<="&$E259,sc_data,"="&V$1))/runs,"") ->  | W258: =IFERROR(IF(ISBLANK($E259),"",COUNTIFS(MCdata,">"&$E258,MCdata,"<="&$E259,sc_data,"="&W$1))/runs,"") ->  | X258: =IFERROR(IF(ISBLANK($E259),"",COUNTIFS(MCdata,">"&$E258,MCdata,"<="&$E259,sc_data,"="&X$1))/runs,"") ->  | Y258: =IFERROR(IF(ISBLANK($E259),"",COUNTIFS(MCdata,">"&$E258,MCdata,"<="&$E259,sc_data,"="&Y$1))/runs,"") ->  | Z258: =IFERROR(IF(ISBLANK($E259),"",COUNTIFS(MCdata,">"&$E258,MCdata,"<="&$E259,sc_data,"="&Z$1))/runs,"") ->  | AA258: =IFERROR(IF(ISBLANK($E259),"",COUNTIFS(MCdata,">"&$E258,MCdata,"<="&$E259,sc_data,"="&AA$1))/runs,"") ->  | AB258: =IFERROR(IF(ISBLANK($E259),"",COUNTIFS(MCdata,">"&$E258,MCdata,"<="&$E259,sc_data,"="&AB$1))/runs,"") ->  | AC258: =IFERROR(IF(ISBLANK($E259),"",COUNTIFS(MCdata,">"&$E258,MCdata,"<="&$E259,sc_data,"="&AC$1))/runs,"") ->  | AD258: =IFERROR(IF(ISBLANK($E259),"",COUNTIFS(MCdata,">"&$E258,MCdata,"<="&$E259,sc_data,"="&AD$1))/runs,"") ->  | AE258: =IFERROR(IF(ISBLANK($E259),"",COUNTIFS(MCdata,">"&$E258,MCdata,"<="&$E259,sc_data,"="&AE$1))/runs,"") ->  | AF258: =IFERROR(IF(ISBLANK($E259),"",COUNTIFS(MCdata,">"&$E258,MCdata,"<="&$E259,sc_data,"="&AF$1))/runs,"") ->  | AG258: =IFERROR(IF(ISBLANK($E259),"",COUNTIFS(MCdata,">"&$E258,MCdata,"<="&$E259,sc_data,"="&AG$1))/runs,"") ->  | AH258: =IFERROR(IF(ISBLANK($E259),"",COUNTIFS(MCdata,">"&$E258,MCdata,"<="&$E259,sc_data,"="&AH$1))/runs,"") ->  | AI258: =IFERROR(IF(ISBLANK($E259),"",COUNTIFS(MCdata,">"&$E258,MCdata,"<="&$E259,sc_data,"="&AI$1))/runs,"") ->  | AJ258: =IFERROR(IF(ISBLANK($E259),"",COUNTIFS(MCdata,">"&$E258,MCdata,"<="&$E259,sc_data,"="&AJ$1))/runs,"") ->  | AK258: =IFERROR(IF(ISBLANK($E259),"",COUNTIFS(MCdata,">"&$E258,MCdata,"<="&$E259,sc_data,"="&AK$1))/runs,"") ->  | AL258: =IFERROR(IF(ISBLANK($E259),"",COUNTIFS(MCdata,">"&$E258,MCdata,"<="&$E259,sc_data,"="&AL$1))/runs,"") ->  | AM258: =IFERROR(IF(ISBLANK($E259),"",COUNTIFS(MCdata,">"&$E258,MCdata,"<="&$E259,sc_data,"="&AM$1))/runs,"") ->  | AN258: =IFERROR(IF(ISBLANK($E259),"",COUNTIFS(MCdata,">"&$E258,MCdata,"<="&$E259,sc_data,"="&AN$1))/runs,"") ->  | AO258: =IFERROR(IF(ISBLANK($E259),"",COUNTIFS(MCdata,">"&$E258,MCdata,"<="&$E259,sc_data,"="&AO$1))/runs,"") ->  | AP258: =IFERROR(IF(ISBLANK($E259),"",COUNTIFS(MCdata,">"&$E258,MCdata,"<="&$E259,sc_data,"="&AP$1))/runs,"") ->  | AQ258: =IFERROR(IF(ISBLANK($E259),"",COUNTIFS(MCdata,">"&$E258,MCdata,"<="&$E259,sc_data,"="&AQ$1))/runs,"") ->  | AR258: =IFERROR(IF(ISBLANK($E259),"",COUNTIFS(MCdata,">"&$E258,MCdata,"<="&$E259,sc_data,"="&AR$1))/runs,"") ->  | AS258: =IFERROR(IF(ISBLANK($E259),"",COUNTIFS(MCdata,">"&$E258,MCdata,"<="&$E259,sc_data,"="&AS$1))/runs,"") ->  | AT258: =IFERROR(IF(ISBLANK($E259),"",COUNTIFS(MCdata,">"&$E258,MCdata,"<="&$E259,sc_data,"="&AT$1))/runs,"") ->  | AU258: =IFERROR(IF(ISBLANK($E259),"",COUNTIFS(MCdata,">"&$E258,MCdata,"<="&$E259,sc_data,"="&AU$1))/runs,"") ->  | AV258: =IFERROR(IF(ISBLANK($E259),"",COUNTIFS(MCdata,">"&$E258,MCdata,"<="&$E259,sc_data,"="&AV$1))/runs,"") ->  | AW258: =IFERROR(IF(ISBLANK($E259),"",COUNTIFS(MCdata,">"&$E258,MCdata,"<="&$E259,sc_data,"="&AW$1))/runs,"") ->  | AX258: =IFERROR(IF(ISBLANK($E259),"",COUNTIFS(MCdata,">"&$E258,MCdata,"<="&$E259,sc_data,"="&AX$1))/runs,"") ->  | AY258: =IFERROR(IF(ISBLANK($E259),"",COUNTIFS(MCdata,">"&$E258,MCdata,"<="&$E259,sc_data,"="&AY$1))/runs,"") ->  | AZ258: =IFERROR(IF(ISBLANK($E259),"",COUNTIFS(MCdata,">"&$E258,MCdata,"<="&$E259,sc_data,"="&AZ$1))/runs,"") ->  | BA258: =IFERROR(IF(ISBLANK($E259),"",COUNTIFS(MCdata,">"&$E258,MCdata,"<="&$E259,sc_data,"="&BA$1))/runs,"") ->  | BB258: =IFERROR(IF(ISBLANK($E259),"",COUNTIFS(MCdata,">"&$E258,MCdata,"<="&$E259,sc_data,"="&BB$1))/runs,"") ->  | BC258: =IFERROR(IF(ISBLANK($E259),"",COUNTIFS(MCdata,">"&$E258,MCdata,"<="&$E259,sc_data,"="&BC$1))/runs,"") ->  | BD258: =IFERROR(IF(ISBLANK($E259),"",COUNTIFS(MCdata,">"&$E258,MCdata,"<="&$E259,sc_data,"="&BD$1))/runs,"") ->  | BE258: =IFERROR(IF(ISBLANK($E259),"",COUNTIFS(MCdata,">"&$E258,MCdata,"<="&$E259,sc_data,"="&BE$1))/runs,"") ->  | BF258: =IFERROR(IF(ISBLANK($E259),"",COUNTIFS(MCdata,">"&$E258,MCdata,"<="&$E259,sc_data,"="&BF$1))/runs,"") ->  | BG258: =IFERROR(IF(ISBLANK($E259),"",COUNTIFS(MCdata,">"&$E258,MCdata,"<="&$E259,sc_data,"="&BG$1))/runs,"") ->  | BH258: =IFERROR(IF(ISBLANK($E259),"",COUNTIFS(MCdata,">"&$E258,MCdata,"<="&$E259,sc_data,"="&BH$1))/runs,"") ->  | BI258: =IFERROR(IF(ISBLANK($E259),"",COUNTIFS(MCdata,">"&$E258,MCdata,"<="&$E259,sc_data,"="&BI$1))/runs,"") ->  | BJ258: =IFERROR(IF(ISBLANK($E259),"",COUNTIFS(MCdata,">"&$E258,MCdata,"<="&$E259,sc_data,"="&BJ$1))/runs,"") ->  | BK258: =IFERROR(IF(ISBLANK($E259),"",COUNTIFS(MCdata,">"&$E258,MCdata,"<="&$E259,sc_data,"="&BK$1))/runs,"") ->  | BL258: =IFERROR(IF(ISBLANK($E259),"",COUNTIFS(MCdata,">"&$E258,MCdata,"<="&$E259,sc_data,"="&BL$1))/runs,"") ->  | BM258: =IFERROR(IF(ISBLANK($E259),"",COUNTIFS(MCdata,">"&$E258,MCdata,"<="&$E259,sc_data,"="&BM$1))/runs,"") ->  | BN258: =IFERROR(IF(ISBLANK($E259),"",COUNTIFS(MCdata,">"&$E258,MCdata,"<="&$E259,sc_data,"="&BN$1))/runs,"") ->  | BO258: =IFERROR(IF(ISBLANK($E259),"",COUNTIFS(MCdata,">"&$E258,MCdata,"<="&$E259,sc_data,"="&BO$1))/runs,"") ->  | BP258: =IFERROR(IF(ISBLANK($E259),"",COUNTIFS(MCdata,">"&$E258,MCdata,"<="&$E259,sc_data,"="&BP$1))/runs,"") ->  | BQ258: =IFERROR(IF(ISBLANK($E259),"",COUNTIFS(MCdata,">"&$E258,MCdata,"<="&$E259,sc_data,"="&BQ$1))/runs,"") ->  | BR258: =IFERROR(IF(ISBLANK($E259),"",COUNTIFS(MCdata,">"&$E258,MCdata,"<="&$E259,sc_data,"="&BR$1))/runs,"") ->  | BS258: =IFERROR(IF(ISBLANK($E259),"",COUNTIFS(MCdata,">"&$E258,MCdata,"<="&$E259,sc_data,"="&BS$1))/runs,"") ->  | BT258: =IFERROR(IF(ISBLANK($E259),"",COUNTIFS(MCdata,">"&$E258,MCdata,"<="&$E259,sc_data,"="&BT$1))/runs,"") ->  | BU258: =IFERROR(IF(ISBLANK($E259),"",COUNTIFS(MCdata,">"&$E258,MCdata,"<="&$E259,sc_data,"="&BU$1))/runs,"") ->  | BV258: =IFERROR(IF(ISBLANK($E259),"",COUNTIFS(MCdata,">"&$E258,MCdata,"<="&$E259,sc_data,"="&BV$1))/runs,"") ->  | BW258: =IFERROR(IF(ISBLANK($E259),"",COUNTIFS(MCdata,">"&$E258,MCdata,"<="&$E259,scenarios,"="&BW$1))/runs,"") ->  | BX258: =IFERROR(IF(ISBLANK($E259),"",COUNTIFS(MCdata,">"&$E258,MCdata,"<="&$E259,scenarios,"="&BX$1))/runs,"") ->  | BY258: =IFERROR(IF(ISBLANK($E259),"",COUNTIFS(MCdata,">"&$E258,MCdata,"<="&$E259,scenarios,"="&BY$1))/runs,"") ->  | BZ258: =IFERROR(IF(ISBLANK($E259),"",COUNTIFS(MCdata,">"&$E258,MCdata,"<="&$E259,scenarios,"="&BZ$1))/runs,"") ->  | CA258: =IFERROR(IF(ISBLANK($E259),"",COUNTIFS(MCdata,">"&$E258,MCdata,"<="&$E259,scenarios,"="&CA$1))/runs,"") ->  | CB258: =IFERROR(IF(ISBLANK($E259),"",COUNTIFS(MCdata,">"&$E258,MCdata,"<="&$E259,scenarios,"="&CB$1))/runs,"") ->  | CC258: =IFERROR(IF(ISBLANK($E259),"",COUNTIFS(MCdata,">"&$E258,MCdata,"<="&$E259,scenarios,"="&CC$1))/runs,"") ->  | CD258: =IFERROR(IF(ISBLANK($E259),"",COUNTIFS(MCdata,">"&$E258,MCdata,"<="&$E259,scenarios,"="&CD$1))/runs,"") ->  | CE258: =IFERROR(IF(ISBLANK($E259),"",COUNTIFS(MCdata,">"&$E258,MCdata,"<="&$E259,scenarios,"="&CE$1))/runs,"") ->  | CF258: =IFERROR(IF(ISBLANK($E259),"",COUNTIFS(MCdata,">"&$E258,MCdata,"<="&$E259,scenarios,"="&CF$1))/runs,"") ->  | CG258: =IFERROR(IF(ISBLANK($E259),"",COUNTIFS(MCdata,">"&$E258,MCdata,"<="&$E259,scenarios,"="&CG$1))/runs,"") ->  | CH258: =IFERROR(IF(ISBLANK($E259),"",COUNTIFS(MCdata,">"&$E258,MCdata,"<="&$E259,scenarios,"="&CH$1))/runs,"") ->  | CI258: =IFERROR(IF(ISBLANK($E259),"",COUNTIFS(MCdata,">"&$E258,MCdata,"<="&$E259,scenarios,"="&CI$1))/runs,"") ->  | CJ258: =IFERROR(IF(ISBLANK($E259),"",COUNTIFS(MCdata,">"&$E258,MCdata,"<="&$E259,scenarios,"="&CJ$1))/runs,"") -> 
F322: =IFERROR(IF(ISBLANK(E323),"",COUNTIFS(MCdata,">"&E322,MCdata,"<="&E323))/runs,"") ->  | K322: =IFERROR(IF(ISBLANK($E323),"",COUNTIFS(MCdata,">"&$E322,MCdata,"<="&$E323,sc_data,"="&K$1))/runs,"") ->  | L322: =IFERROR(IF(ISBLANK($E323),"",COUNTIFS(MCdata,">"&$E322,MCdata,"<="&$E323,sc_data,"="&L$1))/runs,"") ->  | M322: =IFERROR(IF(ISBLANK($E323),"",COUNTIFS(MCdata,">"&$E322,MCdata,"<="&$E323,sc_data,"="&M$1))/runs,"") ->  | N322: =IFERROR(IF(ISBLANK($E323),"",COUNTIFS(MCdata,">"&$E322,MCdata,"<="&$E323,sc_data,"="&N$1))/runs,"") ->  | O322: =IFERROR(IF(ISBLANK($E323),"",COUNTIFS(MCdata,">"&$E322,MCdata,"<="&$E323,sc_data,"="&O$1))/runs,"") ->  | P322: =IFERROR(IF(ISBLANK($E323),"",COUNTIFS(MCdata,">"&$E322,MCdata,"<="&$E323,sc_data,"="&P$1))/runs,"") ->  | Q322: =IFERROR(IF(ISBLANK($E323),"",COUNTIFS(MCdata,">"&$E322,MCdata,"<="&$E323,sc_data,"="&Q$1))/runs,"") ->  | R322: =IFERROR(IF(ISBLANK($E323),"",COUNTIFS(MCdata,">"&$E322,MCdata,"<="&$E323,sc_data,"="&R$1))/runs,"") ->  | S322: =IFERROR(IF(ISBLANK($E323),"",COUNTIFS(MCdata,">"&$E322,MCdata,"<="&$E323,sc_data,"="&S$1))/runs,"") ->  | T322: =IFERROR(IF(ISBLANK($E323),"",COUNTIFS(MCdata,">"&$E322,MCdata,"<="&$E323,sc_data,"="&T$1))/runs,"") ->  | U322: =IFERROR(IF(ISBLANK($E323),"",COUNTIFS(MCdata,">"&$E322,MCdata,"<="&$E323,sc_data,"="&U$1))/runs,"") ->  | V322: =IFERROR(IF(ISBLANK($E323),"",COUNTIFS(MCdata,">"&$E322,MCdata,"<="&$E323,sc_data,"="&V$1))/runs,"") ->  | W322: =IFERROR(IF(ISBLANK($E323),"",COUNTIFS(MCdata,">"&$E322,MCdata,"<="&$E323,sc_data,"="&W$1))/runs,"") ->  | X322: =IFERROR(IF(ISBLANK($E323),"",COUNTIFS(MCdata,">"&$E322,MCdata,"<="&$E323,sc_data,"="&X$1))/runs,"") ->  | Y322: =IFERROR(IF(ISBLANK($E323),"",COUNTIFS(MCdata,">"&$E322,MCdata,"<="&$E323,sc_data,"="&Y$1))/runs,"") ->  | Z322: =IFERROR(IF(ISBLANK($E323),"",COUNTIFS(MCdata,">"&$E322,MCdata,"<="&$E323,sc_data,"="&Z$1))/runs,"") ->  | AA322: =IFERROR(IF(ISBLANK($E323),"",COUNTIFS(MCdata,">"&$E322,MCdata,"<="&$E323,sc_data,"="&AA$1))/runs,"") ->  | AB322: =IFERROR(IF(ISBLANK($E323),"",COUNTIFS(MCdata,">"&$E322,MCdata,"<="&$E323,sc_data,"="&AB$1))/runs,"") ->  | AC322: =IFERROR(IF(ISBLANK($E323),"",COUNTIFS(MCdata,">"&$E322,MCdata,"<="&$E323,sc_data,"="&AC$1))/runs,"") ->  | AD322: =IFERROR(IF(ISBLANK($E323),"",COUNTIFS(MCdata,">"&$E322,MCdata,"<="&$E323,sc_data,"="&AD$1))/runs,"") ->  | AE322: =IFERROR(IF(ISBLANK($E323),"",COUNTIFS(MCdata,">"&$E322,MCdata,"<="&$E323,sc_data,"="&AE$1))/runs,"") ->  | AF322: =IFERROR(IF(ISBLANK($E323),"",COUNTIFS(MCdata,">"&$E322,MCdata,"<="&$E323,sc_data,"="&AF$1))/runs,"") ->  | AG322: =IFERROR(IF(ISBLANK($E323),"",COUNTIFS(MCdata,">"&$E322,MCdata,"<="&$E323,sc_data,"="&AG$1))/runs,"") ->  | AH322: =IFERROR(IF(ISBLANK($E323),"",COUNTIFS(MCdata,">"&$E322,MCdata,"<="&$E323,sc_data,"="&AH$1))/runs,"") ->  | AI322: =IFERROR(IF(ISBLANK($E323),"",COUNTIFS(MCdata,">"&$E322,MCdata,"<="&$E323,sc_data,"="&AI$1))/runs,"") ->  | AJ322: =IFERROR(IF(ISBLANK($E323),"",COUNTIFS(MCdata,">"&$E322,MCdata,"<="&$E323,sc_data,"="&AJ$1))/runs,"") ->  | AK322: =IFERROR(IF(ISBLANK($E323),"",COUNTIFS(MCdata,">"&$E322,MCdata,"<="&$E323,sc_data,"="&AK$1))/runs,"") ->  | AL322: =IFERROR(IF(ISBLANK($E323),"",COUNTIFS(MCdata,">"&$E322,MCdata,"<="&$E323,sc_data,"="&AL$1))/runs,"") ->  | AM322: =IFERROR(IF(ISBLANK($E323),"",COUNTIFS(MCdata,">"&$E322,MCdata,"<="&$E323,sc_data,"="&AM$1))/runs,"") ->  | AN322: =IFERROR(IF(ISBLANK($E323),"",COUNTIFS(MCdata,">"&$E322,MCdata,"<="&$E323,sc_data,"="&AN$1))/runs,"") ->  | AO322: =IFERROR(IF(ISBLANK($E323),"",COUNTIFS(MCdata,">"&$E322,MCdata,"<="&$E323,sc_data,"="&AO$1))/runs,"") ->  | AP322: =IFERROR(IF(ISBLANK($E323),"",COUNTIFS(MCdata,">"&$E322,MCdata,"<="&$E323,sc_data,"="&AP$1))/runs,"") ->  | AQ322: =IFERROR(IF(ISBLANK($E323),"",COUNTIFS(MCdata,">"&$E322,MCdata,"<="&$E323,sc_data,"="&AQ$1))/runs,"") ->  | AR322: =IFERROR(IF(ISBLANK($E323),"",COUNTIFS(MCdata,">"&$E322,MCdata,"<="&$E323,sc_data,"="&AR$1))/runs,"") ->  | AS322: =IFERROR(IF(ISBLANK($E323),"",COUNTIFS(MCdata,">"&$E322,MCdata,"<="&$E323,sc_data,"="&AS$1))/runs,"") ->  | AT322: =IFERROR(IF(ISBLANK($E323),"",COUNTIFS(MCdata,">"&$E322,MCdata,"<="&$E323,sc_data,"="&AT$1))/runs,"") ->  | AU322: =IFERROR(IF(ISBLANK($E323),"",COUNTIFS(MCdata,">"&$E322,MCdata,"<="&$E323,sc_data,"="&AU$1))/runs,"") ->  | AV322: =IFERROR(IF(ISBLANK($E323),"",COUNTIFS(MCdata,">"&$E322,MCdata,"<="&$E323,sc_data,"="&AV$1))/runs,"") ->  | AW322: =IFERROR(IF(ISBLANK($E323),"",COUNTIFS(MCdata,">"&$E322,MCdata,"<="&$E323,sc_data,"="&AW$1))/runs,"") ->  | AX322: =IFERROR(IF(ISBLANK($E323),"",COUNTIFS(MCdata,">"&$E322,MCdata,"<="&$E323,sc_data,"="&AX$1))/runs,"") ->  | AY322: =IFERROR(IF(ISBLANK($E323),"",COUNTIFS(MCdata,">"&$E322,MCdata,"<="&$E323,sc_data,"="&AY$1))/runs,"") ->  | AZ322: =IFERROR(IF(ISBLANK($E323),"",COUNTIFS(MCdata,">"&$E322,MCdata,"<="&$E323,sc_data,"="&AZ$1))/runs,"") ->  | BA322: =IFERROR(IF(ISBLANK($E323),"",COUNTIFS(MCdata,">"&$E322,MCdata,"<="&$E323,sc_data,"="&BA$1))/runs,"") ->  | BB322: =IFERROR(IF(ISBLANK($E323),"",COUNTIFS(MCdata,">"&$E322,MCdata,"<="&$E323,sc_data,"="&BB$1))/runs,"") ->  | BC322: =IFERROR(IF(ISBLANK($E323),"",COUNTIFS(MCdata,">"&$E322,MCdata,"<="&$E323,sc_data,"="&BC$1))/runs,"") ->  | BD322: =IFERROR(IF(ISBLANK($E323),"",COUNTIFS(MCdata,">"&$E322,MCdata,"<="&$E323,sc_data,"="&BD$1))/runs,"") ->  | BE322: =IFERROR(IF(ISBLANK($E323),"",COUNTIFS(MCdata,">"&$E322,MCdata,"<="&$E323,sc_data,"="&BE$1))/runs,"") ->  | BF322: =IFERROR(IF(ISBLANK($E323),"",COUNTIFS(MCdata,">"&$E322,MCdata,"<="&$E323,sc_data,"="&BF$1))/runs,"") ->  | BG322: =IFERROR(IF(ISBLANK($E323),"",COUNTIFS(MCdata,">"&$E322,MCdata,"<="&$E323,sc_data,"="&BG$1))/runs,"") ->  | BH322: =IFERROR(IF(ISBLANK($E323),"",COUNTIFS(MCdata,">"&$E322,MCdata,"<="&$E323,sc_data,"="&BH$1))/runs,"") ->  | BI322: =IFERROR(IF(ISBLANK($E323),"",COUNTIFS(MCdata,">"&$E322,MCdata,"<="&$E323,sc_data,"="&BI$1))/runs,"") ->  | BJ322: =IFERROR(IF(ISBLANK($E323),"",COUNTIFS(MCdata,">"&$E322,MCdata,"<="&$E323,sc_data,"="&BJ$1))/runs,"") ->  | BK322: =IFERROR(IF(ISBLANK($E323),"",COUNTIFS(MCdata,">"&$E322,MCdata,"<="&$E323,sc_data,"="&BK$1))/runs,"") ->  | BL322: =IFERROR(IF(ISBLANK($E323),"",COUNTIFS(MCdata,">"&$E322,MCdata,"<="&$E323,sc_data,"="&BL$1))/runs,"") ->  | BM322: =IFERROR(IF(ISBLANK($E323),"",COUNTIFS(MCdata,">"&$E322,MCdata,"<="&$E323,sc_data,"="&BM$1))/runs,"") ->  | BN322: =IFERROR(IF(ISBLANK($E323),"",COUNTIFS(MCdata,">"&$E322,MCdata,"<="&$E323,sc_data,"="&BN$1))/runs,"") ->  | BO322: =IFERROR(IF(ISBLANK($E323),"",COUNTIFS(MCdata,">"&$E322,MCdata,"<="&$E323,sc_data,"="&BO$1))/runs,"") ->  | BP322: =IFERROR(IF(ISBLANK($E323),"",COUNTIFS(MCdata,">"&$E322,MCdata,"<="&$E323,sc_data,"="&BP$1))/runs,"") ->  | BQ322: =IFERROR(IF(ISBLANK($E323),"",COUNTIFS(MCdata,">"&$E322,MCdata,"<="&$E323,sc_data,"="&BQ$1))/runs,"") ->  | BR322: =IFERROR(IF(ISBLANK($E323),"",COUNTIFS(MCdata,">"&$E322,MCdata,"<="&$E323,sc_data,"="&BR$1))/runs,"") ->  | BS322: =IFERROR(IF(ISBLANK($E323),"",COUNTIFS(MCdata,">"&$E322,MCdata,"<="&$E323,sc_data,"="&BS$1))/runs,"") ->  | BT322: =IFERROR(IF(ISBLANK($E323),"",COUNTIFS(MCdata,">"&$E322,MCdata,"<="&$E323,sc_data,"="&BT$1))/runs,"") ->  | BU322: =IFERROR(IF(ISBLANK($E323),"",COUNTIFS(MCdata,">"&$E322,MCdata,"<="&$E323,sc_data,"="&BU$1))/runs,"") ->  | BV322: =IFERROR(IF(ISBLANK($E323),"",COUNTIFS(MCdata,">"&$E322,MCdata,"<="&$E323,sc_data,"="&BV$1))/runs,"") ->  | BW322: =IFERROR(IF(ISBLANK($E323),"",COUNTIFS(MCdata,">"&$E322,MCdata,"<="&$E323,scenarios,"="&BW$1))/runs,"") ->  | BX322: =IFERROR(IF(ISBLANK($E323),"",COUNTIFS(MCdata,">"&$E322,MCdata,"<="&$E323,scenarios,"="&BX$1))/runs,"") ->  | BY322: =IFERROR(IF(ISBLANK($E323),"",COUNTIFS(MCdata,">"&$E322,MCdata,"<="&$E323,scenarios,"="&BY$1))/runs,"") ->  | BZ322: =IFERROR(IF(ISBLANK($E323),"",COUNTIFS(MCdata,">"&$E322,MCdata,"<="&$E323,scenarios,"="&BZ$1))/runs,"") ->  | CA322: =IFERROR(IF(ISBLANK($E323),"",COUNTIFS(MCdata,">"&$E322,MCdata,"<="&$E323,scenarios,"="&CA$1))/runs,"") ->  | CB322: =IFERROR(IF(ISBLANK($E323),"",COUNTIFS(MCdata,">"&$E322,MCdata,"<="&$E323,scenarios,"="&CB$1))/runs,"") ->  | CC322: =IFERROR(IF(ISBLANK($E323),"",COUNTIFS(MCdata,">"&$E322,MCdata,"<="&$E323,scenarios,"="&CC$1))/runs,"") ->  | CD322: =IFERROR(IF(ISBLANK($E323),"",COUNTIFS(MCdata,">"&$E322,MCdata,"<="&$E323,scenarios,"="&CD$1))/runs,"") ->  | CE322: =IFERROR(IF(ISBLANK($E323),"",COUNTIFS(MCdata,">"&$E322,MCdata,"<="&$E323,scenarios,"="&CE$1))/runs,"") ->  | CF322: =IFERROR(IF(ISBLANK($E323),"",COUNTIFS(MCdata,">"&$E322,MCdata,"<="&$E323,scenarios,"="&CF$1))/runs,"") ->  | CG322: =IFERROR(IF(ISBLANK($E323),"",COUNTIFS(MCdata,">"&$E322,MCdata,"<="&$E323,scenarios,"="&CG$1))/runs,"") ->  | CH322: =IFERROR(IF(ISBLANK($E323),"",COUNTIFS(MCdata,">"&$E322,MCdata,"<="&$E323,scenarios,"="&CH$1))/runs,"") ->  | CI322: =IFERROR(IF(ISBLANK($E323),"",COUNTIFS(MCdata,">"&$E322,MCdata,"<="&$E323,scenarios,"="&CI$1))/runs,"") ->  | CJ322: =IFERROR(IF(ISBLANK($E323),"",COUNTIFS(MCdata,">"&$E322,MCdata,"<="&$E323,scenarios,"="&CJ$1))/runs,"") -> 
F386: =IFERROR(IF(ISBLANK(E387),"",COUNTIFS(MCdata,">"&E386,MCdata,"<="&E387))/runs,"") ->  | K386: =IFERROR(IF(ISBLANK($E387),"",COUNTIFS(MCdata,">"&$E386,MCdata,"<="&$E387,sc_data,"="&K$1))/runs,"") ->  | L386: =IFERROR(IF(ISBLANK($E387),"",COUNTIFS(MCdata,">"&$E386,MCdata,"<="&$E387,sc_data,"="&L$1))/runs,"") ->  | M386: =IFERROR(IF(ISBLANK($E387),"",COUNTIFS(MCdata,">"&$E386,MCdata,"<="&$E387,sc_data,"="&M$1))/runs,"") ->  | N386: =IFERROR(IF(ISBLANK($E387),"",COUNTIFS(MCdata,">"&$E386,MCdata,"<="&$E387,sc_data,"="&N$1))/runs,"") ->  | O386: =IFERROR(IF(ISBLANK($E387),"",COUNTIFS(MCdata,">"&$E386,MCdata,"<="&$E387,sc_data,"="&O$1))/runs,"") ->  | P386: =IFERROR(IF(ISBLANK($E387),"",COUNTIFS(MCdata,">"&$E386,MCdata,"<="&$E387,sc_data,"="&P$1))/runs,"") ->  | Q386: =IFERROR(IF(ISBLANK($E387),"",COUNTIFS(MCdata,">"&$E386,MCdata,"<="&$E387,sc_data,"="&Q$1))/runs,"") ->  | R386: =IFERROR(IF(ISBLANK($E387),"",COUNTIFS(MCdata,">"&$E386,MCdata,"<="&$E387,sc_data,"="&R$1))/runs,"") ->  | S386: =IFERROR(IF(ISBLANK($E387),"",COUNTIFS(MCdata,">"&$E386,MCdata,"<="&$E387,sc_data,"="&S$1))/runs,"") ->  | T386: =IFERROR(IF(ISBLANK($E387),"",COUNTIFS(MCdata,">"&$E386,MCdata,"<="&$E387,sc_data,"="&T$1))/runs,"") ->  | U386: =IFERROR(IF(ISBLANK($E387),"",COUNTIFS(MCdata,">"&$E386,MCdata,"<="&$E387,sc_data,"="&U$1))/runs,"") ->  | V386: =IFERROR(IF(ISBLANK($E387),"",COUNTIFS(MCdata,">"&$E386,MCdata,"<="&$E387,sc_data,"="&V$1))/runs,"") ->  | W386: =IFERROR(IF(ISBLANK($E387),"",COUNTIFS(MCdata,">"&$E386,MCdata,"<="&$E387,sc_data,"="&W$1))/runs,"") ->  | X386: =IFERROR(IF(ISBLANK($E387),"",COUNTIFS(MCdata,">"&$E386,MCdata,"<="&$E387,sc_data,"="&X$1))/runs,"") ->  | Y386: =IFERROR(IF(ISBLANK($E387),"",COUNTIFS(MCdata,">"&$E386,MCdata,"<="&$E387,sc_data,"="&Y$1))/runs,"") ->  | Z386: =IFERROR(IF(ISBLANK($E387),"",COUNTIFS(MCdata,">"&$E386,MCdata,"<="&$E387,sc_data,"="&Z$1))/runs,"") ->  | AA386: =IFERROR(IF(ISBLANK($E387),"",COUNTIFS(MCdata,">"&$E386,MCdata,"<="&$E387,sc_data,"="&AA$1))/runs,"") ->  | AB386: =IFERROR(IF(ISBLANK($E387),"",COUNTIFS(MCdata,">"&$E386,MCdata,"<="&$E387,sc_data,"="&AB$1))/runs,"") ->  | AC386: =IFERROR(IF(ISBLANK($E387),"",COUNTIFS(MCdata,">"&$E386,MCdata,"<="&$E387,sc_data,"="&AC$1))/runs,"") ->  | AD386: =IFERROR(IF(ISBLANK($E387),"",COUNTIFS(MCdata,">"&$E386,MCdata,"<="&$E387,sc_data,"="&AD$1))/runs,"") ->  | AE386: =IFERROR(IF(ISBLANK($E387),"",COUNTIFS(MCdata,">"&$E386,MCdata,"<="&$E387,sc_data,"="&AE$1))/runs,"") ->  | AF386: =IFERROR(IF(ISBLANK($E387),"",COUNTIFS(MCdata,">"&$E386,MCdata,"<="&$E387,sc_data,"="&AF$1))/runs,"") ->  | AG386: =IFERROR(IF(ISBLANK($E387),"",COUNTIFS(MCdata,">"&$E386,MCdata,"<="&$E387,sc_data,"="&AG$1))/runs,"") ->  | AH386: =IFERROR(IF(ISBLANK($E387),"",COUNTIFS(MCdata,">"&$E386,MCdata,"<="&$E387,sc_data,"="&AH$1))/runs,"") ->  | AI386: =IFERROR(IF(ISBLANK($E387),"",COUNTIFS(MCdata,">"&$E386,MCdata,"<="&$E387,sc_data,"="&AI$1))/runs,"") ->  | AJ386: =IFERROR(IF(ISBLANK($E387),"",COUNTIFS(MCdata,">"&$E386,MCdata,"<="&$E387,sc_data,"="&AJ$1))/runs,"") ->  | AK386: =IFERROR(IF(ISBLANK($E387),"",COUNTIFS(MCdata,">"&$E386,MCdata,"<="&$E387,sc_data,"="&AK$1))/runs,"") ->  | AL386: =IFERROR(IF(ISBLANK($E387),"",COUNTIFS(MCdata,">"&$E386,MCdata,"<="&$E387,sc_data,"="&AL$1))/runs,"") ->  | AM386: =IFERROR(IF(ISBLANK($E387),"",COUNTIFS(MCdata,">"&$E386,MCdata,"<="&$E387,sc_data,"="&AM$1))/runs,"") ->  | AN386: =IFERROR(IF(ISBLANK($E387),"",COUNTIFS(MCdata,">"&$E386,MCdata,"<="&$E387,sc_data,"="&AN$1))/runs,"") ->  | AO386: =IFERROR(IF(ISBLANK($E387),"",COUNTIFS(MCdata,">"&$E386,MCdata,"<="&$E387,sc_data,"="&AO$1))/runs,"") ->  | AP386: =IFERROR(IF(ISBLANK($E387),"",COUNTIFS(MCdata,">"&$E386,MCdata,"<="&$E387,sc_data,"="&AP$1))/runs,"") ->  | AQ386: =IFERROR(IF(ISBLANK($E387),"",COUNTIFS(MCdata,">"&$E386,MCdata,"<="&$E387,sc_data,"="&AQ$1))/runs,"") ->  | AR386: =IFERROR(IF(ISBLANK($E387),"",COUNTIFS(MCdata,">"&$E386,MCdata,"<="&$E387,sc_data,"="&AR$1))/runs,"") ->  | AS386: =IFERROR(IF(ISBLANK($E387),"",COUNTIFS(MCdata,">"&$E386,MCdata,"<="&$E387,sc_data,"="&AS$1))/runs,"") ->  | AT386: =IFERROR(IF(ISBLANK($E387),"",COUNTIFS(MCdata,">"&$E386,MCdata,"<="&$E387,sc_data,"="&AT$1))/runs,"") ->  | AU386: =IFERROR(IF(ISBLANK($E387),"",COUNTIFS(MCdata,">"&$E386,MCdata,"<="&$E387,sc_data,"="&AU$1))/runs,"") ->  | AV386: =IFERROR(IF(ISBLANK($E387),"",COUNTIFS(MCdata,">"&$E386,MCdata,"<="&$E387,sc_data,"="&AV$1))/runs,"") ->  | AW386: =IFERROR(IF(ISBLANK($E387),"",COUNTIFS(MCdata,">"&$E386,MCdata,"<="&$E387,sc_data,"="&AW$1))/runs,"") ->  | AX386: =IFERROR(IF(ISBLANK($E387),"",COUNTIFS(MCdata,">"&$E386,MCdata,"<="&$E387,sc_data,"="&AX$1))/runs,"") ->  | AY386: =IFERROR(IF(ISBLANK($E387),"",COUNTIFS(MCdata,">"&$E386,MCdata,"<="&$E387,sc_data,"="&AY$1))/runs,"") ->  | AZ386: =IFERROR(IF(ISBLANK($E387),"",COUNTIFS(MCdata,">"&$E386,MCdata,"<="&$E387,sc_data,"="&AZ$1))/runs,"") ->  | BA386: =IFERROR(IF(ISBLANK($E387),"",COUNTIFS(MCdata,">"&$E386,MCdata,"<="&$E387,sc_data,"="&BA$1))/runs,"") ->  | BB386: =IFERROR(IF(ISBLANK($E387),"",COUNTIFS(MCdata,">"&$E386,MCdata,"<="&$E387,sc_data,"="&BB$1))/runs,"") ->  | BC386: =IFERROR(IF(ISBLANK($E387),"",COUNTIFS(MCdata,">"&$E386,MCdata,"<="&$E387,sc_data,"="&BC$1))/runs,"") ->  | BD386: =IFERROR(IF(ISBLANK($E387),"",COUNTIFS(MCdata,">"&$E386,MCdata,"<="&$E387,sc_data,"="&BD$1))/runs,"") ->  | BE386: =IFERROR(IF(ISBLANK($E387),"",COUNTIFS(MCdata,">"&$E386,MCdata,"<="&$E387,sc_data,"="&BE$1))/runs,"") ->  | BF386: =IFERROR(IF(ISBLANK($E387),"",COUNTIFS(MCdata,">"&$E386,MCdata,"<="&$E387,sc_data,"="&BF$1))/runs,"") ->  | BG386: =IFERROR(IF(ISBLANK($E387),"",COUNTIFS(MCdata,">"&$E386,MCdata,"<="&$E387,sc_data,"="&BG$1))/runs,"") ->  | BH386: =IFERROR(IF(ISBLANK($E387),"",COUNTIFS(MCdata,">"&$E386,MCdata,"<="&$E387,sc_data,"="&BH$1))/runs,"") ->  | BI386: =IFERROR(IF(ISBLANK($E387),"",COUNTIFS(MCdata,">"&$E386,MCdata,"<="&$E387,sc_data,"="&BI$1))/runs,"") ->  | BJ386: =IFERROR(IF(ISBLANK($E387),"",COUNTIFS(MCdata,">"&$E386,MCdata,"<="&$E387,sc_data,"="&BJ$1))/runs,"") ->  | BK386: =IFERROR(IF(ISBLANK($E387),"",COUNTIFS(MCdata,">"&$E386,MCdata,"<="&$E387,sc_data,"="&BK$1))/runs,"") ->  | BL386: =IFERROR(IF(ISBLANK($E387),"",COUNTIFS(MCdata,">"&$E386,MCdata,"<="&$E387,sc_data,"="&BL$1))/runs,"") ->  | BM386: =IFERROR(IF(ISBLANK($E387),"",COUNTIFS(MCdata,">"&$E386,MCdata,"<="&$E387,sc_data,"="&BM$1))/runs,"") ->  | BN386: =IFERROR(IF(ISBLANK($E387),"",COUNTIFS(MCdata,">"&$E386,MCdata,"<="&$E387,sc_data,"="&BN$1))/runs,"") ->  | BO386: =IFERROR(IF(ISBLANK($E387),"",COUNTIFS(MCdata,">"&$E386,MCdata,"<="&$E387,sc_data,"="&BO$1))/runs,"") ->  | BP386: =IFERROR(IF(ISBLANK($E387),"",COUNTIFS(MCdata,">"&$E386,MCdata,"<="&$E387,sc_data,"="&BP$1))/runs,"") ->  | BQ386: =IFERROR(IF(ISBLANK($E387),"",COUNTIFS(MCdata,">"&$E386,MCdata,"<="&$E387,sc_data,"="&BQ$1))/runs,"") ->  | BR386: =IFERROR(IF(ISBLANK($E387),"",COUNTIFS(MCdata,">"&$E386,MCdata,"<="&$E387,sc_data,"="&BR$1))/runs,"") ->  | BS386: =IFERROR(IF(ISBLANK($E387),"",COUNTIFS(MCdata,">"&$E386,MCdata,"<="&$E387,sc_data,"="&BS$1))/runs,"") ->  | BT386: =IFERROR(IF(ISBLANK($E387),"",COUNTIFS(MCdata,">"&$E386,MCdata,"<="&$E387,sc_data,"="&BT$1))/runs,"") ->  | BU386: =IFERROR(IF(ISBLANK($E387),"",COUNTIFS(MCdata,">"&$E386,MCdata,"<="&$E387,sc_data,"="&BU$1))/runs,"") ->  | BV386: =IFERROR(IF(ISBLANK($E387),"",COUNTIFS(MCdata,">"&$E386,MCdata,"<="&$E387,sc_data,"="&BV$1))/runs,"") ->  | BW386: =IFERROR(IF(ISBLANK($E387),"",COUNTIFS(MCdata,">"&$E386,MCdata,"<="&$E387,scenarios,"="&BW$1))/runs,"") ->  | BX386: =IFERROR(IF(ISBLANK($E387),"",COUNTIFS(MCdata,">"&$E386,MCdata,"<="&$E387,scenarios,"="&BX$1))/runs,"") ->  | BY386: =IFERROR(IF(ISBLANK($E387),"",COUNTIFS(MCdata,">"&$E386,MCdata,"<="&$E387,scenarios,"="&BY$1))/runs,"") ->  | BZ386: =IFERROR(IF(ISBLANK($E387),"",COUNTIFS(MCdata,">"&$E386,MCdata,"<="&$E387,scenarios,"="&BZ$1))/runs,"") ->  | CA386: =IFERROR(IF(ISBLANK($E387),"",COUNTIFS(MCdata,">"&$E386,MCdata,"<="&$E387,scenarios,"="&CA$1))/runs,"") ->  | CB386: =IFERROR(IF(ISBLANK($E387),"",COUNTIFS(MCdata,">"&$E386,MCdata,"<="&$E387,scenarios,"="&CB$1))/runs,"") ->  | CC386: =IFERROR(IF(ISBLANK($E387),"",COUNTIFS(MCdata,">"&$E386,MCdata,"<="&$E387,scenarios,"="&CC$1))/runs,"") ->  | CD386: =IFERROR(IF(ISBLANK($E387),"",COUNTIFS(MCdata,">"&$E386,MCdata,"<="&$E387,scenarios,"="&CD$1))/runs,"") ->  | CE386: =IFERROR(IF(ISBLANK($E387),"",COUNTIFS(MCdata,">"&$E386,MCdata,"<="&$E387,scenarios,"="&CE$1))/runs,"") ->  | CF386: =IFERROR(IF(ISBLANK($E387),"",COUNTIFS(MCdata,">"&$E386,MCdata,"<="&$E387,scenarios,"="&CF$1))/runs,"") ->  | CG386: =IFERROR(IF(ISBLANK($E387),"",COUNTIFS(MCdata,">"&$E386,MCdata,"<="&$E387,scenarios,"="&CG$1))/runs,"") ->  | CH386: =IFERROR(IF(ISBLANK($E387),"",COUNTIFS(MCdata,">"&$E386,MCdata,"<="&$E387,scenarios,"="&CH$1))/runs,"") ->  | CI386: =IFERROR(IF(ISBLANK($E387),"",COUNTIFS(MCdata,">"&$E386,MCdata,"<="&$E387,scenarios,"="&CI$1))/runs,"") ->  | CJ386: =IFERROR(IF(ISBLANK($E387),"",COUNTIFS(MCdata,">"&$E386,MCdata,"<="&$E387,scenarios,"="&CJ$1))/runs,"") -> 
F450: =IFERROR(IF(ISBLANK(E451),"",COUNTIFS(MCdata,">"&E450,MCdata,"<="&E451))/runs,"") ->  | K450: =IFERROR(IF(ISBLANK($E451),"",COUNTIFS(MCdata,">"&$E450,MCdata,"<="&$E451,sc_data,"="&K$1))/runs,"") ->  | L450: =IFERROR(IF(ISBLANK($E451),"",COUNTIFS(MCdata,">"&$E450,MCdata,"<="&$E451,sc_data,"="&L$1))/runs,"") ->  | M450: =IFERROR(IF(ISBLANK($E451),"",COUNTIFS(MCdata,">"&$E450,MCdata,"<="&$E451,sc_data,"="&M$1))/runs,"") ->  | N450: =IFERROR(IF(ISBLANK($E451),"",COUNTIFS(MCdata,">"&$E450,MCdata,"<="&$E451,sc_data,"="&N$1))/runs,"") ->  | O450: =IFERROR(IF(ISBLANK($E451),"",COUNTIFS(MCdata,">"&$E450,MCdata,"<="&$E451,sc_data,"="&O$1))/runs,"") ->  | P450: =IFERROR(IF(ISBLANK($E451),"",COUNTIFS(MCdata,">"&$E450,MCdata,"<="&$E451,sc_data,"="&P$1))/runs,"") ->  | Q450: =IFERROR(IF(ISBLANK($E451),"",COUNTIFS(MCdata,">"&$E450,MCdata,"<="&$E451,sc_data,"="&Q$1))/runs,"") ->  | R450: =IFERROR(IF(ISBLANK($E451),"",COUNTIFS(MCdata,">"&$E450,MCdata,"<="&$E451,sc_data,"="&R$1))/runs,"") ->  | S450: =IFERROR(IF(ISBLANK($E451),"",COUNTIFS(MCdata,">"&$E450,MCdata,"<="&$E451,sc_data,"="&S$1))/runs,"") ->  | T450: =IFERROR(IF(ISBLANK($E451),"",COUNTIFS(MCdata,">"&$E450,MCdata,"<="&$E451,sc_data,"="&T$1))/runs,"") ->  | U450: =IFERROR(IF(ISBLANK($E451),"",COUNTIFS(MCdata,">"&$E450,MCdata,"<="&$E451,sc_data,"="&U$1))/runs,"") ->  | V450: =IFERROR(IF(ISBLANK($E451),"",COUNTIFS(MCdata,">"&$E450,MCdata,"<="&$E451,sc_data,"="&V$1))/runs,"") ->  | W450: =IFERROR(IF(ISBLANK($E451),"",COUNTIFS(MCdata,">"&$E450,MCdata,"<="&$E451,sc_data,"="&W$1))/runs,"") ->  | X450: =IFERROR(IF(ISBLANK($E451),"",COUNTIFS(MCdata,">"&$E450,MCdata,"<="&$E451,sc_data,"="&X$1))/runs,"") ->  | Y450: =IFERROR(IF(ISBLANK($E451),"",COUNTIFS(MCdata,">"&$E450,MCdata,"<="&$E451,sc_data,"="&Y$1))/runs,"") ->  | Z450: =IFERROR(IF(ISBLANK($E451),"",COUNTIFS(MCdata,">"&$E450,MCdata,"<="&$E451,sc_data,"="&Z$1))/runs,"") ->  | AA450: =IFERROR(IF(ISBLANK($E451),"",COUNTIFS(MCdata,">"&$E450,MCdata,"<="&$E451,sc_data,"="&AA$1))/runs,"") ->  | AB450: =IFERROR(IF(ISBLANK($E451),"",COUNTIFS(MCdata,">"&$E450,MCdata,"<="&$E451,sc_data,"="&AB$1))/runs,"") ->  | AC450: =IFERROR(IF(ISBLANK($E451),"",COUNTIFS(MCdata,">"&$E450,MCdata,"<="&$E451,sc_data,"="&AC$1))/runs,"") ->  | AD450: =IFERROR(IF(ISBLANK($E451),"",COUNTIFS(MCdata,">"&$E450,MCdata,"<="&$E451,sc_data,"="&AD$1))/runs,"") ->  | AE450: =IFERROR(IF(ISBLANK($E451),"",COUNTIFS(MCdata,">"&$E450,MCdata,"<="&$E451,sc_data,"="&AE$1))/runs,"") ->  | AF450: =IFERROR(IF(ISBLANK($E451),"",COUNTIFS(MCdata,">"&$E450,MCdata,"<="&$E451,sc_data,"="&AF$1))/runs,"") ->  | AG450: =IFERROR(IF(ISBLANK($E451),"",COUNTIFS(MCdata,">"&$E450,MCdata,"<="&$E451,sc_data,"="&AG$1))/runs,"") ->  | AH450: =IFERROR(IF(ISBLANK($E451),"",COUNTIFS(MCdata,">"&$E450,MCdata,"<="&$E451,sc_data,"="&AH$1))/runs,"") ->  | AI450: =IFERROR(IF(ISBLANK($E451),"",COUNTIFS(MCdata,">"&$E450,MCdata,"<="&$E451,sc_data,"="&AI$1))/runs,"") ->  | AJ450: =IFERROR(IF(ISBLANK($E451),"",COUNTIFS(MCdata,">"&$E450,MCdata,"<="&$E451,sc_data,"="&AJ$1))/runs,"") ->  | AK450: =IFERROR(IF(ISBLANK($E451),"",COUNTIFS(MCdata,">"&$E450,MCdata,"<="&$E451,sc_data,"="&AK$1))/runs,"") ->  | AL450: =IFERROR(IF(ISBLANK($E451),"",COUNTIFS(MCdata,">"&$E450,MCdata,"<="&$E451,sc_data,"="&AL$1))/runs,"") ->  | AM450: =IFERROR(IF(ISBLANK($E451),"",COUNTIFS(MCdata,">"&$E450,MCdata,"<="&$E451,sc_data,"="&AM$1))/runs,"") ->  | AN450: =IFERROR(IF(ISBLANK($E451),"",COUNTIFS(MCdata,">"&$E450,MCdata,"<="&$E451,sc_data,"="&AN$1))/runs,"") ->  | AO450: =IFERROR(IF(ISBLANK($E451),"",COUNTIFS(MCdata,">"&$E450,MCdata,"<="&$E451,sc_data,"="&AO$1))/runs,"") ->  | AP450: =IFERROR(IF(ISBLANK($E451),"",COUNTIFS(MCdata,">"&$E450,MCdata,"<="&$E451,sc_data,"="&AP$1))/runs,"") ->  | AQ450: =IFERROR(IF(ISBLANK($E451),"",COUNTIFS(MCdata,">"&$E450,MCdata,"<="&$E451,sc_data,"="&AQ$1))/runs,"") ->  | AR450: =IFERROR(IF(ISBLANK($E451),"",COUNTIFS(MCdata,">"&$E450,MCdata,"<="&$E451,sc_data,"="&AR$1))/runs,"") ->  | AS450: =IFERROR(IF(ISBLANK($E451),"",COUNTIFS(MCdata,">"&$E450,MCdata,"<="&$E451,sc_data,"="&AS$1))/runs,"") ->  | AT450: =IFERROR(IF(ISBLANK($E451),"",COUNTIFS(MCdata,">"&$E450,MCdata,"<="&$E451,sc_data,"="&AT$1))/runs,"") ->  | AU450: =IFERROR(IF(ISBLANK($E451),"",COUNTIFS(MCdata,">"&$E450,MCdata,"<="&$E451,sc_data,"="&AU$1))/runs,"") ->  | AV450: =IFERROR(IF(ISBLANK($E451),"",COUNTIFS(MCdata,">"&$E450,MCdata,"<="&$E451,sc_data,"="&AV$1))/runs,"") ->  | AW450: =IFERROR(IF(ISBLANK($E451),"",COUNTIFS(MCdata,">"&$E450,MCdata,"<="&$E451,sc_data,"="&AW$1))/runs,"") ->  | AX450: =IFERROR(IF(ISBLANK($E451),"",COUNTIFS(MCdata,">"&$E450,MCdata,"<="&$E451,sc_data,"="&AX$1))/runs,"") ->  | AY450: =IFERROR(IF(ISBLANK($E451),"",COUNTIFS(MCdata,">"&$E450,MCdata,"<="&$E451,sc_data,"="&AY$1))/runs,"") ->  | AZ450: =IFERROR(IF(ISBLANK($E451),"",COUNTIFS(MCdata,">"&$E450,MCdata,"<="&$E451,sc_data,"="&AZ$1))/runs,"") ->  | BA450: =IFERROR(IF(ISBLANK($E451),"",COUNTIFS(MCdata,">"&$E450,MCdata,"<="&$E451,sc_data,"="&BA$1))/runs,"") ->  | BB450: =IFERROR(IF(ISBLANK($E451),"",COUNTIFS(MCdata,">"&$E450,MCdata,"<="&$E451,sc_data,"="&BB$1))/runs,"") ->  | BC450: =IFERROR(IF(ISBLANK($E451),"",COUNTIFS(MCdata,">"&$E450,MCdata,"<="&$E451,sc_data,"="&BC$1))/runs,"") ->  | BD450: =IFERROR(IF(ISBLANK($E451),"",COUNTIFS(MCdata,">"&$E450,MCdata,"<="&$E451,sc_data,"="&BD$1))/runs,"") ->  | BE450: =IFERROR(IF(ISBLANK($E451),"",COUNTIFS(MCdata,">"&$E450,MCdata,"<="&$E451,sc_data,"="&BE$1))/runs,"") ->  | BF450: =IFERROR(IF(ISBLANK($E451),"",COUNTIFS(MCdata,">"&$E450,MCdata,"<="&$E451,sc_data,"="&BF$1))/runs,"") ->  | BG450: =IFERROR(IF(ISBLANK($E451),"",COUNTIFS(MCdata,">"&$E450,MCdata,"<="&$E451,sc_data,"="&BG$1))/runs,"") ->  | BH450: =IFERROR(IF(ISBLANK($E451),"",COUNTIFS(MCdata,">"&$E450,MCdata,"<="&$E451,sc_data,"="&BH$1))/runs,"") ->  | BI450: =IFERROR(IF(ISBLANK($E451),"",COUNTIFS(MCdata,">"&$E450,MCdata,"<="&$E451,sc_data,"="&BI$1))/runs,"") ->  | BJ450: =IFERROR(IF(ISBLANK($E451),"",COUNTIFS(MCdata,">"&$E450,MCdata,"<="&$E451,sc_data,"="&BJ$1))/runs,"") ->  | BK450: =IFERROR(IF(ISBLANK($E451),"",COUNTIFS(MCdata,">"&$E450,MCdata,"<="&$E451,sc_data,"="&BK$1))/runs,"") ->  | BL450: =IFERROR(IF(ISBLANK($E451),"",COUNTIFS(MCdata,">"&$E450,MCdata,"<="&$E451,sc_data,"="&BL$1))/runs,"") ->  | BM450: =IFERROR(IF(ISBLANK($E451),"",COUNTIFS(MCdata,">"&$E450,MCdata,"<="&$E451,sc_data,"="&BM$1))/runs,"") ->  | BN450: =IFERROR(IF(ISBLANK($E451),"",COUNTIFS(MCdata,">"&$E450,MCdata,"<="&$E451,sc_data,"="&BN$1))/runs,"") ->  | BO450: =IFERROR(IF(ISBLANK($E451),"",COUNTIFS(MCdata,">"&$E450,MCdata,"<="&$E451,sc_data,"="&BO$1))/runs,"") ->  | BP450: =IFERROR(IF(ISBLANK($E451),"",COUNTIFS(MCdata,">"&$E450,MCdata,"<="&$E451,sc_data,"="&BP$1))/runs,"") ->  | BQ450: =IFERROR(IF(ISBLANK($E451),"",COUNTIFS(MCdata,">"&$E450,MCdata,"<="&$E451,sc_data,"="&BQ$1))/runs,"") ->  | BR450: =IFERROR(IF(ISBLANK($E451),"",COUNTIFS(MCdata,">"&$E450,MCdata,"<="&$E451,sc_data,"="&BR$1))/runs,"") ->  | BS450: =IFERROR(IF(ISBLANK($E451),"",COUNTIFS(MCdata,">"&$E450,MCdata,"<="&$E451,sc_data,"="&BS$1))/runs,"") ->  | BT450: =IFERROR(IF(ISBLANK($E451),"",COUNTIFS(MCdata,">"&$E450,MCdata,"<="&$E451,sc_data,"="&BT$1))/runs,"") ->  | BU450: =IFERROR(IF(ISBLANK($E451),"",COUNTIFS(MCdata,">"&$E450,MCdata,"<="&$E451,sc_data,"="&BU$1))/runs,"") ->  | BV450: =IFERROR(IF(ISBLANK($E451),"",COUNTIFS(MCdata,">"&$E450,MCdata,"<="&$E451,sc_data,"="&BV$1))/runs,"") ->  | BW450: =IFERROR(IF(ISBLANK($E451),"",COUNTIFS(MCdata,">"&$E450,MCdata,"<="&$E451,scenarios,"="&BW$1))/runs,"") ->  | BX450: =IFERROR(IF(ISBLANK($E451),"",COUNTIFS(MCdata,">"&$E450,MCdata,"<="&$E451,scenarios,"="&BX$1))/runs,"") ->  | BY450: =IFERROR(IF(ISBLANK($E451),"",COUNTIFS(MCdata,">"&$E450,MCdata,"<="&$E451,scenarios,"="&BY$1))/runs,"") ->  | BZ450: =IFERROR(IF(ISBLANK($E451),"",COUNTIFS(MCdata,">"&$E450,MCdata,"<="&$E451,scenarios,"="&BZ$1))/runs,"") ->  | CA450: =IFERROR(IF(ISBLANK($E451),"",COUNTIFS(MCdata,">"&$E450,MCdata,"<="&$E451,scenarios,"="&CA$1))/runs,"") ->  | CB450: =IFERROR(IF(ISBLANK($E451),"",COUNTIFS(MCdata,">"&$E450,MCdata,"<="&$E451,scenarios,"="&CB$1))/runs,"") ->  | CC450: =IFERROR(IF(ISBLANK($E451),"",COUNTIFS(MCdata,">"&$E450,MCdata,"<="&$E451,scenarios,"="&CC$1))/runs,"") ->  | CD450: =IFERROR(IF(ISBLANK($E451),"",COUNTIFS(MCdata,">"&$E450,MCdata,"<="&$E451,scenarios,"="&CD$1))/runs,"") ->  | CE450: =IFERROR(IF(ISBLANK($E451),"",COUNTIFS(MCdata,">"&$E450,MCdata,"<="&$E451,scenarios,"="&CE$1))/runs,"") ->  | CF450: =IFERROR(IF(ISBLANK($E451),"",COUNTIFS(MCdata,">"&$E450,MCdata,"<="&$E451,scenarios,"="&CF$1))/runs,"") ->  | CG450: =IFERROR(IF(ISBLANK($E451),"",COUNTIFS(MCdata,">"&$E450,MCdata,"<="&$E451,scenarios,"="&CG$1))/runs,"") ->  | CH450: =IFERROR(IF(ISBLANK($E451),"",COUNTIFS(MCdata,">"&$E450,MCdata,"<="&$E451,scenarios,"="&CH$1))/runs,"") ->  | CI450: =IFERROR(IF(ISBLANK($E451),"",COUNTIFS(MCdata,">"&$E450,MCdata,"<="&$E451,scenarios,"="&CI$1))/runs,"") ->  | CJ450: =IFERROR(IF(ISBLANK($E451),"",COUNTIFS(MCdata,">"&$E450,MCdata,"<="&$E451,scenarios,"="&CJ$1))/runs,"") -> 
F514: =IFERROR(IF(ISBLANK(E515),"",COUNTIFS(MCdata,">"&E514,MCdata,"<="&E515))/runs,"") ->  | K514: =IFERROR(IF(ISBLANK($E515),"",COUNTIFS(MCdata,">"&$E514,MCdata,"<="&$E515,sc_data,"="&K$1))/runs,"") ->  | L514: =IFERROR(IF(ISBLANK($E515),"",COUNTIFS(MCdata,">"&$E514,MCdata,"<="&$E515,sc_data,"="&L$1))/runs,"") ->  | M514: =IFERROR(IF(ISBLANK($E515),"",COUNTIFS(MCdata,">"&$E514,MCdata,"<="&$E515,sc_data,"="&M$1))/runs,"") ->  | N514: =IFERROR(IF(ISBLANK($E515),"",COUNTIFS(MCdata,">"&$E514,MCdata,"<="&$E515,sc_data,"="&N$1))/runs,"") ->  | O514: =IFERROR(IF(ISBLANK($E515),"",COUNTIFS(MCdata,">"&$E514,MCdata,"<="&$E515,sc_data,"="&O$1))/runs,"") ->  | P514: =IFERROR(IF(ISBLANK($E515),"",COUNTIFS(MCdata,">"&$E514,MCdata,"<="&$E515,sc_data,"="&P$1))/runs,"") ->  | Q514: =IFERROR(IF(ISBLANK($E515),"",COUNTIFS(MCdata,">"&$E514,MCdata,"<="&$E515,sc_data,"="&Q$1))/runs,"") ->  | R514: =IFERROR(IF(ISBLANK($E515),"",COUNTIFS(MCdata,">"&$E514,MCdata,"<="&$E515,sc_data,"="&R$1))/runs,"") ->  | S514: =IFERROR(IF(ISBLANK($E515),"",COUNTIFS(MCdata,">"&$E514,MCdata,"<="&$E515,sc_data,"="&S$1))/runs,"") ->  | T514: =IFERROR(IF(ISBLANK($E515),"",COUNTIFS(MCdata,">"&$E514,MCdata,"<="&$E515,sc_data,"="&T$1))/runs,"") ->  | U514: =IFERROR(IF(ISBLANK($E515),"",COUNTIFS(MCdata,">"&$E514,MCdata,"<="&$E515,sc_data,"="&U$1))/runs,"") ->  | V514: =IFERROR(IF(ISBLANK($E515),"",COUNTIFS(MCdata,">"&$E514,MCdata,"<="&$E515,sc_data,"="&V$1))/runs,"") ->  | W514: =IFERROR(IF(ISBLANK($E515),"",COUNTIFS(MCdata,">"&$E514,MCdata,"<="&$E515,sc_data,"="&W$1))/runs,"") ->  | X514: =IFERROR(IF(ISBLANK($E515),"",COUNTIFS(MCdata,">"&$E514,MCdata,"<="&$E515,sc_data,"="&X$1))/runs,"") ->  | Y514: =IFERROR(IF(ISBLANK($E515),"",COUNTIFS(MCdata,">"&$E514,MCdata,"<="&$E515,sc_data,"="&Y$1))/runs,"") ->  | Z514: =IFERROR(IF(ISBLANK($E515),"",COUNTIFS(MCdata,">"&$E514,MCdata,"<="&$E515,sc_data,"="&Z$1))/runs,"") ->  | AA514: =IFERROR(IF(ISBLANK($E515),"",COUNTIFS(MCdata,">"&$E514,MCdata,"<="&$E515,sc_data,"="&AA$1))/runs,"") ->  | AB514: =IFERROR(IF(ISBLANK($E515),"",COUNTIFS(MCdata,">"&$E514,MCdata,"<="&$E515,sc_data,"="&AB$1))/runs,"") ->  | AC514: =IFERROR(IF(ISBLANK($E515),"",COUNTIFS(MCdata,">"&$E514,MCdata,"<="&$E515,sc_data,"="&AC$1))/runs,"") ->  | AD514: =IFERROR(IF(ISBLANK($E515),"",COUNTIFS(MCdata,">"&$E514,MCdata,"<="&$E515,sc_data,"="&AD$1))/runs,"") ->  | AE514: =IFERROR(IF(ISBLANK($E515),"",COUNTIFS(MCdata,">"&$E514,MCdata,"<="&$E515,sc_data,"="&AE$1))/runs,"") ->  | AF514: =IFERROR(IF(ISBLANK($E515),"",COUNTIFS(MCdata,">"&$E514,MCdata,"<="&$E515,sc_data,"="&AF$1))/runs,"") ->  | AG514: =IFERROR(IF(ISBLANK($E515),"",COUNTIFS(MCdata,">"&$E514,MCdata,"<="&$E515,sc_data,"="&AG$1))/runs,"") ->  | AH514: =IFERROR(IF(ISBLANK($E515),"",COUNTIFS(MCdata,">"&$E514,MCdata,"<="&$E515,sc_data,"="&AH$1))/runs,"") ->  | AI514: =IFERROR(IF(ISBLANK($E515),"",COUNTIFS(MCdata,">"&$E514,MCdata,"<="&$E515,sc_data,"="&AI$1))/runs,"") ->  | AJ514: =IFERROR(IF(ISBLANK($E515),"",COUNTIFS(MCdata,">"&$E514,MCdata,"<="&$E515,sc_data,"="&AJ$1))/runs,"") ->  | AK514: =IFERROR(IF(ISBLANK($E515),"",COUNTIFS(MCdata,">"&$E514,MCdata,"<="&$E515,sc_data,"="&AK$1))/runs,"") ->  | AL514: =IFERROR(IF(ISBLANK($E515),"",COUNTIFS(MCdata,">"&$E514,MCdata,"<="&$E515,sc_data,"="&AL$1))/runs,"") ->  | AM514: =IFERROR(IF(ISBLANK($E515),"",COUNTIFS(MCdata,">"&$E514,MCdata,"<="&$E515,sc_data,"="&AM$1))/runs,"") ->  | AN514: =IFERROR(IF(ISBLANK($E515),"",COUNTIFS(MCdata,">"&$E514,MCdata,"<="&$E515,sc_data,"="&AN$1))/runs,"") ->  | AO514: =IFERROR(IF(ISBLANK($E515),"",COUNTIFS(MCdata,">"&$E514,MCdata,"<="&$E515,sc_data,"="&AO$1))/runs,"") ->  | AP514: =IFERROR(IF(ISBLANK($E515),"",COUNTIFS(MCdata,">"&$E514,MCdata,"<="&$E515,sc_data,"="&AP$1))/runs,"") ->  | AQ514: =IFERROR(IF(ISBLANK($E515),"",COUNTIFS(MCdata,">"&$E514,MCdata,"<="&$E515,sc_data,"="&AQ$1))/runs,"") ->  | AR514: =IFERROR(IF(ISBLANK($E515),"",COUNTIFS(MCdata,">"&$E514,MCdata,"<="&$E515,sc_data,"="&AR$1))/runs,"") ->  | AS514: =IFERROR(IF(ISBLANK($E515),"",COUNTIFS(MCdata,">"&$E514,MCdata,"<="&$E515,sc_data,"="&AS$1))/runs,"") ->  | AT514: =IFERROR(IF(ISBLANK($E515),"",COUNTIFS(MCdata,">"&$E514,MCdata,"<="&$E515,sc_data,"="&AT$1))/runs,"") ->  | AU514: =IFERROR(IF(ISBLANK($E515),"",COUNTIFS(MCdata,">"&$E514,MCdata,"<="&$E515,sc_data,"="&AU$1))/runs,"") ->  | AV514: =IFERROR(IF(ISBLANK($E515),"",COUNTIFS(MCdata,">"&$E514,MCdata,"<="&$E515,sc_data,"="&AV$1))/runs,"") ->  | AW514: =IFERROR(IF(ISBLANK($E515),"",COUNTIFS(MCdata,">"&$E514,MCdata,"<="&$E515,sc_data,"="&AW$1))/runs,"") ->  | AX514: =IFERROR(IF(ISBLANK($E515),"",COUNTIFS(MCdata,">"&$E514,MCdata,"<="&$E515,sc_data,"="&AX$1))/runs,"") ->  | AY514: =IFERROR(IF(ISBLANK($E515),"",COUNTIFS(MCdata,">"&$E514,MCdata,"<="&$E515,sc_data,"="&AY$1))/runs,"") ->  | AZ514: =IFERROR(IF(ISBLANK($E515),"",COUNTIFS(MCdata,">"&$E514,MCdata,"<="&$E515,sc_data,"="&AZ$1))/runs,"") ->  | BA514: =IFERROR(IF(ISBLANK($E515),"",COUNTIFS(MCdata,">"&$E514,MCdata,"<="&$E515,sc_data,"="&BA$1))/runs,"") ->  | BB514: =IFERROR(IF(ISBLANK($E515),"",COUNTIFS(MCdata,">"&$E514,MCdata,"<="&$E515,sc_data,"="&BB$1))/runs,"") ->  | BC514: =IFERROR(IF(ISBLANK($E515),"",COUNTIFS(MCdata,">"&$E514,MCdata,"<="&$E515,sc_data,"="&BC$1))/runs,"") ->  | BD514: =IFERROR(IF(ISBLANK($E515),"",COUNTIFS(MCdata,">"&$E514,MCdata,"<="&$E515,sc_data,"="&BD$1))/runs,"") ->  | BE514: =IFERROR(IF(ISBLANK($E515),"",COUNTIFS(MCdata,">"&$E514,MCdata,"<="&$E515,sc_data,"="&BE$1))/runs,"") ->  | BF514: =IFERROR(IF(ISBLANK($E515),"",COUNTIFS(MCdata,">"&$E514,MCdata,"<="&$E515,sc_data,"="&BF$1))/runs,"") ->  | BG514: =IFERROR(IF(ISBLANK($E515),"",COUNTIFS(MCdata,">"&$E514,MCdata,"<="&$E515,sc_data,"="&BG$1))/runs,"") ->  | BH514: =IFERROR(IF(ISBLANK($E515),"",COUNTIFS(MCdata,">"&$E514,MCdata,"<="&$E515,sc_data,"="&BH$1))/runs,"") ->  | BI514: =IFERROR(IF(ISBLANK($E515),"",COUNTIFS(MCdata,">"&$E514,MCdata,"<="&$E515,sc_data,"="&BI$1))/runs,"") ->  | BJ514: =IFERROR(IF(ISBLANK($E515),"",COUNTIFS(MCdata,">"&$E514,MCdata,"<="&$E515,sc_data,"="&BJ$1))/runs,"") ->  | BK514: =IFERROR(IF(ISBLANK($E515),"",COUNTIFS(MCdata,">"&$E514,MCdata,"<="&$E515,sc_data,"="&BK$1))/runs,"") ->  | BL514: =IFERROR(IF(ISBLANK($E515),"",COUNTIFS(MCdata,">"&$E514,MCdata,"<="&$E515,sc_data,"="&BL$1))/runs,"") ->  | BM514: =IFERROR(IF(ISBLANK($E515),"",COUNTIFS(MCdata,">"&$E514,MCdata,"<="&$E515,sc_data,"="&BM$1))/runs,"") ->  | BN514: =IFERROR(IF(ISBLANK($E515),"",COUNTIFS(MCdata,">"&$E514,MCdata,"<="&$E515,sc_data,"="&BN$1))/runs,"") ->  | BO514: =IFERROR(IF(ISBLANK($E515),"",COUNTIFS(MCdata,">"&$E514,MCdata,"<="&$E515,sc_data,"="&BO$1))/runs,"") ->  | BP514: =IFERROR(IF(ISBLANK($E515),"",COUNTIFS(MCdata,">"&$E514,MCdata,"<="&$E515,sc_data,"="&BP$1))/runs,"") ->  | BQ514: =IFERROR(IF(ISBLANK($E515),"",COUNTIFS(MCdata,">"&$E514,MCdata,"<="&$E515,sc_data,"="&BQ$1))/runs,"") ->  | BR514: =IFERROR(IF(ISBLANK($E515),"",COUNTIFS(MCdata,">"&$E514,MCdata,"<="&$E515,sc_data,"="&BR$1))/runs,"") ->  | BS514: =IFERROR(IF(ISBLANK($E515),"",COUNTIFS(MCdata,">"&$E514,MCdata,"<="&$E515,sc_data,"="&BS$1))/runs,"") ->  | BT514: =IFERROR(IF(ISBLANK($E515),"",COUNTIFS(MCdata,">"&$E514,MCdata,"<="&$E515,sc_data,"="&BT$1))/runs,"") ->  | BU514: =IFERROR(IF(ISBLANK($E515),"",COUNTIFS(MCdata,">"&$E514,MCdata,"<="&$E515,sc_data,"="&BU$1))/runs,"") ->  | BV514: =IFERROR(IF(ISBLANK($E515),"",COUNTIFS(MCdata,">"&$E514,MCdata,"<="&$E515,sc_data,"="&BV$1))/runs,"") ->  | BW514: =IFERROR(IF(ISBLANK($E515),"",COUNTIFS(MCdata,">"&$E514,MCdata,"<="&$E515,scenarios,"="&BW$1))/runs,"") ->  | BX514: =IFERROR(IF(ISBLANK($E515),"",COUNTIFS(MCdata,">"&$E514,MCdata,"<="&$E515,scenarios,"="&BX$1))/runs,"") ->  | BY514: =IFERROR(IF(ISBLANK($E515),"",COUNTIFS(MCdata,">"&$E514,MCdata,"<="&$E515,scenarios,"="&BY$1))/runs,"") ->  | BZ514: =IFERROR(IF(ISBLANK($E515),"",COUNTIFS(MCdata,">"&$E514,MCdata,"<="&$E515,scenarios,"="&BZ$1))/runs,"") ->  | CA514: =IFERROR(IF(ISBLANK($E515),"",COUNTIFS(MCdata,">"&$E514,MCdata,"<="&$E515,scenarios,"="&CA$1))/runs,"") ->  | CB514: =IFERROR(IF(ISBLANK($E515),"",COUNTIFS(MCdata,">"&$E514,MCdata,"<="&$E515,scenarios,"="&CB$1))/runs,"") ->  | CC514: =IFERROR(IF(ISBLANK($E515),"",COUNTIFS(MCdata,">"&$E514,MCdata,"<="&$E515,scenarios,"="&CC$1))/runs,"") ->  | CD514: =IFERROR(IF(ISBLANK($E515),"",COUNTIFS(MCdata,">"&$E514,MCdata,"<="&$E515,scenarios,"="&CD$1))/runs,"") ->  | CE514: =IFERROR(IF(ISBLANK($E515),"",COUNTIFS(MCdata,">"&$E514,MCdata,"<="&$E515,scenarios,"="&CE$1))/runs,"") ->  | CF514: =IFERROR(IF(ISBLANK($E515),"",COUNTIFS(MCdata,">"&$E514,MCdata,"<="&$E515,scenarios,"="&CF$1))/runs,"") ->  | CG514: =IFERROR(IF(ISBLANK($E515),"",COUNTIFS(MCdata,">"&$E514,MCdata,"<="&$E515,scenarios,"="&CG$1))/runs,"") ->  | CH514: =IFERROR(IF(ISBLANK($E515),"",COUNTIFS(MCdata,">"&$E514,MCdata,"<="&$E515,scenarios,"="&CH$1))/runs,"") ->  | CI514: =IFERROR(IF(ISBLANK($E515),"",COUNTIFS(MCdata,">"&$E514,MCdata,"<="&$E515,scenarios,"="&CI$1))/runs,"") ->  | CJ514: =IFERROR(IF(ISBLANK($E515),"",COUNTIFS(MCdata,">"&$E514,MCdata,"<="&$E515,scenarios,"="&CJ$1))/runs,"") -> 
F578: =IFERROR(IF(ISBLANK(E579),"",COUNTIFS(MCdata,">"&E578,MCdata,"<="&E579))/runs,"") ->  | K578: =IFERROR(IF(ISBLANK($E579),"",COUNTIFS(MCdata,">"&$E578,MCdata,"<="&$E579,sc_data,"="&K$1))/runs,"") ->  | L578: =IFERROR(IF(ISBLANK($E579),"",COUNTIFS(MCdata,">"&$E578,MCdata,"<="&$E579,sc_data,"="&L$1))/runs,"") ->  | M578: =IFERROR(IF(ISBLANK($E579),"",COUNTIFS(MCdata,">"&$E578,MCdata,"<="&$E579,sc_data,"="&M$1))/runs,"") ->  | N578: =IFERROR(IF(ISBLANK($E579),"",COUNTIFS(MCdata,">"&$E578,MCdata,"<="&$E579,sc_data,"="&N$1))/runs,"") ->  | O578: =IFERROR(IF(ISBLANK($E579),"",COUNTIFS(MCdata,">"&$E578,MCdata,"<="&$E579,sc_data,"="&O$1))/runs,"") ->  | P578: =IFERROR(IF(ISBLANK($E579),"",COUNTIFS(MCdata,">"&$E578,MCdata,"<="&$E579,sc_data,"="&P$1))/runs,"") ->  | Q578: =IFERROR(IF(ISBLANK($E579),"",COUNTIFS(MCdata,">"&$E578,MCdata,"<="&$E579,sc_data,"="&Q$1))/runs,"") ->  | R578: =IFERROR(IF(ISBLANK($E579),"",COUNTIFS(MCdata,">"&$E578,MCdata,"<="&$E579,sc_data,"="&R$1))/runs,"") ->  | S578: =IFERROR(IF(ISBLANK($E579),"",COUNTIFS(MCdata,">"&$E578,MCdata,"<="&$E579,sc_data,"="&S$1))/runs,"") ->  | T578: =IFERROR(IF(ISBLANK($E579),"",COUNTIFS(MCdata,">"&$E578,MCdata,"<="&$E579,sc_data,"="&T$1))/runs,"") ->  | U578: =IFERROR(IF(ISBLANK($E579),"",COUNTIFS(MCdata,">"&$E578,MCdata,"<="&$E579,sc_data,"="&U$1))/runs,"") ->  | V578: =IFERROR(IF(ISBLANK($E579),"",COUNTIFS(MCdata,">"&$E578,MCdata,"<="&$E579,sc_data,"="&V$1))/runs,"") ->  | W578: =IFERROR(IF(ISBLANK($E579),"",COUNTIFS(MCdata,">"&$E578,MCdata,"<="&$E579,sc_data,"="&W$1))/runs,"") ->  | X578: =IFERROR(IF(ISBLANK($E579),"",COUNTIFS(MCdata,">"&$E578,MCdata,"<="&$E579,sc_data,"="&X$1))/runs,"") ->  | Y578: =IFERROR(IF(ISBLANK($E579),"",COUNTIFS(MCdata,">"&$E578,MCdata,"<="&$E579,sc_data,"="&Y$1))/runs,"") ->  | Z578: =IFERROR(IF(ISBLANK($E579),"",COUNTIFS(MCdata,">"&$E578,MCdata,"<="&$E579,sc_data,"="&Z$1))/runs,"") ->  | AA578: =IFERROR(IF(ISBLANK($E579),"",COUNTIFS(MCdata,">"&$E578,MCdata,"<="&$E579,sc_data,"="&AA$1))/runs,"") ->  | AB578: =IFERROR(IF(ISBLANK($E579),"",COUNTIFS(MCdata,">"&$E578,MCdata,"<="&$E579,sc_data,"="&AB$1))/runs,"") ->  | AC578: =IFERROR(IF(ISBLANK($E579),"",COUNTIFS(MCdata,">"&$E578,MCdata,"<="&$E579,sc_data,"="&AC$1))/runs,"") ->  | AD578: =IFERROR(IF(ISBLANK($E579),"",COUNTIFS(MCdata,">"&$E578,MCdata,"<="&$E579,sc_data,"="&AD$1))/runs,"") ->  | AE578: =IFERROR(IF(ISBLANK($E579),"",COUNTIFS(MCdata,">"&$E578,MCdata,"<="&$E579,sc_data,"="&AE$1))/runs,"") ->  | AF578: =IFERROR(IF(ISBLANK($E579),"",COUNTIFS(MCdata,">"&$E578,MCdata,"<="&$E579,sc_data,"="&AF$1))/runs,"") ->  | AG578: =IFERROR(IF(ISBLANK($E579),"",COUNTIFS(MCdata,">"&$E578,MCdata,"<="&$E579,sc_data,"="&AG$1))/runs,"") ->  | AH578: =IFERROR(IF(ISBLANK($E579),"",COUNTIFS(MCdata,">"&$E578,MCdata,"<="&$E579,sc_data,"="&AH$1))/runs,"") ->  | AI578: =IFERROR(IF(ISBLANK($E579),"",COUNTIFS(MCdata,">"&$E578,MCdata,"<="&$E579,sc_data,"="&AI$1))/runs,"") ->  | AJ578: =IFERROR(IF(ISBLANK($E579),"",COUNTIFS(MCdata,">"&$E578,MCdata,"<="&$E579,sc_data,"="&AJ$1))/runs,"") ->  | AK578: =IFERROR(IF(ISBLANK($E579),"",COUNTIFS(MCdata,">"&$E578,MCdata,"<="&$E579,sc_data,"="&AK$1))/runs,"") ->  | AL578: =IFERROR(IF(ISBLANK($E579),"",COUNTIFS(MCdata,">"&$E578,MCdata,"<="&$E579,sc_data,"="&AL$1))/runs,"") ->  | AM578: =IFERROR(IF(ISBLANK($E579),"",COUNTIFS(MCdata,">"&$E578,MCdata,"<="&$E579,sc_data,"="&AM$1))/runs,"") ->  | AN578: =IFERROR(IF(ISBLANK($E579),"",COUNTIFS(MCdata,">"&$E578,MCdata,"<="&$E579,sc_data,"="&AN$1))/runs,"") ->  | AO578: =IFERROR(IF(ISBLANK($E579),"",COUNTIFS(MCdata,">"&$E578,MCdata,"<="&$E579,sc_data,"="&AO$1))/runs,"") ->  | AP578: =IFERROR(IF(ISBLANK($E579),"",COUNTIFS(MCdata,">"&$E578,MCdata,"<="&$E579,sc_data,"="&AP$1))/runs,"") ->  | AQ578: =IFERROR(IF(ISBLANK($E579),"",COUNTIFS(MCdata,">"&$E578,MCdata,"<="&$E579,sc_data,"="&AQ$1))/runs,"") ->  | AR578: =IFERROR(IF(ISBLANK($E579),"",COUNTIFS(MCdata,">"&$E578,MCdata,"<="&$E579,sc_data,"="&AR$1))/runs,"") ->  | AS578: =IFERROR(IF(ISBLANK($E579),"",COUNTIFS(MCdata,">"&$E578,MCdata,"<="&$E579,sc_data,"="&AS$1))/runs,"") ->  | AT578: =IFERROR(IF(ISBLANK($E579),"",COUNTIFS(MCdata,">"&$E578,MCdata,"<="&$E579,sc_data,"="&AT$1))/runs,"") ->  | AU578: =IFERROR(IF(ISBLANK($E579),"",COUNTIFS(MCdata,">"&$E578,MCdata,"<="&$E579,sc_data,"="&AU$1))/runs,"") ->  | AV578: =IFERROR(IF(ISBLANK($E579),"",COUNTIFS(MCdata,">"&$E578,MCdata,"<="&$E579,sc_data,"="&AV$1))/runs,"") ->  | AW578: =IFERROR(IF(ISBLANK($E579),"",COUNTIFS(MCdata,">"&$E578,MCdata,"<="&$E579,sc_data,"="&AW$1))/runs,"") ->  | AX578: =IFERROR(IF(ISBLANK($E579),"",COUNTIFS(MCdata,">"&$E578,MCdata,"<="&$E579,sc_data,"="&AX$1))/runs,"") ->  | AY578: =IFERROR(IF(ISBLANK($E579),"",COUNTIFS(MCdata,">"&$E578,MCdata,"<="&$E579,sc_data,"="&AY$1))/runs,"") ->  | AZ578: =IFERROR(IF(ISBLANK($E579),"",COUNTIFS(MCdata,">"&$E578,MCdata,"<="&$E579,sc_data,"="&AZ$1))/runs,"") ->  | BA578: =IFERROR(IF(ISBLANK($E579),"",COUNTIFS(MCdata,">"&$E578,MCdata,"<="&$E579,sc_data,"="&BA$1))/runs,"") ->  | BB578: =IFERROR(IF(ISBLANK($E579),"",COUNTIFS(MCdata,">"&$E578,MCdata,"<="&$E579,sc_data,"="&BB$1))/runs,"") ->  | BC578: =IFERROR(IF(ISBLANK($E579),"",COUNTIFS(MCdata,">"&$E578,MCdata,"<="&$E579,sc_data,"="&BC$1))/runs,"") ->  | BD578: =IFERROR(IF(ISBLANK($E579),"",COUNTIFS(MCdata,">"&$E578,MCdata,"<="&$E579,sc_data,"="&BD$1))/runs,"") ->  | BE578: =IFERROR(IF(ISBLANK($E579),"",COUNTIFS(MCdata,">"&$E578,MCdata,"<="&$E579,sc_data,"="&BE$1))/runs,"") ->  | BF578: =IFERROR(IF(ISBLANK($E579),"",COUNTIFS(MCdata,">"&$E578,MCdata,"<="&$E579,sc_data,"="&BF$1))/runs,"") ->  | BG578: =IFERROR(IF(ISBLANK($E579),"",COUNTIFS(MCdata,">"&$E578,MCdata,"<="&$E579,sc_data,"="&BG$1))/runs,"") ->  | BH578: =IFERROR(IF(ISBLANK($E579),"",COUNTIFS(MCdata,">"&$E578,MCdata,"<="&$E579,sc_data,"="&BH$1))/runs,"") ->  | BI578: =IFERROR(IF(ISBLANK($E579),"",COUNTIFS(MCdata,">"&$E578,MCdata,"<="&$E579,sc_data,"="&BI$1))/runs,"") ->  | BJ578: =IFERROR(IF(ISBLANK($E579),"",COUNTIFS(MCdata,">"&$E578,MCdata,"<="&$E579,sc_data,"="&BJ$1))/runs,"") ->  | BK578: =IFERROR(IF(ISBLANK($E579),"",COUNTIFS(MCdata,">"&$E578,MCdata,"<="&$E579,sc_data,"="&BK$1))/runs,"") ->  | BL578: =IFERROR(IF(ISBLANK($E579),"",COUNTIFS(MCdata,">"&$E578,MCdata,"<="&$E579,sc_data,"="&BL$1))/runs,"") ->  | BM578: =IFERROR(IF(ISBLANK($E579),"",COUNTIFS(MCdata,">"&$E578,MCdata,"<="&$E579,sc_data,"="&BM$1))/runs,"") ->  | BN578: =IFERROR(IF(ISBLANK($E579),"",COUNTIFS(MCdata,">"&$E578,MCdata,"<="&$E579,sc_data,"="&BN$1))/runs,"") ->  | BO578: =IFERROR(IF(ISBLANK($E579),"",COUNTIFS(MCdata,">"&$E578,MCdata,"<="&$E579,sc_data,"="&BO$1))/runs,"") ->  | BP578: =IFERROR(IF(ISBLANK($E579),"",COUNTIFS(MCdata,">"&$E578,MCdata,"<="&$E579,sc_data,"="&BP$1))/runs,"") ->  | BQ578: =IFERROR(IF(ISBLANK($E579),"",COUNTIFS(MCdata,">"&$E578,MCdata,"<="&$E579,sc_data,"="&BQ$1))/runs,"") ->  | BR578: =IFERROR(IF(ISBLANK($E579),"",COUNTIFS(MCdata,">"&$E578,MCdata,"<="&$E579,sc_data,"="&BR$1))/runs,"") ->  | BS578: =IFERROR(IF(ISBLANK($E579),"",COUNTIFS(MCdata,">"&$E578,MCdata,"<="&$E579,sc_data,"="&BS$1))/runs,"") ->  | BT578: =IFERROR(IF(ISBLANK($E579),"",COUNTIFS(MCdata,">"&$E578,MCdata,"<="&$E579,sc_data,"="&BT$1))/runs,"") ->  | BU578: =IFERROR(IF(ISBLANK($E579),"",COUNTIFS(MCdata,">"&$E578,MCdata,"<="&$E579,sc_data,"="&BU$1))/runs,"") ->  | BV578: =IFERROR(IF(ISBLANK($E579),"",COUNTIFS(MCdata,">"&$E578,MCdata,"<="&$E579,sc_data,"="&BV$1))/runs,"") ->  | BW578: =IFERROR(IF(ISBLANK($E579),"",COUNTIFS(MCdata,">"&$E578,MCdata,"<="&$E579,scenarios,"="&BW$1))/runs,"") ->  | BX578: =IFERROR(IF(ISBLANK($E579),"",COUNTIFS(MCdata,">"&$E578,MCdata,"<="&$E579,scenarios,"="&BX$1))/runs,"") ->  | BY578: =IFERROR(IF(ISBLANK($E579),"",COUNTIFS(MCdata,">"&$E578,MCdata,"<="&$E579,scenarios,"="&BY$1))/runs,"") ->  | BZ578: =IFERROR(IF(ISBLANK($E579),"",COUNTIFS(MCdata,">"&$E578,MCdata,"<="&$E579,scenarios,"="&BZ$1))/runs,"") ->  | CA578: =IFERROR(IF(ISBLANK($E579),"",COUNTIFS(MCdata,">"&$E578,MCdata,"<="&$E579,scenarios,"="&CA$1))/runs,"") ->  | CB578: =IFERROR(IF(ISBLANK($E579),"",COUNTIFS(MCdata,">"&$E578,MCdata,"<="&$E579,scenarios,"="&CB$1))/runs,"") ->  | CC578: =IFERROR(IF(ISBLANK($E579),"",COUNTIFS(MCdata,">"&$E578,MCdata,"<="&$E579,scenarios,"="&CC$1))/runs,"") ->  | CD578: =IFERROR(IF(ISBLANK($E579),"",COUNTIFS(MCdata,">"&$E578,MCdata,"<="&$E579,scenarios,"="&CD$1))/runs,"") ->  | CE578: =IFERROR(IF(ISBLANK($E579),"",COUNTIFS(MCdata,">"&$E578,MCdata,"<="&$E579,scenarios,"="&CE$1))/runs,"") ->  | CF578: =IFERROR(IF(ISBLANK($E579),"",COUNTIFS(MCdata,">"&$E578,MCdata,"<="&$E579,scenarios,"="&CF$1))/runs,"") ->  | CG578: =IFERROR(IF(ISBLANK($E579),"",COUNTIFS(MCdata,">"&$E578,MCdata,"<="&$E579,scenarios,"="&CG$1))/runs,"") ->  | CH578: =IFERROR(IF(ISBLANK($E579),"",COUNTIFS(MCdata,">"&$E578,MCdata,"<="&$E579,scenarios,"="&CH$1))/runs,"") ->  | CI578: =IFERROR(IF(ISBLANK($E579),"",COUNTIFS(MCdata,">"&$E578,MCdata,"<="&$E579,scenarios,"="&CI$1))/runs,"") ->  | CJ578: =IFERROR(IF(ISBLANK($E579),"",COUNTIFS(MCdata,">"&$E578,MCdata,"<="&$E579,scenarios,"="&CJ$1))/runs,"") -> 
F642: =IFERROR(IF(ISBLANK(E643),"",COUNTIFS(MCdata,">"&E642,MCdata,"<="&E643))/runs,"") ->  | K642: =IFERROR(IF(ISBLANK($E643),"",COUNTIFS(MCdata,">"&$E642,MCdata,"<="&$E643,sc_data,"="&K$1))/runs,"") ->  | L642: =IFERROR(IF(ISBLANK($E643),"",COUNTIFS(MCdata,">"&$E642,MCdata,"<="&$E643,sc_data,"="&L$1))/runs,"") ->  | M642: =IFERROR(IF(ISBLANK($E643),"",COUNTIFS(MCdata,">"&$E642,MCdata,"<="&$E643,sc_data,"="&M$1))/runs,"") ->  | N642: =IFERROR(IF(ISBLANK($E643),"",COUNTIFS(MCdata,">"&$E642,MCdata,"<="&$E643,sc_data,"="&N$1))/runs,"") ->  | O642: =IFERROR(IF(ISBLANK($E643),"",COUNTIFS(MCdata,">"&$E642,MCdata,"<="&$E643,sc_data,"="&O$1))/runs,"") ->  | P642: =IFERROR(IF(ISBLANK($E643),"",COUNTIFS(MCdata,">"&$E642,MCdata,"<="&$E643,sc_data,"="&P$1))/runs,"") ->  | Q642: =IFERROR(IF(ISBLANK($E643),"",COUNTIFS(MCdata,">"&$E642,MCdata,"<="&$E643,sc_data,"="&Q$1))/runs,"") ->  | R642: =IFERROR(IF(ISBLANK($E643),"",COUNTIFS(MCdata,">"&$E642,MCdata,"<="&$E643,sc_data,"="&R$1))/runs,"") ->  | S642: =IFERROR(IF(ISBLANK($E643),"",COUNTIFS(MCdata,">"&$E642,MCdata,"<="&$E643,sc_data,"="&S$1))/runs,"") ->  | T642: =IFERROR(IF(ISBLANK($E643),"",COUNTIFS(MCdata,">"&$E642,MCdata,"<="&$E643,sc_data,"="&T$1))/runs,"") ->  | U642: =IFERROR(IF(ISBLANK($E643),"",COUNTIFS(MCdata,">"&$E642,MCdata,"<="&$E643,sc_data,"="&U$1))/runs,"") ->  | V642: =IFERROR(IF(ISBLANK($E643),"",COUNTIFS(MCdata,">"&$E642,MCdata,"<="&$E643,sc_data,"="&V$1))/runs,"") ->  | W642: =IFERROR(IF(ISBLANK($E643),"",COUNTIFS(MCdata,">"&$E642,MCdata,"<="&$E643,sc_data,"="&W$1))/runs,"") ->  | X642: =IFERROR(IF(ISBLANK($E643),"",COUNTIFS(MCdata,">"&$E642,MCdata,"<="&$E643,sc_data,"="&X$1))/runs,"") ->  | Y642: =IFERROR(IF(ISBLANK($E643),"",COUNTIFS(MCdata,">"&$E642,MCdata,"<="&$E643,sc_data,"="&Y$1))/runs,"") ->  | Z642: =IFERROR(IF(ISBLANK($E643),"",COUNTIFS(MCdata,">"&$E642,MCdata,"<="&$E643,sc_data,"="&Z$1))/runs,"") ->  | AA642: =IFERROR(IF(ISBLANK($E643),"",COUNTIFS(MCdata,">"&$E642,MCdata,"<="&$E643,sc_data,"="&AA$1))/runs,"") ->  | AB642: =IFERROR(IF(ISBLANK($E643),"",COUNTIFS(MCdata,">"&$E642,MCdata,"<="&$E643,sc_data,"="&AB$1))/runs,"") ->  | AC642: =IFERROR(IF(ISBLANK($E643),"",COUNTIFS(MCdata,">"&$E642,MCdata,"<="&$E643,sc_data,"="&AC$1))/runs,"") ->  | AD642: =IFERROR(IF(ISBLANK($E643),"",COUNTIFS(MCdata,">"&$E642,MCdata,"<="&$E643,sc_data,"="&AD$1))/runs,"") ->  | AE642: =IFERROR(IF(ISBLANK($E643),"",COUNTIFS(MCdata,">"&$E642,MCdata,"<="&$E643,sc_data,"="&AE$1))/runs,"") ->  | AF642: =IFERROR(IF(ISBLANK($E643),"",COUNTIFS(MCdata,">"&$E642,MCdata,"<="&$E643,sc_data,"="&AF$1))/runs,"") ->  | AG642: =IFERROR(IF(ISBLANK($E643),"",COUNTIFS(MCdata,">"&$E642,MCdata,"<="&$E643,sc_data,"="&AG$1))/runs,"") ->  | AH642: =IFERROR(IF(ISBLANK($E643),"",COUNTIFS(MCdata,">"&$E642,MCdata,"<="&$E643,sc_data,"="&AH$1))/runs,"") ->  | AI642: =IFERROR(IF(ISBLANK($E643),"",COUNTIFS(MCdata,">"&$E642,MCdata,"<="&$E643,sc_data,"="&AI$1))/runs,"") ->  | AJ642: =IFERROR(IF(ISBLANK($E643),"",COUNTIFS(MCdata,">"&$E642,MCdata,"<="&$E643,sc_data,"="&AJ$1))/runs,"") ->  | AK642: =IFERROR(IF(ISBLANK($E643),"",COUNTIFS(MCdata,">"&$E642,MCdata,"<="&$E643,sc_data,"="&AK$1))/runs,"") ->  | AL642: =IFERROR(IF(ISBLANK($E643),"",COUNTIFS(MCdata,">"&$E642,MCdata,"<="&$E643,sc_data,"="&AL$1))/runs,"") ->  | AM642: =IFERROR(IF(ISBLANK($E643),"",COUNTIFS(MCdata,">"&$E642,MCdata,"<="&$E643,sc_data,"="&AM$1))/runs,"") ->  | AN642: =IFERROR(IF(ISBLANK($E643),"",COUNTIFS(MCdata,">"&$E642,MCdata,"<="&$E643,sc_data,"="&AN$1))/runs,"") ->  | AO642: =IFERROR(IF(ISBLANK($E643),"",COUNTIFS(MCdata,">"&$E642,MCdata,"<="&$E643,sc_data,"="&AO$1))/runs,"") ->  | AP642: =IFERROR(IF(ISBLANK($E643),"",COUNTIFS(MCdata,">"&$E642,MCdata,"<="&$E643,sc_data,"="&AP$1))/runs,"") ->  | AQ642: =IFERROR(IF(ISBLANK($E643),"",COUNTIFS(MCdata,">"&$E642,MCdata,"<="&$E643,sc_data,"="&AQ$1))/runs,"") ->  | AR642: =IFERROR(IF(ISBLANK($E643),"",COUNTIFS(MCdata,">"&$E642,MCdata,"<="&$E643,sc_data,"="&AR$1))/runs,"") ->  | AS642: =IFERROR(IF(ISBLANK($E643),"",COUNTIFS(MCdata,">"&$E642,MCdata,"<="&$E643,sc_data,"="&AS$1))/runs,"") ->  | AT642: =IFERROR(IF(ISBLANK($E643),"",COUNTIFS(MCdata,">"&$E642,MCdata,"<="&$E643,sc_data,"="&AT$1))/runs,"") ->  | AU642: =IFERROR(IF(ISBLANK($E643),"",COUNTIFS(MCdata,">"&$E642,MCdata,"<="&$E643,sc_data,"="&AU$1))/runs,"") ->  | AV642: =IFERROR(IF(ISBLANK($E643),"",COUNTIFS(MCdata,">"&$E642,MCdata,"<="&$E643,sc_data,"="&AV$1))/runs,"") ->  | AW642: =IFERROR(IF(ISBLANK($E643),"",COUNTIFS(MCdata,">"&$E642,MCdata,"<="&$E643,sc_data,"="&AW$1))/runs,"") ->  | AX642: =IFERROR(IF(ISBLANK($E643),"",COUNTIFS(MCdata,">"&$E642,MCdata,"<="&$E643,sc_data,"="&AX$1))/runs,"") ->  | AY642: =IFERROR(IF(ISBLANK($E643),"",COUNTIFS(MCdata,">"&$E642,MCdata,"<="&$E643,sc_data,"="&AY$1))/runs,"") ->  | AZ642: =IFERROR(IF(ISBLANK($E643),"",COUNTIFS(MCdata,">"&$E642,MCdata,"<="&$E643,sc_data,"="&AZ$1))/runs,"") ->  | BA642: =IFERROR(IF(ISBLANK($E643),"",COUNTIFS(MCdata,">"&$E642,MCdata,"<="&$E643,sc_data,"="&BA$1))/runs,"") ->  | BB642: =IFERROR(IF(ISBLANK($E643),"",COUNTIFS(MCdata,">"&$E642,MCdata,"<="&$E643,sc_data,"="&BB$1))/runs,"") ->  | BC642: =IFERROR(IF(ISBLANK($E643),"",COUNTIFS(MCdata,">"&$E642,MCdata,"<="&$E643,sc_data,"="&BC$1))/runs,"") ->  | BD642: =IFERROR(IF(ISBLANK($E643),"",COUNTIFS(MCdata,">"&$E642,MCdata,"<="&$E643,sc_data,"="&BD$1))/runs,"") ->  | BE642: =IFERROR(IF(ISBLANK($E643),"",COUNTIFS(MCdata,">"&$E642,MCdata,"<="&$E643,sc_data,"="&BE$1))/runs,"") ->  | BF642: =IFERROR(IF(ISBLANK($E643),"",COUNTIFS(MCdata,">"&$E642,MCdata,"<="&$E643,sc_data,"="&BF$1))/runs,"") ->  | BG642: =IFERROR(IF(ISBLANK($E643),"",COUNTIFS(MCdata,">"&$E642,MCdata,"<="&$E643,sc_data,"="&BG$1))/runs,"") ->  | BH642: =IFERROR(IF(ISBLANK($E643),"",COUNTIFS(MCdata,">"&$E642,MCdata,"<="&$E643,sc_data,"="&BH$1))/runs,"") ->  | BI642: =IFERROR(IF(ISBLANK($E643),"",COUNTIFS(MCdata,">"&$E642,MCdata,"<="&$E643,sc_data,"="&BI$1))/runs,"") ->  | BJ642: =IFERROR(IF(ISBLANK($E643),"",COUNTIFS(MCdata,">"&$E642,MCdata,"<="&$E643,sc_data,"="&BJ$1))/runs,"") ->  | BK642: =IFERROR(IF(ISBLANK($E643),"",COUNTIFS(MCdata,">"&$E642,MCdata,"<="&$E643,sc_data,"="&BK$1))/runs,"") ->  | BL642: =IFERROR(IF(ISBLANK($E643),"",COUNTIFS(MCdata,">"&$E642,MCdata,"<="&$E643,sc_data,"="&BL$1))/runs,"") ->  | BM642: =IFERROR(IF(ISBLANK($E643),"",COUNTIFS(MCdata,">"&$E642,MCdata,"<="&$E643,sc_data,"="&BM$1))/runs,"") ->  | BN642: =IFERROR(IF(ISBLANK($E643),"",COUNTIFS(MCdata,">"&$E642,MCdata,"<="&$E643,sc_data,"="&BN$1))/runs,"") ->  | BO642: =IFERROR(IF(ISBLANK($E643),"",COUNTIFS(MCdata,">"&$E642,MCdata,"<="&$E643,sc_data,"="&BO$1))/runs,"") ->  | BP642: =IFERROR(IF(ISBLANK($E643),"",COUNTIFS(MCdata,">"&$E642,MCdata,"<="&$E643,sc_data,"="&BP$1))/runs,"") ->  | BQ642: =IFERROR(IF(ISBLANK($E643),"",COUNTIFS(MCdata,">"&$E642,MCdata,"<="&$E643,sc_data,"="&BQ$1))/runs,"") ->  | BR642: =IFERROR(IF(ISBLANK($E643),"",COUNTIFS(MCdata,">"&$E642,MCdata,"<="&$E643,sc_data,"="&BR$1))/runs,"") ->  | BS642: =IFERROR(IF(ISBLANK($E643),"",COUNTIFS(MCdata,">"&$E642,MCdata,"<="&$E643,sc_data,"="&BS$1))/runs,"") ->  | BT642: =IFERROR(IF(ISBLANK($E643),"",COUNTIFS(MCdata,">"&$E642,MCdata,"<="&$E643,sc_data,"="&BT$1))/runs,"") ->  | BU642: =IFERROR(IF(ISBLANK($E643),"",COUNTIFS(MCdata,">"&$E642,MCdata,"<="&$E643,sc_data,"="&BU$1))/runs,"") ->  | BV642: =IFERROR(IF(ISBLANK($E643),"",COUNTIFS(MCdata,">"&$E642,MCdata,"<="&$E643,sc_data,"="&BV$1))/runs,"") ->  | BW642: =IFERROR(IF(ISBLANK($E643),"",COUNTIFS(MCdata,">"&$E642,MCdata,"<="&$E643,scenarios,"="&BW$1))/runs,"") ->  | BX642: =IFERROR(IF(ISBLANK($E643),"",COUNTIFS(MCdata,">"&$E642,MCdata,"<="&$E643,scenarios,"="&BX$1))/runs,"") ->  | BY642: =IFERROR(IF(ISBLANK($E643),"",COUNTIFS(MCdata,">"&$E642,MCdata,"<="&$E643,scenarios,"="&BY$1))/runs,"") ->  | BZ642: =IFERROR(IF(ISBLANK($E643),"",COUNTIFS(MCdata,">"&$E642,MCdata,"<="&$E643,scenarios,"="&BZ$1))/runs,"") ->  | CA642: =IFERROR(IF(ISBLANK($E643),"",COUNTIFS(MCdata,">"&$E642,MCdata,"<="&$E643,scenarios,"="&CA$1))/runs,"") ->  | CB642: =IFERROR(IF(ISBLANK($E643),"",COUNTIFS(MCdata,">"&$E642,MCdata,"<="&$E643,scenarios,"="&CB$1))/runs,"") ->  | CC642: =IFERROR(IF(ISBLANK($E643),"",COUNTIFS(MCdata,">"&$E642,MCdata,"<="&$E643,scenarios,"="&CC$1))/runs,"") ->  | CD642: =IFERROR(IF(ISBLANK($E643),"",COUNTIFS(MCdata,">"&$E642,MCdata,"<="&$E643,scenarios,"="&CD$1))/runs,"") ->  | CE642: =IFERROR(IF(ISBLANK($E643),"",COUNTIFS(MCdata,">"&$E642,MCdata,"<="&$E643,scenarios,"="&CE$1))/runs,"") ->  | CF642: =IFERROR(IF(ISBLANK($E643),"",COUNTIFS(MCdata,">"&$E642,MCdata,"<="&$E643,scenarios,"="&CF$1))/runs,"") ->  | CG642: =IFERROR(IF(ISBLANK($E643),"",COUNTIFS(MCdata,">"&$E642,MCdata,"<="&$E643,scenarios,"="&CG$1))/runs,"") ->  | CH642: =IFERROR(IF(ISBLANK($E643),"",COUNTIFS(MCdata,">"&$E642,MCdata,"<="&$E643,scenarios,"="&CH$1))/runs,"") ->  | CI642: =IFERROR(IF(ISBLANK($E643),"",COUNTIFS(MCdata,">"&$E642,MCdata,"<="&$E643,scenarios,"="&CI$1))/runs,"") ->  | CJ642: =IFERROR(IF(ISBLANK($E643),"",COUNTIFS(MCdata,">"&$E642,MCdata,"<="&$E643,scenarios,"="&CJ$1))/runs,"") -> 
F706: =IFERROR(IF(ISBLANK(E707),"",COUNTIFS(MCdata,">"&E706,MCdata,"<="&E707))/runs,"") ->  | K706: =IFERROR(IF(ISBLANK($E707),"",COUNTIFS(MCdata,">"&$E706,MCdata,"<="&$E707,sc_data,"="&K$1))/runs,"") ->  | L706: =IFERROR(IF(ISBLANK($E707),"",COUNTIFS(MCdata,">"&$E706,MCdata,"<="&$E707,sc_data,"="&L$1))/runs,"") ->  | M706: =IFERROR(IF(ISBLANK($E707),"",COUNTIFS(MCdata,">"&$E706,MCdata,"<="&$E707,sc_data,"="&M$1))/runs,"") ->  | N706: =IFERROR(IF(ISBLANK($E707),"",COUNTIFS(MCdata,">"&$E706,MCdata,"<="&$E707,sc_data,"="&N$1))/runs,"") ->  | O706: =IFERROR(IF(ISBLANK($E707),"",COUNTIFS(MCdata,">"&$E706,MCdata,"<="&$E707,sc_data,"="&O$1))/runs,"") ->  | P706: =IFERROR(IF(ISBLANK($E707),"",COUNTIFS(MCdata,">"&$E706,MCdata,"<="&$E707,sc_data,"="&P$1))/runs,"") ->  | Q706: =IFERROR(IF(ISBLANK($E707),"",COUNTIFS(MCdata,">"&$E706,MCdata,"<="&$E707,sc_data,"="&Q$1))/runs,"") ->  | R706: =IFERROR(IF(ISBLANK($E707),"",COUNTIFS(MCdata,">"&$E706,MCdata,"<="&$E707,sc_data,"="&R$1))/runs,"") ->  | S706: =IFERROR(IF(ISBLANK($E707),"",COUNTIFS(MCdata,">"&$E706,MCdata,"<="&$E707,sc_data,"="&S$1))/runs,"") ->  | T706: =IFERROR(IF(ISBLANK($E707),"",COUNTIFS(MCdata,">"&$E706,MCdata,"<="&$E707,sc_data,"="&T$1))/runs,"") ->  | U706: =IFERROR(IF(ISBLANK($E707),"",COUNTIFS(MCdata,">"&$E706,MCdata,"<="&$E707,sc_data,"="&U$1))/runs,"") ->  | V706: =IFERROR(IF(ISBLANK($E707),"",COUNTIFS(MCdata,">"&$E706,MCdata,"<="&$E707,sc_data,"="&V$1))/runs,"") ->  | W706: =IFERROR(IF(ISBLANK($E707),"",COUNTIFS(MCdata,">"&$E706,MCdata,"<="&$E707,sc_data,"="&W$1))/runs,"") ->  | X706: =IFERROR(IF(ISBLANK($E707),"",COUNTIFS(MCdata,">"&$E706,MCdata,"<="&$E707,sc_data,"="&X$1))/runs,"") ->  | Y706: =IFERROR(IF(ISBLANK($E707),"",COUNTIFS(MCdata,">"&$E706,MCdata,"<="&$E707,sc_data,"="&Y$1))/runs,"") ->  | Z706: =IFERROR(IF(ISBLANK($E707),"",COUNTIFS(MCdata,">"&$E706,MCdata,"<="&$E707,sc_data,"="&Z$1))/runs,"") ->  | AA706: =IFERROR(IF(ISBLANK($E707),"",COUNTIFS(MCdata,">"&$E706,MCdata,"<="&$E707,sc_data,"="&AA$1))/runs,"") ->  | AB706: =IFERROR(IF(ISBLANK($E707),"",COUNTIFS(MCdata,">"&$E706,MCdata,"<="&$E707,sc_data,"="&AB$1))/runs,"") ->  | AC706: =IFERROR(IF(ISBLANK($E707),"",COUNTIFS(MCdata,">"&$E706,MCdata,"<="&$E707,sc_data,"="&AC$1))/runs,"") ->  | AD706: =IFERROR(IF(ISBLANK($E707),"",COUNTIFS(MCdata,">"&$E706,MCdata,"<="&$E707,sc_data,"="&AD$1))/runs,"") ->  | AE706: =IFERROR(IF(ISBLANK($E707),"",COUNTIFS(MCdata,">"&$E706,MCdata,"<="&$E707,sc_data,"="&AE$1))/runs,"") ->  | AF706: =IFERROR(IF(ISBLANK($E707),"",COUNTIFS(MCdata,">"&$E706,MCdata,"<="&$E707,sc_data,"="&AF$1))/runs,"") ->  | AG706: =IFERROR(IF(ISBLANK($E707),"",COUNTIFS(MCdata,">"&$E706,MCdata,"<="&$E707,sc_data,"="&AG$1))/runs,"") ->  | AH706: =IFERROR(IF(ISBLANK($E707),"",COUNTIFS(MCdata,">"&$E706,MCdata,"<="&$E707,sc_data,"="&AH$1))/runs,"") ->  | AI706: =IFERROR(IF(ISBLANK($E707),"",COUNTIFS(MCdata,">"&$E706,MCdata,"<="&$E707,sc_data,"="&AI$1))/runs,"") ->  | AJ706: =IFERROR(IF(ISBLANK($E707),"",COUNTIFS(MCdata,">"&$E706,MCdata,"<="&$E707,sc_data,"="&AJ$1))/runs,"") ->  | AK706: =IFERROR(IF(ISBLANK($E707),"",COUNTIFS(MCdata,">"&$E706,MCdata,"<="&$E707,sc_data,"="&AK$1))/runs,"") ->  | AL706: =IFERROR(IF(ISBLANK($E707),"",COUNTIFS(MCdata,">"&$E706,MCdata,"<="&$E707,sc_data,"="&AL$1))/runs,"") ->  | AM706: =IFERROR(IF(ISBLANK($E707),"",COUNTIFS(MCdata,">"&$E706,MCdata,"<="&$E707,sc_data,"="&AM$1))/runs,"") ->  | AN706: =IFERROR(IF(ISBLANK($E707),"",COUNTIFS(MCdata,">"&$E706,MCdata,"<="&$E707,sc_data,"="&AN$1))/runs,"") ->  | AO706: =IFERROR(IF(ISBLANK($E707),"",COUNTIFS(MCdata,">"&$E706,MCdata,"<="&$E707,sc_data,"="&AO$1))/runs,"") ->  | AP706: =IFERROR(IF(ISBLANK($E707),"",COUNTIFS(MCdata,">"&$E706,MCdata,"<="&$E707,sc_data,"="&AP$1))/runs,"") ->  | AQ706: =IFERROR(IF(ISBLANK($E707),"",COUNTIFS(MCdata,">"&$E706,MCdata,"<="&$E707,sc_data,"="&AQ$1))/runs,"") ->  | AR706: =IFERROR(IF(ISBLANK($E707),"",COUNTIFS(MCdata,">"&$E706,MCdata,"<="&$E707,sc_data,"="&AR$1))/runs,"") ->  | AS706: =IFERROR(IF(ISBLANK($E707),"",COUNTIFS(MCdata,">"&$E706,MCdata,"<="&$E707,sc_data,"="&AS$1))/runs,"") ->  | AT706: =IFERROR(IF(ISBLANK($E707),"",COUNTIFS(MCdata,">"&$E706,MCdata,"<="&$E707,sc_data,"="&AT$1))/runs,"") ->  | AU706: =IFERROR(IF(ISBLANK($E707),"",COUNTIFS(MCdata,">"&$E706,MCdata,"<="&$E707,sc_data,"="&AU$1))/runs,"") ->  | AV706: =IFERROR(IF(ISBLANK($E707),"",COUNTIFS(MCdata,">"&$E706,MCdata,"<="&$E707,sc_data,"="&AV$1))/runs,"") ->  | AW706: =IFERROR(IF(ISBLANK($E707),"",COUNTIFS(MCdata,">"&$E706,MCdata,"<="&$E707,sc_data,"="&AW$1))/runs,"") ->  | AX706: =IFERROR(IF(ISBLANK($E707),"",COUNTIFS(MCdata,">"&$E706,MCdata,"<="&$E707,sc_data,"="&AX$1))/runs,"") ->  | AY706: =IFERROR(IF(ISBLANK($E707),"",COUNTIFS(MCdata,">"&$E706,MCdata,"<="&$E707,sc_data,"="&AY$1))/runs,"") ->  | AZ706: =IFERROR(IF(ISBLANK($E707),"",COUNTIFS(MCdata,">"&$E706,MCdata,"<="&$E707,sc_data,"="&AZ$1))/runs,"") ->  | BA706: =IFERROR(IF(ISBLANK($E707),"",COUNTIFS(MCdata,">"&$E706,MCdata,"<="&$E707,sc_data,"="&BA$1))/runs,"") ->  | BB706: =IFERROR(IF(ISBLANK($E707),"",COUNTIFS(MCdata,">"&$E706,MCdata,"<="&$E707,sc_data,"="&BB$1))/runs,"") ->  | BC706: =IFERROR(IF(ISBLANK($E707),"",COUNTIFS(MCdata,">"&$E706,MCdata,"<="&$E707,sc_data,"="&BC$1))/runs,"") ->  | BD706: =IFERROR(IF(ISBLANK($E707),"",COUNTIFS(MCdata,">"&$E706,MCdata,"<="&$E707,sc_data,"="&BD$1))/runs,"") ->  | BE706: =IFERROR(IF(ISBLANK($E707),"",COUNTIFS(MCdata,">"&$E706,MCdata,"<="&$E707,sc_data,"="&BE$1))/runs,"") ->  | BF706: =IFERROR(IF(ISBLANK($E707),"",COUNTIFS(MCdata,">"&$E706,MCdata,"<="&$E707,sc_data,"="&BF$1))/runs,"") ->  | BG706: =IFERROR(IF(ISBLANK($E707),"",COUNTIFS(MCdata,">"&$E706,MCdata,"<="&$E707,sc_data,"="&BG$1))/runs,"") ->  | BH706: =IFERROR(IF(ISBLANK($E707),"",COUNTIFS(MCdata,">"&$E706,MCdata,"<="&$E707,sc_data,"="&BH$1))/runs,"") ->  | BI706: =IFERROR(IF(ISBLANK($E707),"",COUNTIFS(MCdata,">"&$E706,MCdata,"<="&$E707,sc_data,"="&BI$1))/runs,"") ->  | BJ706: =IFERROR(IF(ISBLANK($E707),"",COUNTIFS(MCdata,">"&$E706,MCdata,"<="&$E707,sc_data,"="&BJ$1))/runs,"") ->  | BK706: =IFERROR(IF(ISBLANK($E707),"",COUNTIFS(MCdata,">"&$E706,MCdata,"<="&$E707,sc_data,"="&BK$1))/runs,"") ->  | BL706: =IFERROR(IF(ISBLANK($E707),"",COUNTIFS(MCdata,">"&$E706,MCdata,"<="&$E707,sc_data,"="&BL$1))/runs,"") ->  | BM706: =IFERROR(IF(ISBLANK($E707),"",COUNTIFS(MCdata,">"&$E706,MCdata,"<="&$E707,sc_data,"="&BM$1))/runs,"") ->  | BN706: =IFERROR(IF(ISBLANK($E707),"",COUNTIFS(MCdata,">"&$E706,MCdata,"<="&$E707,sc_data,"="&BN$1))/runs,"") ->  | BO706: =IFERROR(IF(ISBLANK($E707),"",COUNTIFS(MCdata,">"&$E706,MCdata,"<="&$E707,sc_data,"="&BO$1))/runs,"") ->  | BP706: =IFERROR(IF(ISBLANK($E707),"",COUNTIFS(MCdata,">"&$E706,MCdata,"<="&$E707,sc_data,"="&BP$1))/runs,"") ->  | BQ706: =IFERROR(IF(ISBLANK($E707),"",COUNTIFS(MCdata,">"&$E706,MCdata,"<="&$E707,sc_data,"="&BQ$1))/runs,"") ->  | BR706: =IFERROR(IF(ISBLANK($E707),"",COUNTIFS(MCdata,">"&$E706,MCdata,"<="&$E707,sc_data,"="&BR$1))/runs,"") ->  | BS706: =IFERROR(IF(ISBLANK($E707),"",COUNTIFS(MCdata,">"&$E706,MCdata,"<="&$E707,sc_data,"="&BS$1))/runs,"") ->  | BT706: =IFERROR(IF(ISBLANK($E707),"",COUNTIFS(MCdata,">"&$E706,MCdata,"<="&$E707,sc_data,"="&BT$1))/runs,"") ->  | BU706: =IFERROR(IF(ISBLANK($E707),"",COUNTIFS(MCdata,">"&$E706,MCdata,"<="&$E707,sc_data,"="&BU$1))/runs,"") ->  | BV706: =IFERROR(IF(ISBLANK($E707),"",COUNTIFS(MCdata,">"&$E706,MCdata,"<="&$E707,sc_data,"="&BV$1))/runs,"") ->  | BW706: =IFERROR(IF(ISBLANK($E707),"",COUNTIFS(MCdata,">"&$E706,MCdata,"<="&$E707,scenarios,"="&BW$1))/runs,"") ->  | BX706: =IFERROR(IF(ISBLANK($E707),"",COUNTIFS(MCdata,">"&$E706,MCdata,"<="&$E707,scenarios,"="&BX$1))/runs,"") ->  | BY706: =IFERROR(IF(ISBLANK($E707),"",COUNTIFS(MCdata,">"&$E706,MCdata,"<="&$E707,scenarios,"="&BY$1))/runs,"") ->  | BZ706: =IFERROR(IF(ISBLANK($E707),"",COUNTIFS(MCdata,">"&$E706,MCdata,"<="&$E707,scenarios,"="&BZ$1))/runs,"") ->  | CA706: =IFERROR(IF(ISBLANK($E707),"",COUNTIFS(MCdata,">"&$E706,MCdata,"<="&$E707,scenarios,"="&CA$1))/runs,"") ->  | CB706: =IFERROR(IF(ISBLANK($E707),"",COUNTIFS(MCdata,">"&$E706,MCdata,"<="&$E707,scenarios,"="&CB$1))/runs,"") ->  | CC706: =IFERROR(IF(ISBLANK($E707),"",COUNTIFS(MCdata,">"&$E706,MCdata,"<="&$E707,scenarios,"="&CC$1))/runs,"") ->  | CD706: =IFERROR(IF(ISBLANK($E707),"",COUNTIFS(MCdata,">"&$E706,MCdata,"<="&$E707,scenarios,"="&CD$1))/runs,"") ->  | CE706: =IFERROR(IF(ISBLANK($E707),"",COUNTIFS(MCdata,">"&$E706,MCdata,"<="&$E707,scenarios,"="&CE$1))/runs,"") ->  | CF706: =IFERROR(IF(ISBLANK($E707),"",COUNTIFS(MCdata,">"&$E706,MCdata,"<="&$E707,scenarios,"="&CF$1))/runs,"") ->  | CG706: =IFERROR(IF(ISBLANK($E707),"",COUNTIFS(MCdata,">"&$E706,MCdata,"<="&$E707,scenarios,"="&CG$1))/runs,"") ->  | CH706: =IFERROR(IF(ISBLANK($E707),"",COUNTIFS(MCdata,">"&$E706,MCdata,"<="&$E707,scenarios,"="&CH$1))/runs,"") ->  | CI706: =IFERROR(IF(ISBLANK($E707),"",COUNTIFS(MCdata,">"&$E706,MCdata,"<="&$E707,scenarios,"="&CI$1))/runs,"") ->  | CJ706: =IFERROR(IF(ISBLANK($E707),"",COUNTIFS(MCdata,">"&$E706,MCdata,"<="&$E707,scenarios,"="&CJ$1))/runs,"") -> 
F770: =IFERROR(IF(ISBLANK(E771),"",COUNTIFS(MCdata,">"&E770,MCdata,"<="&E771))/runs,"") ->  | K770: =IFERROR(IF(ISBLANK($E771),"",COUNTIFS(MCdata,">"&$E770,MCdata,"<="&$E771,sc_data,"="&K$1))/runs,"") ->  | L770: =IFERROR(IF(ISBLANK($E771),"",COUNTIFS(MCdata,">"&$E770,MCdata,"<="&$E771,sc_data,"="&L$1))/runs,"") ->  | M770: =IFERROR(IF(ISBLANK($E771),"",COUNTIFS(MCdata,">"&$E770,MCdata,"<="&$E771,sc_data,"="&M$1))/runs,"") ->  | N770: =IFERROR(IF(ISBLANK($E771),"",COUNTIFS(MCdata,">"&$E770,MCdata,"<="&$E771,sc_data,"="&N$1))/runs,"") ->  | O770: =IFERROR(IF(ISBLANK($E771),"",COUNTIFS(MCdata,">"&$E770,MCdata,"<="&$E771,sc_data,"="&O$1))/runs,"") ->  | P770: =IFERROR(IF(ISBLANK($E771),"",COUNTIFS(MCdata,">"&$E770,MCdata,"<="&$E771,sc_data,"="&P$1))/runs,"") ->  | Q770: =IFERROR(IF(ISBLANK($E771),"",COUNTIFS(MCdata,">"&$E770,MCdata,"<="&$E771,sc_data,"="&Q$1))/runs,"") ->  | R770: =IFERROR(IF(ISBLANK($E771),"",COUNTIFS(MCdata,">"&$E770,MCdata,"<="&$E771,sc_data,"="&R$1))/runs,"") ->  | S770: =IFERROR(IF(ISBLANK($E771),"",COUNTIFS(MCdata,">"&$E770,MCdata,"<="&$E771,sc_data,"="&S$1))/runs,"") ->  | T770: =IFERROR(IF(ISBLANK($E771),"",COUNTIFS(MCdata,">"&$E770,MCdata,"<="&$E771,sc_data,"="&T$1))/runs,"") ->  | U770: =IFERROR(IF(ISBLANK($E771),"",COUNTIFS(MCdata,">"&$E770,MCdata,"<="&$E771,sc_data,"="&U$1))/runs,"") ->  | V770: =IFERROR(IF(ISBLANK($E771),"",COUNTIFS(MCdata,">"&$E770,MCdata,"<="&$E771,sc_data,"="&V$1))/runs,"") ->  | W770: =IFERROR(IF(ISBLANK($E771),"",COUNTIFS(MCdata,">"&$E770,MCdata,"<="&$E771,sc_data,"="&W$1))/runs,"") ->  | X770: =IFERROR(IF(ISBLANK($E771),"",COUNTIFS(MCdata,">"&$E770,MCdata,"<="&$E771,sc_data,"="&X$1))/runs,"") ->  | Y770: =IFERROR(IF(ISBLANK($E771),"",COUNTIFS(MCdata,">"&$E770,MCdata,"<="&$E771,sc_data,"="&Y$1))/runs,"") ->  | Z770: =IFERROR(IF(ISBLANK($E771),"",COUNTIFS(MCdata,">"&$E770,MCdata,"<="&$E771,sc_data,"="&Z$1))/runs,"") ->  | AA770: =IFERROR(IF(ISBLANK($E771),"",COUNTIFS(MCdata,">"&$E770,MCdata,"<="&$E771,sc_data,"="&AA$1))/runs,"") ->  | AB770: =IFERROR(IF(ISBLANK($E771),"",COUNTIFS(MCdata,">"&$E770,MCdata,"<="&$E771,sc_data,"="&AB$1))/runs,"") ->  | AC770: =IFERROR(IF(ISBLANK($E771),"",COUNTIFS(MCdata,">"&$E770,MCdata,"<="&$E771,sc_data,"="&AC$1))/runs,"") ->  | AD770: =IFERROR(IF(ISBLANK($E771),"",COUNTIFS(MCdata,">"&$E770,MCdata,"<="&$E771,sc_data,"="&AD$1))/runs,"") ->  | AE770: =IFERROR(IF(ISBLANK($E771),"",COUNTIFS(MCdata,">"&$E770,MCdata,"<="&$E771,sc_data,"="&AE$1))/runs,"") ->  | AF770: =IFERROR(IF(ISBLANK($E771),"",COUNTIFS(MCdata,">"&$E770,MCdata,"<="&$E771,sc_data,"="&AF$1))/runs,"") ->  | AG770: =IFERROR(IF(ISBLANK($E771),"",COUNTIFS(MCdata,">"&$E770,MCdata,"<="&$E771,sc_data,"="&AG$1))/runs,"") ->  | AH770: =IFERROR(IF(ISBLANK($E771),"",COUNTIFS(MCdata,">"&$E770,MCdata,"<="&$E771,sc_data,"="&AH$1))/runs,"") ->  | AI770: =IFERROR(IF(ISBLANK($E771),"",COUNTIFS(MCdata,">"&$E770,MCdata,"<="&$E771,sc_data,"="&AI$1))/runs,"") ->  | AJ770: =IFERROR(IF(ISBLANK($E771),"",COUNTIFS(MCdata,">"&$E770,MCdata,"<="&$E771,sc_data,"="&AJ$1))/runs,"") ->  | AK770: =IFERROR(IF(ISBLANK($E771),"",COUNTIFS(MCdata,">"&$E770,MCdata,"<="&$E771,sc_data,"="&AK$1))/runs,"") ->  | AL770: =IFERROR(IF(ISBLANK($E771),"",COUNTIFS(MCdata,">"&$E770,MCdata,"<="&$E771,sc_data,"="&AL$1))/runs,"") ->  | AM770: =IFERROR(IF(ISBLANK($E771),"",COUNTIFS(MCdata,">"&$E770,MCdata,"<="&$E771,sc_data,"="&AM$1))/runs,"") ->  | AN770: =IFERROR(IF(ISBLANK($E771),"",COUNTIFS(MCdata,">"&$E770,MCdata,"<="&$E771,sc_data,"="&AN$1))/runs,"") ->  | AO770: =IFERROR(IF(ISBLANK($E771),"",COUNTIFS(MCdata,">"&$E770,MCdata,"<="&$E771,sc_data,"="&AO$1))/runs,"") ->  | AP770: =IFERROR(IF(ISBLANK($E771),"",COUNTIFS(MCdata,">"&$E770,MCdata,"<="&$E771,sc_data,"="&AP$1))/runs,"") ->  | AQ770: =IFERROR(IF(ISBLANK($E771),"",COUNTIFS(MCdata,">"&$E770,MCdata,"<="&$E771,sc_data,"="&AQ$1))/runs,"") ->  | AR770: =IFERROR(IF(ISBLANK($E771),"",COUNTIFS(MCdata,">"&$E770,MCdata,"<="&$E771,sc_data,"="&AR$1))/runs,"") ->  | AS770: =IFERROR(IF(ISBLANK($E771),"",COUNTIFS(MCdata,">"&$E770,MCdata,"<="&$E771,sc_data,"="&AS$1))/runs,"") ->  | AT770: =IFERROR(IF(ISBLANK($E771),"",COUNTIFS(MCdata,">"&$E770,MCdata,"<="&$E771,sc_data,"="&AT$1))/runs,"") ->  | AU770: =IFERROR(IF(ISBLANK($E771),"",COUNTIFS(MCdata,">"&$E770,MCdata,"<="&$E771,sc_data,"="&AU$1))/runs,"") ->  | AV770: =IFERROR(IF(ISBLANK($E771),"",COUNTIFS(MCdata,">"&$E770,MCdata,"<="&$E771,sc_data,"="&AV$1))/runs,"") ->  | AW770: =IFERROR(IF(ISBLANK($E771),"",COUNTIFS(MCdata,">"&$E770,MCdata,"<="&$E771,sc_data,"="&AW$1))/runs,"") ->  | AX770: =IFERROR(IF(ISBLANK($E771),"",COUNTIFS(MCdata,">"&$E770,MCdata,"<="&$E771,sc_data,"="&AX$1))/runs,"") ->  | AY770: =IFERROR(IF(ISBLANK($E771),"",COUNTIFS(MCdata,">"&$E770,MCdata,"<="&$E771,sc_data,"="&AY$1))/runs,"") ->  | AZ770: =IFERROR(IF(ISBLANK($E771),"",COUNTIFS(MCdata,">"&$E770,MCdata,"<="&$E771,sc_data,"="&AZ$1))/runs,"") ->  | BA770: =IFERROR(IF(ISBLANK($E771),"",COUNTIFS(MCdata,">"&$E770,MCdata,"<="&$E771,sc_data,"="&BA$1))/runs,"") ->  | BB770: =IFERROR(IF(ISBLANK($E771),"",COUNTIFS(MCdata,">"&$E770,MCdata,"<="&$E771,sc_data,"="&BB$1))/runs,"") ->  | BC770: =IFERROR(IF(ISBLANK($E771),"",COUNTIFS(MCdata,">"&$E770,MCdata,"<="&$E771,sc_data,"="&BC$1))/runs,"") ->  | BD770: =IFERROR(IF(ISBLANK($E771),"",COUNTIFS(MCdata,">"&$E770,MCdata,"<="&$E771,sc_data,"="&BD$1))/runs,"") ->  | BE770: =IFERROR(IF(ISBLANK($E771),"",COUNTIFS(MCdata,">"&$E770,MCdata,"<="&$E771,sc_data,"="&BE$1))/runs,"") ->  | BF770: =IFERROR(IF(ISBLANK($E771),"",COUNTIFS(MCdata,">"&$E770,MCdata,"<="&$E771,sc_data,"="&BF$1))/runs,"") ->  | BG770: =IFERROR(IF(ISBLANK($E771),"",COUNTIFS(MCdata,">"&$E770,MCdata,"<="&$E771,sc_data,"="&BG$1))/runs,"") ->  | BH770: =IFERROR(IF(ISBLANK($E771),"",COUNTIFS(MCdata,">"&$E770,MCdata,"<="&$E771,sc_data,"="&BH$1))/runs,"") ->  | BI770: =IFERROR(IF(ISBLANK($E771),"",COUNTIFS(MCdata,">"&$E770,MCdata,"<="&$E771,sc_data,"="&BI$1))/runs,"") ->  | BJ770: =IFERROR(IF(ISBLANK($E771),"",COUNTIFS(MCdata,">"&$E770,MCdata,"<="&$E771,sc_data,"="&BJ$1))/runs,"") ->  | BK770: =IFERROR(IF(ISBLANK($E771),"",COUNTIFS(MCdata,">"&$E770,MCdata,"<="&$E771,sc_data,"="&BK$1))/runs,"") ->  | BL770: =IFERROR(IF(ISBLANK($E771),"",COUNTIFS(MCdata,">"&$E770,MCdata,"<="&$E771,sc_data,"="&BL$1))/runs,"") ->  | BM770: =IFERROR(IF(ISBLANK($E771),"",COUNTIFS(MCdata,">"&$E770,MCdata,"<="&$E771,sc_data,"="&BM$1))/runs,"") ->  | BN770: =IFERROR(IF(ISBLANK($E771),"",COUNTIFS(MCdata,">"&$E770,MCdata,"<="&$E771,sc_data,"="&BN$1))/runs,"") ->  | BO770: =IFERROR(IF(ISBLANK($E771),"",COUNTIFS(MCdata,">"&$E770,MCdata,"<="&$E771,sc_data,"="&BO$1))/runs,"") ->  | BP770: =IFERROR(IF(ISBLANK($E771),"",COUNTIFS(MCdata,">"&$E770,MCdata,"<="&$E771,sc_data,"="&BP$1))/runs,"") ->  | BQ770: =IFERROR(IF(ISBLANK($E771),"",COUNTIFS(MCdata,">"&$E770,MCdata,"<="&$E771,sc_data,"="&BQ$1))/runs,"") ->  | BR770: =IFERROR(IF(ISBLANK($E771),"",COUNTIFS(MCdata,">"&$E770,MCdata,"<="&$E771,sc_data,"="&BR$1))/runs,"") ->  | BS770: =IFERROR(IF(ISBLANK($E771),"",COUNTIFS(MCdata,">"&$E770,MCdata,"<="&$E771,sc_data,"="&BS$1))/runs,"") ->  | BT770: =IFERROR(IF(ISBLANK($E771),"",COUNTIFS(MCdata,">"&$E770,MCdata,"<="&$E771,sc_data,"="&BT$1))/runs,"") ->  | BU770: =IFERROR(IF(ISBLANK($E771),"",COUNTIFS(MCdata,">"&$E770,MCdata,"<="&$E771,sc_data,"="&BU$1))/runs,"") ->  | BV770: =IFERROR(IF(ISBLANK($E771),"",COUNTIFS(MCdata,">"&$E770,MCdata,"<="&$E771,sc_data,"="&BV$1))/runs,"") ->  | BW770: =IFERROR(IF(ISBLANK($E771),"",COUNTIFS(MCdata,">"&$E770,MCdata,"<="&$E771,scenarios,"="&BW$1))/runs,"") ->  | BX770: =IFERROR(IF(ISBLANK($E771),"",COUNTIFS(MCdata,">"&$E770,MCdata,"<="&$E771,scenarios,"="&BX$1))/runs,"") ->  | BY770: =IFERROR(IF(ISBLANK($E771),"",COUNTIFS(MCdata,">"&$E770,MCdata,"<="&$E771,scenarios,"="&BY$1))/runs,"") ->  | BZ770: =IFERROR(IF(ISBLANK($E771),"",COUNTIFS(MCdata,">"&$E770,MCdata,"<="&$E771,scenarios,"="&BZ$1))/runs,"") ->  | CA770: =IFERROR(IF(ISBLANK($E771),"",COUNTIFS(MCdata,">"&$E770,MCdata,"<="&$E771,scenarios,"="&CA$1))/runs,"") ->  | CB770: =IFERROR(IF(ISBLANK($E771),"",COUNTIFS(MCdata,">"&$E770,MCdata,"<="&$E771,scenarios,"="&CB$1))/runs,"") ->  | CC770: =IFERROR(IF(ISBLANK($E771),"",COUNTIFS(MCdata,">"&$E770,MCdata,"<="&$E771,scenarios,"="&CC$1))/runs,"") ->  | CD770: =IFERROR(IF(ISBLANK($E771),"",COUNTIFS(MCdata,">"&$E770,MCdata,"<="&$E771,scenarios,"="&CD$1))/runs,"") ->  | CE770: =IFERROR(IF(ISBLANK($E771),"",COUNTIFS(MCdata,">"&$E770,MCdata,"<="&$E771,scenarios,"="&CE$1))/runs,"") ->  | CF770: =IFERROR(IF(ISBLANK($E771),"",COUNTIFS(MCdata,">"&$E770,MCdata,"<="&$E771,scenarios,"="&CF$1))/runs,"") ->  | CG770: =IFERROR(IF(ISBLANK($E771),"",COUNTIFS(MCdata,">"&$E770,MCdata,"<="&$E771,scenarios,"="&CG$1))/runs,"") ->  | CH770: =IFERROR(IF(ISBLANK($E771),"",COUNTIFS(MCdata,">"&$E770,MCdata,"<="&$E771,scenarios,"="&CH$1))/runs,"") ->  | CI770: =IFERROR(IF(ISBLANK($E771),"",COUNTIFS(MCdata,">"&$E770,MCdata,"<="&$E771,scenarios,"="&CI$1))/runs,"") ->  | CJ770: =IFERROR(IF(ISBLANK($E771),"",COUNTIFS(MCdata,">"&$E770,MCdata,"<="&$E771,scenarios,"="&CJ$1))/runs,"") -> 
F834: =IFERROR(IF(ISBLANK(E835),"",COUNTIFS(MCdata,">"&E834,MCdata,"<="&E835))/runs,"") ->  | K834: =IFERROR(IF(ISBLANK($E835),"",COUNTIFS(MCdata,">"&$E834,MCdata,"<="&$E835,sc_data,"="&K$1))/runs,"") ->  | L834: =IFERROR(IF(ISBLANK($E835),"",COUNTIFS(MCdata,">"&$E834,MCdata,"<="&$E835,sc_data,"="&L$1))/runs,"") ->  | M834: =IFERROR(IF(ISBLANK($E835),"",COUNTIFS(MCdata,">"&$E834,MCdata,"<="&$E835,sc_data,"="&M$1))/runs,"") ->  | N834: =IFERROR(IF(ISBLANK($E835),"",COUNTIFS(MCdata,">"&$E834,MCdata,"<="&$E835,sc_data,"="&N$1))/runs,"") ->  | O834: =IFERROR(IF(ISBLANK($E835),"",COUNTIFS(MCdata,">"&$E834,MCdata,"<="&$E835,sc_data,"="&O$1))/runs,"") ->  | P834: =IFERROR(IF(ISBLANK($E835),"",COUNTIFS(MCdata,">"&$E834,MCdata,"<="&$E835,sc_data,"="&P$1))/runs,"") ->  | Q834: =IFERROR(IF(ISBLANK($E835),"",COUNTIFS(MCdata,">"&$E834,MCdata,"<="&$E835,sc_data,"="&Q$1))/runs,"") ->  | R834: =IFERROR(IF(ISBLANK($E835),"",COUNTIFS(MCdata,">"&$E834,MCdata,"<="&$E835,sc_data,"="&R$1))/runs,"") ->  | S834: =IFERROR(IF(ISBLANK($E835),"",COUNTIFS(MCdata,">"&$E834,MCdata,"<="&$E835,sc_data,"="&S$1))/runs,"") ->  | T834: =IFERROR(IF(ISBLANK($E835),"",COUNTIFS(MCdata,">"&$E834,MCdata,"<="&$E835,sc_data,"="&T$1))/runs,"") ->  | U834: =IFERROR(IF(ISBLANK($E835),"",COUNTIFS(MCdata,">"&$E834,MCdata,"<="&$E835,sc_data,"="&U$1))/runs,"") ->  | V834: =IFERROR(IF(ISBLANK($E835),"",COUNTIFS(MCdata,">"&$E834,MCdata,"<="&$E835,sc_data,"="&V$1))/runs,"") ->  | W834: =IFERROR(IF(ISBLANK($E835),"",COUNTIFS(MCdata,">"&$E834,MCdata,"<="&$E835,sc_data,"="&W$1))/runs,"") ->  | X834: =IFERROR(IF(ISBLANK($E835),"",COUNTIFS(MCdata,">"&$E834,MCdata,"<="&$E835,sc_data,"="&X$1))/runs,"") ->  | Y834: =IFERROR(IF(ISBLANK($E835),"",COUNTIFS(MCdata,">"&$E834,MCdata,"<="&$E835,sc_data,"="&Y$1))/runs,"") ->  | Z834: =IFERROR(IF(ISBLANK($E835),"",COUNTIFS(MCdata,">"&$E834,MCdata,"<="&$E835,sc_data,"="&Z$1))/runs,"") ->  | AA834: =IFERROR(IF(ISBLANK($E835),"",COUNTIFS(MCdata,">"&$E834,MCdata,"<="&$E835,sc_data,"="&AA$1))/runs,"") ->  | AB834: =IFERROR(IF(ISBLANK($E835),"",COUNTIFS(MCdata,">"&$E834,MCdata,"<="&$E835,sc_data,"="&AB$1))/runs,"") ->  | AC834: =IFERROR(IF(ISBLANK($E835),"",COUNTIFS(MCdata,">"&$E834,MCdata,"<="&$E835,sc_data,"="&AC$1))/runs,"") ->  | AD834: =IFERROR(IF(ISBLANK($E835),"",COUNTIFS(MCdata,">"&$E834,MCdata,"<="&$E835,sc_data,"="&AD$1))/runs,"") ->  | AE834: =IFERROR(IF(ISBLANK($E835),"",COUNTIFS(MCdata,">"&$E834,MCdata,"<="&$E835,sc_data,"="&AE$1))/runs,"") ->  | AF834: =IFERROR(IF(ISBLANK($E835),"",COUNTIFS(MCdata,">"&$E834,MCdata,"<="&$E835,sc_data,"="&AF$1))/runs,"") ->  | AG834: =IFERROR(IF(ISBLANK($E835),"",COUNTIFS(MCdata,">"&$E834,MCdata,"<="&$E835,sc_data,"="&AG$1))/runs,"") ->  | AH834: =IFERROR(IF(ISBLANK($E835),"",COUNTIFS(MCdata,">"&$E834,MCdata,"<="&$E835,sc_data,"="&AH$1))/runs,"") ->  | AI834: =IFERROR(IF(ISBLANK($E835),"",COUNTIFS(MCdata,">"&$E834,MCdata,"<="&$E835,sc_data,"="&AI$1))/runs,"") ->  | AJ834: =IFERROR(IF(ISBLANK($E835),"",COUNTIFS(MCdata,">"&$E834,MCdata,"<="&$E835,sc_data,"="&AJ$1))/runs,"") ->  | AK834: =IFERROR(IF(ISBLANK($E835),"",COUNTIFS(MCdata,">"&$E834,MCdata,"<="&$E835,sc_data,"="&AK$1))/runs,"") ->  | AL834: =IFERROR(IF(ISBLANK($E835),"",COUNTIFS(MCdata,">"&$E834,MCdata,"<="&$E835,sc_data,"="&AL$1))/runs,"") ->  | AM834: =IFERROR(IF(ISBLANK($E835),"",COUNTIFS(MCdata,">"&$E834,MCdata,"<="&$E835,sc_data,"="&AM$1))/runs,"") ->  | AN834: =IFERROR(IF(ISBLANK($E835),"",COUNTIFS(MCdata,">"&$E834,MCdata,"<="&$E835,sc_data,"="&AN$1))/runs,"") ->  | AO834: =IFERROR(IF(ISBLANK($E835),"",COUNTIFS(MCdata,">"&$E834,MCdata,"<="&$E835,sc_data,"="&AO$1))/runs,"") ->  | AP834: =IFERROR(IF(ISBLANK($E835),"",COUNTIFS(MCdata,">"&$E834,MCdata,"<="&$E835,sc_data,"="&AP$1))/runs,"") ->  | AQ834: =IFERROR(IF(ISBLANK($E835),"",COUNTIFS(MCdata,">"&$E834,MCdata,"<="&$E835,sc_data,"="&AQ$1))/runs,"") ->  | AR834: =IFERROR(IF(ISBLANK($E835),"",COUNTIFS(MCdata,">"&$E834,MCdata,"<="&$E835,sc_data,"="&AR$1))/runs,"") ->  | AS834: =IFERROR(IF(ISBLANK($E835),"",COUNTIFS(MCdata,">"&$E834,MCdata,"<="&$E835,sc_data,"="&AS$1))/runs,"") ->  | AT834: =IFERROR(IF(ISBLANK($E835),"",COUNTIFS(MCdata,">"&$E834,MCdata,"<="&$E835,sc_data,"="&AT$1))/runs,"") ->  | AU834: =IFERROR(IF(ISBLANK($E835),"",COUNTIFS(MCdata,">"&$E834,MCdata,"<="&$E835,sc_data,"="&AU$1))/runs,"") ->  | AV834: =IFERROR(IF(ISBLANK($E835),"",COUNTIFS(MCdata,">"&$E834,MCdata,"<="&$E835,sc_data,"="&AV$1))/runs,"") ->  | AW834: =IFERROR(IF(ISBLANK($E835),"",COUNTIFS(MCdata,">"&$E834,MCdata,"<="&$E835,sc_data,"="&AW$1))/runs,"") ->  | AX834: =IFERROR(IF(ISBLANK($E835),"",COUNTIFS(MCdata,">"&$E834,MCdata,"<="&$E835,sc_data,"="&AX$1))/runs,"") ->  | AY834: =IFERROR(IF(ISBLANK($E835),"",COUNTIFS(MCdata,">"&$E834,MCdata,"<="&$E835,sc_data,"="&AY$1))/runs,"") ->  | AZ834: =IFERROR(IF(ISBLANK($E835),"",COUNTIFS(MCdata,">"&$E834,MCdata,"<="&$E835,sc_data,"="&AZ$1))/runs,"") ->  | BA834: =IFERROR(IF(ISBLANK($E835),"",COUNTIFS(MCdata,">"&$E834,MCdata,"<="&$E835,sc_data,"="&BA$1))/runs,"") ->  | BB834: =IFERROR(IF(ISBLANK($E835),"",COUNTIFS(MCdata,">"&$E834,MCdata,"<="&$E835,sc_data,"="&BB$1))/runs,"") ->  | BC834: =IFERROR(IF(ISBLANK($E835),"",COUNTIFS(MCdata,">"&$E834,MCdata,"<="&$E835,sc_data,"="&BC$1))/runs,"") ->  | BD834: =IFERROR(IF(ISBLANK($E835),"",COUNTIFS(MCdata,">"&$E834,MCdata,"<="&$E835,sc_data,"="&BD$1))/runs,"") ->  | BE834: =IFERROR(IF(ISBLANK($E835),"",COUNTIFS(MCdata,">"&$E834,MCdata,"<="&$E835,sc_data,"="&BE$1))/runs,"") ->  | BF834: =IFERROR(IF(ISBLANK($E835),"",COUNTIFS(MCdata,">"&$E834,MCdata,"<="&$E835,sc_data,"="&BF$1))/runs,"") ->  | BG834: =IFERROR(IF(ISBLANK($E835),"",COUNTIFS(MCdata,">"&$E834,MCdata,"<="&$E835,sc_data,"="&BG$1))/runs,"") ->  | BH834: =IFERROR(IF(ISBLANK($E835),"",COUNTIFS(MCdata,">"&$E834,MCdata,"<="&$E835,sc_data,"="&BH$1))/runs,"") ->  | BI834: =IFERROR(IF(ISBLANK($E835),"",COUNTIFS(MCdata,">"&$E834,MCdata,"<="&$E835,sc_data,"="&BI$1))/runs,"") ->  | BJ834: =IFERROR(IF(ISBLANK($E835),"",COUNTIFS(MCdata,">"&$E834,MCdata,"<="&$E835,sc_data,"="&BJ$1))/runs,"") ->  | BK834: =IFERROR(IF(ISBLANK($E835),"",COUNTIFS(MCdata,">"&$E834,MCdata,"<="&$E835,sc_data,"="&BK$1))/runs,"") ->  | BL834: =IFERROR(IF(ISBLANK($E835),"",COUNTIFS(MCdata,">"&$E834,MCdata,"<="&$E835,sc_data,"="&BL$1))/runs,"") ->  | BM834: =IFERROR(IF(ISBLANK($E835),"",COUNTIFS(MCdata,">"&$E834,MCdata,"<="&$E835,sc_data,"="&BM$1))/runs,"") ->  | BN834: =IFERROR(IF(ISBLANK($E835),"",COUNTIFS(MCdata,">"&$E834,MCdata,"<="&$E835,sc_data,"="&BN$1))/runs,"") ->  | BO834: =IFERROR(IF(ISBLANK($E835),"",COUNTIFS(MCdata,">"&$E834,MCdata,"<="&$E835,sc_data,"="&BO$1))/runs,"") ->  | BP834: =IFERROR(IF(ISBLANK($E835),"",COUNTIFS(MCdata,">"&$E834,MCdata,"<="&$E835,sc_data,"="&BP$1))/runs,"") ->  | BQ834: =IFERROR(IF(ISBLANK($E835),"",COUNTIFS(MCdata,">"&$E834,MCdata,"<="&$E835,sc_data,"="&BQ$1))/runs,"") ->  | BR834: =IFERROR(IF(ISBLANK($E835),"",COUNTIFS(MCdata,">"&$E834,MCdata,"<="&$E835,sc_data,"="&BR$1))/runs,"") ->  | BS834: =IFERROR(IF(ISBLANK($E835),"",COUNTIFS(MCdata,">"&$E834,MCdata,"<="&$E835,sc_data,"="&BS$1))/runs,"") ->  | BT834: =IFERROR(IF(ISBLANK($E835),"",COUNTIFS(MCdata,">"&$E834,MCdata,"<="&$E835,sc_data,"="&BT$1))/runs,"") ->  | BU834: =IFERROR(IF(ISBLANK($E835),"",COUNTIFS(MCdata,">"&$E834,MCdata,"<="&$E835,sc_data,"="&BU$1))/runs,"") ->  | BV834: =IFERROR(IF(ISBLANK($E835),"",COUNTIFS(MCdata,">"&$E834,MCdata,"<="&$E835,sc_data,"="&BV$1))/runs,"") ->  | BW834: =IFERROR(IF(ISBLANK($E835),"",COUNTIFS(MCdata,">"&$E834,MCdata,"<="&$E835,scenarios,"="&BW$1))/runs,"") ->  | BX834: =IFERROR(IF(ISBLANK($E835),"",COUNTIFS(MCdata,">"&$E834,MCdata,"<="&$E835,scenarios,"="&BX$1))/runs,"") ->  | BY834: =IFERROR(IF(ISBLANK($E835),"",COUNTIFS(MCdata,">"&$E834,MCdata,"<="&$E835,scenarios,"="&BY$1))/runs,"") ->  | BZ834: =IFERROR(IF(ISBLANK($E835),"",COUNTIFS(MCdata,">"&$E834,MCdata,"<="&$E835,scenarios,"="&BZ$1))/runs,"") ->  | CA834: =IFERROR(IF(ISBLANK($E835),"",COUNTIFS(MCdata,">"&$E834,MCdata,"<="&$E835,scenarios,"="&CA$1))/runs,"") ->  | CB834: =IFERROR(IF(ISBLANK($E835),"",COUNTIFS(MCdata,">"&$E834,MCdata,"<="&$E835,scenarios,"="&CB$1))/runs,"") ->  | CC834: =IFERROR(IF(ISBLANK($E835),"",COUNTIFS(MCdata,">"&$E834,MCdata,"<="&$E835,scenarios,"="&CC$1))/runs,"") ->  | CD834: =IFERROR(IF(ISBLANK($E835),"",COUNTIFS(MCdata,">"&$E834,MCdata,"<="&$E835,scenarios,"="&CD$1))/runs,"") ->  | CE834: =IFERROR(IF(ISBLANK($E835),"",COUNTIFS(MCdata,">"&$E834,MCdata,"<="&$E835,scenarios,"="&CE$1))/runs,"") ->  | CF834: =IFERROR(IF(ISBLANK($E835),"",COUNTIFS(MCdata,">"&$E834,MCdata,"<="&$E835,scenarios,"="&CF$1))/runs,"") ->  | CG834: =IFERROR(IF(ISBLANK($E835),"",COUNTIFS(MCdata,">"&$E834,MCdata,"<="&$E835,scenarios,"="&CG$1))/runs,"") ->  | CH834: =IFERROR(IF(ISBLANK($E835),"",COUNTIFS(MCdata,">"&$E834,MCdata,"<="&$E835,scenarios,"="&CH$1))/runs,"") ->  | CI834: =IFERROR(IF(ISBLANK($E835),"",COUNTIFS(MCdata,">"&$E834,MCdata,"<="&$E835,scenarios,"="&CI$1))/runs,"") ->  | CJ834: =IFERROR(IF(ISBLANK($E835),"",COUNTIFS(MCdata,">"&$E834,MCdata,"<="&$E835,scenarios,"="&CJ$1))/runs,"") -> 
F898: =IFERROR(IF(ISBLANK(E899),"",COUNTIFS(MCdata,">"&E898,MCdata,"<="&E899))/runs,"") ->  | K898: =IFERROR(IF(ISBLANK($E899),"",COUNTIFS(MCdata,">"&$E898,MCdata,"<="&$E899,sc_data,"="&K$1))/runs,"") ->  | L898: =IFERROR(IF(ISBLANK($E899),"",COUNTIFS(MCdata,">"&$E898,MCdata,"<="&$E899,sc_data,"="&L$1))/runs,"") ->  | M898: =IFERROR(IF(ISBLANK($E899),"",COUNTIFS(MCdata,">"&$E898,MCdata,"<="&$E899,sc_data,"="&M$1))/runs,"") ->  | N898: =IFERROR(IF(ISBLANK($E899),"",COUNTIFS(MCdata,">"&$E898,MCdata,"<="&$E899,sc_data,"="&N$1))/runs,"") ->  | O898: =IFERROR(IF(ISBLANK($E899),"",COUNTIFS(MCdata,">"&$E898,MCdata,"<="&$E899,sc_data,"="&O$1))/runs,"") ->  | P898: =IFERROR(IF(ISBLANK($E899),"",COUNTIFS(MCdata,">"&$E898,MCdata,"<="&$E899,sc_data,"="&P$1))/runs,"") ->  | Q898: =IFERROR(IF(ISBLANK($E899),"",COUNTIFS(MCdata,">"&$E898,MCdata,"<="&$E899,sc_data,"="&Q$1))/runs,"") ->  | R898: =IFERROR(IF(ISBLANK($E899),"",COUNTIFS(MCdata,">"&$E898,MCdata,"<="&$E899,sc_data,"="&R$1))/runs,"") ->  | S898: =IFERROR(IF(ISBLANK($E899),"",COUNTIFS(MCdata,">"&$E898,MCdata,"<="&$E899,sc_data,"="&S$1))/runs,"") ->  | T898: =IFERROR(IF(ISBLANK($E899),"",COUNTIFS(MCdata,">"&$E898,MCdata,"<="&$E899,sc_data,"="&T$1))/runs,"") ->  | U898: =IFERROR(IF(ISBLANK($E899),"",COUNTIFS(MCdata,">"&$E898,MCdata,"<="&$E899,sc_data,"="&U$1))/runs,"") ->  | V898: =IFERROR(IF(ISBLANK($E899),"",COUNTIFS(MCdata,">"&$E898,MCdata,"<="&$E899,sc_data,"="&V$1))/runs,"") ->  | W898: =IFERROR(IF(ISBLANK($E899),"",COUNTIFS(MCdata,">"&$E898,MCdata,"<="&$E899,sc_data,"="&W$1))/runs,"") ->  | X898: =IFERROR(IF(ISBLANK($E899),"",COUNTIFS(MCdata,">"&$E898,MCdata,"<="&$E899,sc_data,"="&X$1))/runs,"") ->  | Y898: =IFERROR(IF(ISBLANK($E899),"",COUNTIFS(MCdata,">"&$E898,MCdata,"<="&$E899,sc_data,"="&Y$1))/runs,"") ->  | Z898: =IFERROR(IF(ISBLANK($E899),"",COUNTIFS(MCdata,">"&$E898,MCdata,"<="&$E899,sc_data,"="&Z$1))/runs,"") ->  | AA898: =IFERROR(IF(ISBLANK($E899),"",COUNTIFS(MCdata,">"&$E898,MCdata,"<="&$E899,sc_data,"="&AA$1))/runs,"") ->  | AB898: =IFERROR(IF(ISBLANK($E899),"",COUNTIFS(MCdata,">"&$E898,MCdata,"<="&$E899,sc_data,"="&AB$1))/runs,"") ->  | AC898: =IFERROR(IF(ISBLANK($E899),"",COUNTIFS(MCdata,">"&$E898,MCdata,"<="&$E899,sc_data,"="&AC$1))/runs,"") ->  | AD898: =IFERROR(IF(ISBLANK($E899),"",COUNTIFS(MCdata,">"&$E898,MCdata,"<="&$E899,sc_data,"="&AD$1))/runs,"") ->  | AE898: =IFERROR(IF(ISBLANK($E899),"",COUNTIFS(MCdata,">"&$E898,MCdata,"<="&$E899,sc_data,"="&AE$1))/runs,"") ->  | AF898: =IFERROR(IF(ISBLANK($E899),"",COUNTIFS(MCdata,">"&$E898,MCdata,"<="&$E899,sc_data,"="&AF$1))/runs,"") ->  | AG898: =IFERROR(IF(ISBLANK($E899),"",COUNTIFS(MCdata,">"&$E898,MCdata,"<="&$E899,sc_data,"="&AG$1))/runs,"") ->  | AH898: =IFERROR(IF(ISBLANK($E899),"",COUNTIFS(MCdata,">"&$E898,MCdata,"<="&$E899,sc_data,"="&AH$1))/runs,"") ->  | AI898: =IFERROR(IF(ISBLANK($E899),"",COUNTIFS(MCdata,">"&$E898,MCdata,"<="&$E899,sc_data,"="&AI$1))/runs,"") ->  | AJ898: =IFERROR(IF(ISBLANK($E899),"",COUNTIFS(MCdata,">"&$E898,MCdata,"<="&$E899,sc_data,"="&AJ$1))/runs,"") ->  | AK898: =IFERROR(IF(ISBLANK($E899),"",COUNTIFS(MCdata,">"&$E898,MCdata,"<="&$E899,sc_data,"="&AK$1))/runs,"") ->  | AL898: =IFERROR(IF(ISBLANK($E899),"",COUNTIFS(MCdata,">"&$E898,MCdata,"<="&$E899,sc_data,"="&AL$1))/runs,"") ->  | AM898: =IFERROR(IF(ISBLANK($E899),"",COUNTIFS(MCdata,">"&$E898,MCdata,"<="&$E899,sc_data,"="&AM$1))/runs,"") ->  | AN898: =IFERROR(IF(ISBLANK($E899),"",COUNTIFS(MCdata,">"&$E898,MCdata,"<="&$E899,sc_data,"="&AN$1))/runs,"") ->  | AO898: =IFERROR(IF(ISBLANK($E899),"",COUNTIFS(MCdata,">"&$E898,MCdata,"<="&$E899,sc_data,"="&AO$1))/runs,"") ->  | AP898: =IFERROR(IF(ISBLANK($E899),"",COUNTIFS(MCdata,">"&$E898,MCdata,"<="&$E899,sc_data,"="&AP$1))/runs,"") ->  | AQ898: =IFERROR(IF(ISBLANK($E899),"",COUNTIFS(MCdata,">"&$E898,MCdata,"<="&$E899,sc_data,"="&AQ$1))/runs,"") ->  | AR898: =IFERROR(IF(ISBLANK($E899),"",COUNTIFS(MCdata,">"&$E898,MCdata,"<="&$E899,sc_data,"="&AR$1))/runs,"") ->  | AS898: =IFERROR(IF(ISBLANK($E899),"",COUNTIFS(MCdata,">"&$E898,MCdata,"<="&$E899,sc_data,"="&AS$1))/runs,"") ->  | AT898: =IFERROR(IF(ISBLANK($E899),"",COUNTIFS(MCdata,">"&$E898,MCdata,"<="&$E899,sc_data,"="&AT$1))/runs,"") ->  | AU898: =IFERROR(IF(ISBLANK($E899),"",COUNTIFS(MCdata,">"&$E898,MCdata,"<="&$E899,sc_data,"="&AU$1))/runs,"") ->  | AV898: =IFERROR(IF(ISBLANK($E899),"",COUNTIFS(MCdata,">"&$E898,MCdata,"<="&$E899,sc_data,"="&AV$1))/runs,"") ->  | AW898: =IFERROR(IF(ISBLANK($E899),"",COUNTIFS(MCdata,">"&$E898,MCdata,"<="&$E899,sc_data,"="&AW$1))/runs,"") ->  | AX898: =IFERROR(IF(ISBLANK($E899),"",COUNTIFS(MCdata,">"&$E898,MCdata,"<="&$E899,sc_data,"="&AX$1))/runs,"") ->  | AY898: =IFERROR(IF(ISBLANK($E899),"",COUNTIFS(MCdata,">"&$E898,MCdata,"<="&$E899,sc_data,"="&AY$1))/runs,"") ->  | AZ898: =IFERROR(IF(ISBLANK($E899),"",COUNTIFS(MCdata,">"&$E898,MCdata,"<="&$E899,sc_data,"="&AZ$1))/runs,"") ->  | BA898: =IFERROR(IF(ISBLANK($E899),"",COUNTIFS(MCdata,">"&$E898,MCdata,"<="&$E899,sc_data,"="&BA$1))/runs,"") ->  | BB898: =IFERROR(IF(ISBLANK($E899),"",COUNTIFS(MCdata,">"&$E898,MCdata,"<="&$E899,sc_data,"="&BB$1))/runs,"") ->  | BC898: =IFERROR(IF(ISBLANK($E899),"",COUNTIFS(MCdata,">"&$E898,MCdata,"<="&$E899,sc_data,"="&BC$1))/runs,"") ->  | BD898: =IFERROR(IF(ISBLANK($E899),"",COUNTIFS(MCdata,">"&$E898,MCdata,"<="&$E899,sc_data,"="&BD$1))/runs,"") ->  | BE898: =IFERROR(IF(ISBLANK($E899),"",COUNTIFS(MCdata,">"&$E898,MCdata,"<="&$E899,sc_data,"="&BE$1))/runs,"") ->  | BF898: =IFERROR(IF(ISBLANK($E899),"",COUNTIFS(MCdata,">"&$E898,MCdata,"<="&$E899,sc_data,"="&BF$1))/runs,"") ->  | BG898: =IFERROR(IF(ISBLANK($E899),"",COUNTIFS(MCdata,">"&$E898,MCdata,"<="&$E899,sc_data,"="&BG$1))/runs,"") ->  | BH898: =IFERROR(IF(ISBLANK($E899),"",COUNTIFS(MCdata,">"&$E898,MCdata,"<="&$E899,sc_data,"="&BH$1))/runs,"") ->  | BI898: =IFERROR(IF(ISBLANK($E899),"",COUNTIFS(MCdata,">"&$E898,MCdata,"<="&$E899,sc_data,"="&BI$1))/runs,"") ->  | BJ898: =IFERROR(IF(ISBLANK($E899),"",COUNTIFS(MCdata,">"&$E898,MCdata,"<="&$E899,sc_data,"="&BJ$1))/runs,"") ->  | BK898: =IFERROR(IF(ISBLANK($E899),"",COUNTIFS(MCdata,">"&$E898,MCdata,"<="&$E899,sc_data,"="&BK$1))/runs,"") ->  | BL898: =IFERROR(IF(ISBLANK($E899),"",COUNTIFS(MCdata,">"&$E898,MCdata,"<="&$E899,sc_data,"="&BL$1))/runs,"") ->  | BM898: =IFERROR(IF(ISBLANK($E899),"",COUNTIFS(MCdata,">"&$E898,MCdata,"<="&$E899,sc_data,"="&BM$1))/runs,"") ->  | BN898: =IFERROR(IF(ISBLANK($E899),"",COUNTIFS(MCdata,">"&$E898,MCdata,"<="&$E899,sc_data,"="&BN$1))/runs,"") ->  | BO898: =IFERROR(IF(ISBLANK($E899),"",COUNTIFS(MCdata,">"&$E898,MCdata,"<="&$E899,sc_data,"="&BO$1))/runs,"") ->  | BP898: =IFERROR(IF(ISBLANK($E899),"",COUNTIFS(MCdata,">"&$E898,MCdata,"<="&$E899,sc_data,"="&BP$1))/runs,"") ->  | BQ898: =IFERROR(IF(ISBLANK($E899),"",COUNTIFS(MCdata,">"&$E898,MCdata,"<="&$E899,sc_data,"="&BQ$1))/runs,"") ->  | BR898: =IFERROR(IF(ISBLANK($E899),"",COUNTIFS(MCdata,">"&$E898,MCdata,"<="&$E899,sc_data,"="&BR$1))/runs,"") ->  | BS898: =IFERROR(IF(ISBLANK($E899),"",COUNTIFS(MCdata,">"&$E898,MCdata,"<="&$E899,sc_data,"="&BS$1))/runs,"") ->  | BT898: =IFERROR(IF(ISBLANK($E899),"",COUNTIFS(MCdata,">"&$E898,MCdata,"<="&$E899,sc_data,"="&BT$1))/runs,"") ->  | BU898: =IFERROR(IF(ISBLANK($E899),"",COUNTIFS(MCdata,">"&$E898,MCdata,"<="&$E899,sc_data,"="&BU$1))/runs,"") ->  | BV898: =IFERROR(IF(ISBLANK($E899),"",COUNTIFS(MCdata,">"&$E898,MCdata,"<="&$E899,sc_data,"="&BV$1))/runs,"") ->  | BW898: =IFERROR(IF(ISBLANK($E899),"",COUNTIFS(MCdata,">"&$E898,MCdata,"<="&$E899,scenarios,"="&BW$1))/runs,"") ->  | BX898: =IFERROR(IF(ISBLANK($E899),"",COUNTIFS(MCdata,">"&$E898,MCdata,"<="&$E899,scenarios,"="&BX$1))/runs,"") ->  | BY898: =IFERROR(IF(ISBLANK($E899),"",COUNTIFS(MCdata,">"&$E898,MCdata,"<="&$E899,scenarios,"="&BY$1))/runs,"") ->  | BZ898: =IFERROR(IF(ISBLANK($E899),"",COUNTIFS(MCdata,">"&$E898,MCdata,"<="&$E899,scenarios,"="&BZ$1))/runs,"") ->  | CA898: =IFERROR(IF(ISBLANK($E899),"",COUNTIFS(MCdata,">"&$E898,MCdata,"<="&$E899,scenarios,"="&CA$1))/runs,"") ->  | CB898: =IFERROR(IF(ISBLANK($E899),"",COUNTIFS(MCdata,">"&$E898,MCdata,"<="&$E899,scenarios,"="&CB$1))/runs,"") ->  | CC898: =IFERROR(IF(ISBLANK($E899),"",COUNTIFS(MCdata,">"&$E898,MCdata,"<="&$E899,scenarios,"="&CC$1))/runs,"") ->  | CD898: =IFERROR(IF(ISBLANK($E899),"",COUNTIFS(MCdata,">"&$E898,MCdata,"<="&$E899,scenarios,"="&CD$1))/runs,"") ->  | CE898: =IFERROR(IF(ISBLANK($E899),"",COUNTIFS(MCdata,">"&$E898,MCdata,"<="&$E899,scenarios,"="&CE$1))/runs,"") ->  | CF898: =IFERROR(IF(ISBLANK($E899),"",COUNTIFS(MCdata,">"&$E898,MCdata,"<="&$E899,scenarios,"="&CF$1))/runs,"") ->  | CG898: =IFERROR(IF(ISBLANK($E899),"",COUNTIFS(MCdata,">"&$E898,MCdata,"<="&$E899,scenarios,"="&CG$1))/runs,"") ->  | CH898: =IFERROR(IF(ISBLANK($E899),"",COUNTIFS(MCdata,">"&$E898,MCdata,"<="&$E899,scenarios,"="&CH$1))/runs,"") ->  | CI898: =IFERROR(IF(ISBLANK($E899),"",COUNTIFS(MCdata,">"&$E898,MCdata,"<="&$E899,scenarios,"="&CI$1))/runs,"") ->  | CJ898: =IFERROR(IF(ISBLANK($E899),"",COUNTIFS(MCdata,">"&$E898,MCdata,"<="&$E899,scenarios,"="&CJ$1))/runs,"") -> 
F962: =IFERROR(IF(ISBLANK(E963),"",COUNTIFS(MCdata,">"&E962,MCdata,"<="&E963))/runs,"") ->  | K962: =IFERROR(IF(ISBLANK($E963),"",COUNTIFS(MCdata,">"&$E962,MCdata,"<="&$E963,sc_data,"="&K$1))/runs,"") ->  | L962: =IFERROR(IF(ISBLANK($E963),"",COUNTIFS(MCdata,">"&$E962,MCdata,"<="&$E963,sc_data,"="&L$1))/runs,"") ->  | M962: =IFERROR(IF(ISBLANK($E963),"",COUNTIFS(MCdata,">"&$E962,MCdata,"<="&$E963,sc_data,"="&M$1))/runs,"") ->  | N962: =IFERROR(IF(ISBLANK($E963),"",COUNTIFS(MCdata,">"&$E962,MCdata,"<="&$E963,sc_data,"="&N$1))/runs,"") ->  | O962: =IFERROR(IF(ISBLANK($E963),"",COUNTIFS(MCdata,">"&$E962,MCdata,"<="&$E963,sc_data,"="&O$1))/runs,"") ->  | P962: =IFERROR(IF(ISBLANK($E963),"",COUNTIFS(MCdata,">"&$E962,MCdata,"<="&$E963,sc_data,"="&P$1))/runs,"") ->  | Q962: =IFERROR(IF(ISBLANK($E963),"",COUNTIFS(MCdata,">"&$E962,MCdata,"<="&$E963,sc_data,"="&Q$1))/runs,"") ->  | R962: =IFERROR(IF(ISBLANK($E963),"",COUNTIFS(MCdata,">"&$E962,MCdata,"<="&$E963,sc_data,"="&R$1))/runs,"") ->  | S962: =IFERROR(IF(ISBLANK($E963),"",COUNTIFS(MCdata,">"&$E962,MCdata,"<="&$E963,sc_data,"="&S$1))/runs,"") ->  | T962: =IFERROR(IF(ISBLANK($E963),"",COUNTIFS(MCdata,">"&$E962,MCdata,"<="&$E963,sc_data,"="&T$1))/runs,"") ->  | U962: =IFERROR(IF(ISBLANK($E963),"",COUNTIFS(MCdata,">"&$E962,MCdata,"<="&$E963,sc_data,"="&U$1))/runs,"") ->  | V962: =IFERROR(IF(ISBLANK($E963),"",COUNTIFS(MCdata,">"&$E962,MCdata,"<="&$E963,sc_data,"="&V$1))/runs,"") ->  | W962: =IFERROR(IF(ISBLANK($E963),"",COUNTIFS(MCdata,">"&$E962,MCdata,"<="&$E963,sc_data,"="&W$1))/runs,"") ->  | X962: =IFERROR(IF(ISBLANK($E963),"",COUNTIFS(MCdata,">"&$E962,MCdata,"<="&$E963,sc_data,"="&X$1))/runs,"") ->  | Y962: =IFERROR(IF(ISBLANK($E963),"",COUNTIFS(MCdata,">"&$E962,MCdata,"<="&$E963,sc_data,"="&Y$1))/runs,"") ->  | Z962: =IFERROR(IF(ISBLANK($E963),"",COUNTIFS(MCdata,">"&$E962,MCdata,"<="&$E963,sc_data,"="&Z$1))/runs,"") ->  | AA962: =IFERROR(IF(ISBLANK($E963),"",COUNTIFS(MCdata,">"&$E962,MCdata,"<="&$E963,sc_data,"="&AA$1))/runs,"") ->  | AB962: =IFERROR(IF(ISBLANK($E963),"",COUNTIFS(MCdata,">"&$E962,MCdata,"<="&$E963,sc_data,"="&AB$1))/runs,"") ->  | AC962: =IFERROR(IF(ISBLANK($E963),"",COUNTIFS(MCdata,">"&$E962,MCdata,"<="&$E963,sc_data,"="&AC$1))/runs,"") ->  | AD962: =IFERROR(IF(ISBLANK($E963),"",COUNTIFS(MCdata,">"&$E962,MCdata,"<="&$E963,sc_data,"="&AD$1))/runs,"") ->  | AE962: =IFERROR(IF(ISBLANK($E963),"",COUNTIFS(MCdata,">"&$E962,MCdata,"<="&$E963,sc_data,"="&AE$1))/runs,"") ->  | AF962: =IFERROR(IF(ISBLANK($E963),"",COUNTIFS(MCdata,">"&$E962,MCdata,"<="&$E963,sc_data,"="&AF$1))/runs,"") ->  | AG962: =IFERROR(IF(ISBLANK($E963),"",COUNTIFS(MCdata,">"&$E962,MCdata,"<="&$E963,sc_data,"="&AG$1))/runs,"") ->  | AH962: =IFERROR(IF(ISBLANK($E963),"",COUNTIFS(MCdata,">"&$E962,MCdata,"<="&$E963,sc_data,"="&AH$1))/runs,"") ->  | AI962: =IFERROR(IF(ISBLANK($E963),"",COUNTIFS(MCdata,">"&$E962,MCdata,"<="&$E963,sc_data,"="&AI$1))/runs,"") ->  | AJ962: =IFERROR(IF(ISBLANK($E963),"",COUNTIFS(MCdata,">"&$E962,MCdata,"<="&$E963,sc_data,"="&AJ$1))/runs,"") ->  | AK962: =IFERROR(IF(ISBLANK($E963),"",COUNTIFS(MCdata,">"&$E962,MCdata,"<="&$E963,sc_data,"="&AK$1))/runs,"") ->  | AL962: =IFERROR(IF(ISBLANK($E963),"",COUNTIFS(MCdata,">"&$E962,MCdata,"<="&$E963,sc_data,"="&AL$1))/runs,"") ->  | AM962: =IFERROR(IF(ISBLANK($E963),"",COUNTIFS(MCdata,">"&$E962,MCdata,"<="&$E963,sc_data,"="&AM$1))/runs,"") ->  | AN962: =IFERROR(IF(ISBLANK($E963),"",COUNTIFS(MCdata,">"&$E962,MCdata,"<="&$E963,sc_data,"="&AN$1))/runs,"") ->  | AO962: =IFERROR(IF(ISBLANK($E963),"",COUNTIFS(MCdata,">"&$E962,MCdata,"<="&$E963,sc_data,"="&AO$1))/runs,"") ->  | AP962: =IFERROR(IF(ISBLANK($E963),"",COUNTIFS(MCdata,">"&$E962,MCdata,"<="&$E963,sc_data,"="&AP$1))/runs,"") ->  | AQ962: =IFERROR(IF(ISBLANK($E963),"",COUNTIFS(MCdata,">"&$E962,MCdata,"<="&$E963,sc_data,"="&AQ$1))/runs,"") ->  | AR962: =IFERROR(IF(ISBLANK($E963),"",COUNTIFS(MCdata,">"&$E962,MCdata,"<="&$E963,sc_data,"="&AR$1))/runs,"") ->  | AS962: =IFERROR(IF(ISBLANK($E963),"",COUNTIFS(MCdata,">"&$E962,MCdata,"<="&$E963,sc_data,"="&AS$1))/runs,"") ->  | AT962: =IFERROR(IF(ISBLANK($E963),"",COUNTIFS(MCdata,">"&$E962,MCdata,"<="&$E963,sc_data,"="&AT$1))/runs,"") ->  | AU962: =IFERROR(IF(ISBLANK($E963),"",COUNTIFS(MCdata,">"&$E962,MCdata,"<="&$E963,sc_data,"="&AU$1))/runs,"") ->  | AV962: =IFERROR(IF(ISBLANK($E963),"",COUNTIFS(MCdata,">"&$E962,MCdata,"<="&$E963,sc_data,"="&AV$1))/runs,"") ->  | AW962: =IFERROR(IF(ISBLANK($E963),"",COUNTIFS(MCdata,">"&$E962,MCdata,"<="&$E963,sc_data,"="&AW$1))/runs,"") ->  | AX962: =IFERROR(IF(ISBLANK($E963),"",COUNTIFS(MCdata,">"&$E962,MCdata,"<="&$E963,sc_data,"="&AX$1))/runs,"") ->  | AY962: =IFERROR(IF(ISBLANK($E963),"",COUNTIFS(MCdata,">"&$E962,MCdata,"<="&$E963,sc_data,"="&AY$1))/runs,"") ->  | AZ962: =IFERROR(IF(ISBLANK($E963),"",COUNTIFS(MCdata,">"&$E962,MCdata,"<="&$E963,sc_data,"="&AZ$1))/runs,"") ->  | BA962: =IFERROR(IF(ISBLANK($E963),"",COUNTIFS(MCdata,">"&$E962,MCdata,"<="&$E963,sc_data,"="&BA$1))/runs,"") ->  | BB962: =IFERROR(IF(ISBLANK($E963),"",COUNTIFS(MCdata,">"&$E962,MCdata,"<="&$E963,sc_data,"="&BB$1))/runs,"") ->  | BC962: =IFERROR(IF(ISBLANK($E963),"",COUNTIFS(MCdata,">"&$E962,MCdata,"<="&$E963,sc_data,"="&BC$1))/runs,"") ->  | BD962: =IFERROR(IF(ISBLANK($E963),"",COUNTIFS(MCdata,">"&$E962,MCdata,"<="&$E963,sc_data,"="&BD$1))/runs,"") ->  | BE962: =IFERROR(IF(ISBLANK($E963),"",COUNTIFS(MCdata,">"&$E962,MCdata,"<="&$E963,sc_data,"="&BE$1))/runs,"") ->  | BF962: =IFERROR(IF(ISBLANK($E963),"",COUNTIFS(MCdata,">"&$E962,MCdata,"<="&$E963,sc_data,"="&BF$1))/runs,"") ->  | BG962: =IFERROR(IF(ISBLANK($E963),"",COUNTIFS(MCdata,">"&$E962,MCdata,"<="&$E963,sc_data,"="&BG$1))/runs,"") ->  | BH962: =IFERROR(IF(ISBLANK($E963),"",COUNTIFS(MCdata,">"&$E962,MCdata,"<="&$E963,sc_data,"="&BH$1))/runs,"") ->  | BI962: =IFERROR(IF(ISBLANK($E963),"",COUNTIFS(MCdata,">"&$E962,MCdata,"<="&$E963,sc_data,"="&BI$1))/runs,"") ->  | BJ962: =IFERROR(IF(ISBLANK($E963),"",COUNTIFS(MCdata,">"&$E962,MCdata,"<="&$E963,sc_data,"="&BJ$1))/runs,"") ->  | BK962: =IFERROR(IF(ISBLANK($E963),"",COUNTIFS(MCdata,">"&$E962,MCdata,"<="&$E963,sc_data,"="&BK$1))/runs,"") ->  | BL962: =IFERROR(IF(ISBLANK($E963),"",COUNTIFS(MCdata,">"&$E962,MCdata,"<="&$E963,sc_data,"="&BL$1))/runs,"") ->  | BM962: =IFERROR(IF(ISBLANK($E963),"",COUNTIFS(MCdata,">"&$E962,MCdata,"<="&$E963,sc_data,"="&BM$1))/runs,"") ->  | BN962: =IFERROR(IF(ISBLANK($E963),"",COUNTIFS(MCdata,">"&$E962,MCdata,"<="&$E963,sc_data,"="&BN$1))/runs,"") ->  | BO962: =IFERROR(IF(ISBLANK($E963),"",COUNTIFS(MCdata,">"&$E962,MCdata,"<="&$E963,sc_data,"="&BO$1))/runs,"") ->  | BP962: =IFERROR(IF(ISBLANK($E963),"",COUNTIFS(MCdata,">"&$E962,MCdata,"<="&$E963,sc_data,"="&BP$1))/runs,"") ->  | BQ962: =IFERROR(IF(ISBLANK($E963),"",COUNTIFS(MCdata,">"&$E962,MCdata,"<="&$E963,sc_data,"="&BQ$1))/runs,"") ->  | BR962: =IFERROR(IF(ISBLANK($E963),"",COUNTIFS(MCdata,">"&$E962,MCdata,"<="&$E963,sc_data,"="&BR$1))/runs,"") ->  | BS962: =IFERROR(IF(ISBLANK($E963),"",COUNTIFS(MCdata,">"&$E962,MCdata,"<="&$E963,sc_data,"="&BS$1))/runs,"") ->  | BT962: =IFERROR(IF(ISBLANK($E963),"",COUNTIFS(MCdata,">"&$E962,MCdata,"<="&$E963,sc_data,"="&BT$1))/runs,"") ->  | BU962: =IFERROR(IF(ISBLANK($E963),"",COUNTIFS(MCdata,">"&$E962,MCdata,"<="&$E963,sc_data,"="&BU$1))/runs,"") ->  | BV962: =IFERROR(IF(ISBLANK($E963),"",COUNTIFS(MCdata,">"&$E962,MCdata,"<="&$E963,sc_data,"="&BV$1))/runs,"") ->  | BW962: =IFERROR(IF(ISBLANK($E963),"",COUNTIFS(MCdata,">"&$E962,MCdata,"<="&$E963,scenarios,"="&BW$1))/runs,"") ->  | BX962: =IFERROR(IF(ISBLANK($E963),"",COUNTIFS(MCdata,">"&$E962,MCdata,"<="&$E963,scenarios,"="&BX$1))/runs,"") ->  | BY962: =IFERROR(IF(ISBLANK($E963),"",COUNTIFS(MCdata,">"&$E962,MCdata,"<="&$E963,scenarios,"="&BY$1))/runs,"") ->  | BZ962: =IFERROR(IF(ISBLANK($E963),"",COUNTIFS(MCdata,">"&$E962,MCdata,"<="&$E963,scenarios,"="&BZ$1))/runs,"") ->  | CA962: =IFERROR(IF(ISBLANK($E963),"",COUNTIFS(MCdata,">"&$E962,MCdata,"<="&$E963,scenarios,"="&CA$1))/runs,"") ->  | CB962: =IFERROR(IF(ISBLANK($E963),"",COUNTIFS(MCdata,">"&$E962,MCdata,"<="&$E963,scenarios,"="&CB$1))/runs,"") ->  | CC962: =IFERROR(IF(ISBLANK($E963),"",COUNTIFS(MCdata,">"&$E962,MCdata,"<="&$E963,scenarios,"="&CC$1))/runs,"") ->  | CD962: =IFERROR(IF(ISBLANK($E963),"",COUNTIFS(MCdata,">"&$E962,MCdata,"<="&$E963,scenarios,"="&CD$1))/runs,"") ->  | CE962: =IFERROR(IF(ISBLANK($E963),"",COUNTIFS(MCdata,">"&$E962,MCdata,"<="&$E963,scenarios,"="&CE$1))/runs,"") ->  | CF962: =IFERROR(IF(ISBLANK($E963),"",COUNTIFS(MCdata,">"&$E962,MCdata,"<="&$E963,scenarios,"="&CF$1))/runs,"") ->  | CG962: =IFERROR(IF(ISBLANK($E963),"",COUNTIFS(MCdata,">"&$E962,MCdata,"<="&$E963,scenarios,"="&CG$1))/runs,"") ->  | CH962: =IFERROR(IF(ISBLANK($E963),"",COUNTIFS(MCdata,">"&$E962,MCdata,"<="&$E963,scenarios,"="&CH$1))/runs,"") ->  | CI962: =IFERROR(IF(ISBLANK($E963),"",COUNTIFS(MCdata,">"&$E962,MCdata,"<="&$E963,scenarios,"="&CI$1))/runs,"") ->  | CJ962: =IFERROR(IF(ISBLANK($E963),"",COUNTIFS(MCdata,">"&$E962,MCdata,"<="&$E963,scenarios,"="&CJ$1))/runs,"") -> 
... 26 more rows

Sheet MC_data
A1: 1255.591171 | B1: 1 | E1: 566.9324506 | F1: 10.94670045 | G1: 101.0596431
A2: 1830.083322 | B2: 2 | E2: 959.2894688 | F2: 12.92116993 | G2: 116.1175561
A3: 1733.879943 | B3: 5 | E3: 1173.133492 | F3: 13.97671625 | G3: 106.7849868
A4: 1713.761503 | B4: 5 | E4: 1220.954029 | F4: 12.48659748 | G4: 129.2594142
A5: 2277.375468 | B5: 5 | E5: 1192.21385 | F5: 13.33438509 | G5: 137.2730128
A6: 1550.788486 | B6: 1 | E6: 706.7773085 | F6: 10.63191899 | G6: 132.1796732
A7: 2427.924221 | B7: 3 | E7: 891.2148013 | F7: 14.76303978 | G7: 112.1039825
A8: 2567.74547 | B8: 6 | E8: 1119.977983 | F8: 14.48648577 | G8: 128.1839478
A9: 2311.605189 | B9: 5 | E9: 1358.85589 | F9: 13.17056871 | G9: 148.1320365
A10: 1422.665865 | B10: 1 | E10: 577.3694095 | F10: 10.3921444 | G10: 122.3085445
A11: 1669.75129 | B11: 1 | E11: 803.9813746 | F11: 11.87462805 | G11: 118.6545004
A12: 2575.733959 | B12: 2 | E12: 704.5975574 | F12: 13.90081493 | G12: 121.5258374
A13: 501.5425394 | B13: 4 | E13: 1322.75738 | F13: 10.49198945 | G13: 109.5335597
A14: 314.7242128 | B14: 4 | E14: 1266.695047 | F14: 10.17143379 | G14: 100.8362559
A15: 1587.302781 | B15: 2 | E15: 786.0968344 | F15: 12.09451208 | G15: 110.3135833
A16: 1350.338045 | B16: 1 | E16: 531.681811 | F16: 11.09393291 | G16: 101.8373733
A17: 1840.87931 | B17: 5 | E17: 1373.91023 | F17: 12.14961268 | G17: 148.2691127
A18: 1344.407237 | B18: 1 | E18: 957.4509341 | F18: 11.12955374 | G18: 123.8312797
A19: 656.9860005 | B19: 4 | E19: 1377.505568 | F19: 10.26389674 | G19: 127.4468746
A20: 1531.552278 | B20: 1 | E20: 764.1963951 | F20: 11.68846373 | G20: 113.1823281
A21: 1725.025745 | B21: 4 | E21: 1115.234466 | F21: 11.62813417 | G21: 141.3017353
A22: 2716.437002 | B22: 6 | E22: 1295.698642 | F22: 14.44564779 | G22: 140.0633524
A23: 1789.205264 | B23: 5 | E23: 1336.553081 | F23: 13.40378696 | G23: 122.6481557
A24: 1480.733521 | B24: 5 | E24: 1025.02083 | F24: 12.32912521 | G24: 112.7371389
A25: 1898.110476 | B25: 5 | E25: 1049.208599 | F25: 12.0463767 | G25: 137.9246703
A26: 2025.814854 | B26: 2 | E26: 886.5599692 | F26: 13.90112428 | G26: 107.8904638
A27: 2844.074655 | B27: 3 | E27: 502.1851882 | F27: 14.34780609 | G27: 118.0403867
A28: 1067.071241 | B28: 4 | E28: 1133.380901 | F28: 10.2569261 | G28: 138.0259398
A29: 3308.595162 | B29: 3 | E29: 817.9093031 | F29: 14.80847095 | G29: 138.7272145
A30: 1037.401439 | B30: 4 | E30: 1245.770499 | F30: 10.75554236 | G30: 130.8076128
A31: 2128.247579 | B31: 5 | E31: 1310.577812 | F31: 12.80335676 | G31: 145.3146228
A32: 2421.789577 | B32: 2 | E32: 978.1612761 | F32: 13.11896179 | G32: 138.0870014
A33: 1188.461398 | B33: 1 | E33: 586.8622453 | F33: 10.45758015 | G33: 107.2650084
A34: 2352.00044 | B34: 2 | E34: 545.7117409 | F34: 12.85391294 | G34: 121.6605626
A35: 997.9227922 | B35: 1 | E35: 714.7156677 | F35: 10.34742358 | G35: 105.6092023
A36: 823.1839504 | B36: 4 | E36: 1024.147624 | F36: 10.10184761 | G36: 119.3982683
A37: 3882.221086 | B37: 3 | E37: 559.9197798 | F37: 14.86351717 | G37: 148.5050349
A38: 1732.435076 | B38: 1 | E38: 701.894468 | F38: 10.44761218 | G38: 147.3512569
A39: 1906.514975 | B39: 1 | E39: 657.4608103 | F39: 10.88863799 | G39: 143.5752959
A40: 2631.717998 | B40: 2 | E40: 707.5175668 | F40: 12.92227686 | G40: 138.9881257
A41: 1433.809148 | B41: 1 | E41: 607.121948 | F41: 10.00968917 | G41: 134.3377962
A42: 3282.503602 | B42: 3 | E42: 888.9709495 | F42: 14.85156888 | G42: 139.6255372
A43: 959.5445807 | B43: 4 | E43: 1093.694586 | F43: 11.74340032 | G43: 100.4017436
A44: 1513.908393 | B44: 4 | E44: 1288.26153 | F44: 11.31003401 | G44: 146.4345053
A45: 3000.879441 | B45: 2 | E45: 978.5759663 | F45: 13.97651497 | G45: 146.1828887
A46: 2442.227882 | B46: 5 | E46: 1016.549323 | F46: 13.8157888 | G46: 129.3725289
A47: 1788.188772 | B47: 1 | E47: 665.578969 | F47: 10.55622256 | G47: 145.6245096
A48: 1257.20474 | B48: 4 | E48: 1256.6737 | F48: 11.67996553 | G48: 124.0939785
A49: 1632.371687 | B49: 1 | E49: 833.5797853 | F49: 11.05281444 | G49: 134.3407668
A50: 3319.588173 | B50: 3 | E50: 780.7511122 | F50: 14.34822593 | G50: 144.6342843
A51: 2767.569801 | B51: 2 | E51: 864.8772835 | F51: 13.29211815 | G51: 144.4489775
A52: 3183.627956 | B52: 6 | E52: 1100.727217 | F52: 14.62564906 | G52: 146.7695963
A53: 950.7528716 | B53: 4 | E53: 1275.756253 | F53: 11.12816653 | G53: 119.8048991
A54: 1908.515296 | B54: 1 | E54: 877.2819312 | F54: 11.33997783 | G54: 144.8913369
A55: 1180.784786 | B55: 1 | E55: 901.6123901 | F55: 10.55072388 | G55: 123.7070924
A56: 331.9846358 | B56: 4 | E56: 1396.660197 | F56: 10.04073154 | G56: 113.0818385
A57: 1250.877347 | B57: 4 | E57: 1375.168735 | F57: 11.62392874 | G57: 130.7276179
A58: 1625.603746 | B58: 5 | E58: 1152.323303 | F58: 13.15603626 | G58: 112.3110133
A59: 2752.586083 | B59: 2 | E59: 835.9133998 | F59: 13.59236138 | G59: 137.7149252
A60: 1894.84859 | B60: 5 | E60: 1273.128353 | F60: 12.97896927 | G60: 130.9229783
A61: 2893.065414 | B61: 3 | E61: 657.5203478 | F61: 14.25771894 | G61: 126.4668415
A62: 1205.635084 | B62: 1 | E62: 917.4980361 | F62: 11.23649706 | G62: 112.2579636
A63: 1230.124506 | B63: 5 | E63: 1243.954521 | F63: 12.44556891 | G63: 109.5711796
A64: 712.0008563 | B64: 4 | E64: 1400.085431 | F64: 10.88477258 | G64: 118.3484651
A65: 2670.548338 | B65: 5 | E65: 1139.948312 | F65: 13.4629761 | G65: 148.4701429
A66: 1762.351395 | B66: 2 | E66: 554.0187642 | F66: 12.46847872 | G66: 102.2719344
A67: 417.8132983 | B67: 4 | E67: 1445.718332 | F67: 11.12607379 | G67: 100.3079146
A68: 1200.524195 | B68: 1 | E68: 689.885604 | F68: 10.35375088 | G68: 116.4336355
A69: 1388.902361 | B69: 5 | E69: 1493.407182 | F69: 13.04902599 | G69: 118.0804356
A70: 942.4264792 | B70: 4 | E70: 1155.871288 | F70: 10.0314321 | G70: 137.5169269
A71: 831.3670856 | B71: 4 | E71: 1381.587385 | F71: 11.04014036 | G71: 120.8108959
A72: 983.6225849 | B72: 1 | E72: 635.3802409 | F72: 10.12038688 | G72: 104.2618646
A73: 1483.616413 | B73: 5 | E73: 1290.924903 | F73: 12.49087043 | G73: 122.1348401
A74: 2059.423135 | B74: 5 | E74: 1007.06561 | F74: 12.90840305 | G74: 127.8595693
A75: 1599.453121 | B75: 1 | E75: 788.8680578 | F75: 10.28601257 | G75: 148.9859091
A76: 1951.968379 | B76: 1 | E76: 583.1432512 | F76: 11.46674672 | G76: 129.268257
A77: 2538.614109 | B77: 2 | E77: 587.6680772 | F77: 12.83618547 | G77: 131.5540208
A78: 1948.375448 | B78: 2 | E78: 953.3331205 | F78: 13.45452448 | G78: 113.1736344
A79: 922.5171831 | B79: 1 | E79: 958.1053192 | F79: 10.30818814 | G79: 116.8250505
A80: 2094.174689 | B80: 6 | E80: 1415.456863 | F80: 14.28600824 | G80: 124.6272803
A81: 1423.84839 | B81: 1 | E81: 672.0537948 | F81: 10.17471825 | G81: 133.5564784
A82: 2155.024852 | B82: 2 | E82: 946.4771471 | F82: 12.00835946 | G82: 145.927235
A83: 2747.76626 | B83: 5 | E83: 1082.352659 | F83: 13.56410027 | G83: 147.4725439
A84: 2314.600816 | B84: 2 | E84: 989.3750284 | F84: 12.76347128 | G84: 140.3335688
A85: 2556.684086 | B85: 2 | E85: 982.6829717 | F85: 13.8650456 | G85: 131.6513411
A86: 1615.450025 | B86: 5 | E86: 1445.989135 | F86: 12.11103297 | G86: 141.9624867
A87: 1285.508844 | B87: 1 | E87: 858.2827225 | F87: 11.49176727 | G87: 108.8930778
A88: 2225.43999 | B88: 6 | E88: 1074.473198 | F88: 14.59049216 | G88: 113.4598688
A89: 1390.625986 | B89: 1 | E89: 996.8477929 | F89: 10.95227196 | G89: 132.2624312
A90: 1561.504998 | B90: 1 | E90: 869.0144944 | F90: 10.44917229 | G90: 147.0785113
A91: 917.0329765 | B91: 1 | E91: 727.1050376 | F91: 10.04682933 | G91: 107.42375
A92: 192.6371289 | B92: 4 | E92: 1397.962505 | F92: 10.03601112 | G92: 104.1489402
A93: 1961.444099 | B93: 2 | E93: 724.2719167 | F93: 12.50505938 | G93: 118.0012514
A94: 1857.508886 | B94: 2 | E94: 764.9438449 | F94: 12.52486508 | G94: 114.9184099
A95: 802.7907284 | B95: 5 | E95: 1380.005303 | F95: 12.10013176 | G95: 101.3741916
A96: 1490.167675 | B96: 1 | E96: 628.6360195 | F96: 10.2544501 | G96: 132.9670721
A97: 1178.282291 | B97: 1 | E97: 908.2436108 | F97: 10.07388262 | G97: 135.6013524
A98: 730.8969658 | B98: 4 | E98: 1090.920702 | F98: 10.97499835 | G98: 100.5420594
A99: 1814.920786 | B99: 5 | E99: 1136.608793 | F99: 13.33547226 | G99: 116.7609409
A100: 2226.568732 | B100: 6 | E100: 1320.513499 | F100: 14.44881761 | G100: 123.7868318
A101: 2539.821946 | B101: 2 | E101: 812.3903784 | F101: 12.89396656 | G101: 140.0286471
A102: 1300.193942 | B102: 4 | E102: 1010.059775 | F102: 11.31198295 | G102: 120.6908977
A103: 1648.975771 | B103: 1 | E103: 630.7287414 | F103: 10.08750485 | G103: 147.7591483
A104: 1122.419966 | B104: 1 | E104: 866.833761 | F104: 11.15834356 | G104: 106.5140562
A105: 2990.254399 | B105: 6 | E105: 1043.624931 | F105: 14.42247453 | G105: 141.1687559
A106: 1471.646591 | B106: 1 | E106: 792.0061856 | F106: 10.2451169 | G106: 142.3099598
A107: 1163.439797 | B107: 5 | E107: 1457.694053 | F107: 13.57194566 | G107: 100.8301578
A108: 3132.732846 | B108: 3 | E108: 793.7171545 | F108: 14.80112609 | G108: 132.1005883
A109: 2189.319634 | B109: 2 | E109: 714.0756598 | F109: 12.8979682 | G109: 121.2192087
A110: 1264.92362 | B110: 1 | E110: 584.0155782 | F110: 10.51680684 | G110: 110.5135444
A111: 2342.293262 | B111: 2 | E111: 793.824806 | F111: 12.01867991 | G111: 147.3389684
A112: 2432.683374 | B112: 5 | E112: 1391.539536 | F112: 13.66684024 | G112: 145.5000239
A113: 910.507756 | B113: 1 | E113: 974.6585925 | F113: 10.45721903 | G113: 113.9092391
A114: 793.6858547 | B114: 4 | E114: 1183.984738 | F114: 11.18558091 | G114: 105.4275515
A115: 876.9540436 | B115: 5 | E115: 1427.314526 | F115: 12.10669337 | G115: 106.916855
A116: 3085.139111 | B116: 3 | E116: 795.2680651 | F116: 14.14887058 | G116: 139.8590171
A117: 2182.667823 | B117: 5 | E117: 1359.65313 | F117: 13.24511324 | G117: 141.6680579
A118: 2721.424053 | B118: 6 | E118: 1217.851961 | F118: 14.61346639 | G118: 135.1191973
A119: 2538.017405 | B119: 2 | E119: 672.2853989 | F119: 13.8429503 | G119: 119.7097354
A120: 1383.891214 | B120: 6 | E120: 1401.109329 | F120: 14.02673484 | G120: 101.73614
A121: 485.3645281 | B121: 4 | E121: 1246.211662 | F121: 10.42999909 | G121: 105.1532028
A122: 1433.709155 | B122: 4 | E122: 1125.153806 | F122: 11.31054274 | G122: 133.7091022
A123: 999.2204545 | B123: 4 | E123: 1399.286548 | F123: 11.65923623 | G123: 118.7673937
A124: 843.238733 | B124: 4 | E124: 1085.477484 | F124: 10.20599033 | G124: 122.1646716
A125: 1641.019755 | B125: 4 | E125: 1227.596806 | F125: 11.33893241 | G125: 149.2234365
A126: 1602.57495 | B126: 4 | E126: 1337.294216 | F126: 11.74305142 | G126: 143.7646755
A127: 1003.071994 | B127: 4 | E127: 1076.228104 | F127: 10.50844771 | G127: 124.4711207
A128: 1088.447873 | B128: 1 | E128: 894.57948 | F128: 10.67739426 | G128: 115.1755533
A129: 1677.980633 | B129: 6 | E129: 1297.250395 | F129: 14.39183355 | G129: 104.4602268
A130: 1994.522591 | B130: 1 | E130: 695.918054 | F130: 10.96429724 | G130: 148.7458278
A131: 1647.790842 | B131: 2 | E131: 907.1195454 | F131: 13.23485372 | G131: 102.3058434
A132: 1566.189932 | B132: 5 | E132: 1357.832903 | F132: 12.65251595 | G132: 125.9961205
A133: 1704.988597 | B133: 6 | E133: 1431.739079 | F133: 14.27598451 | G133: 111.5058
A134: 978.00649 | B134: 5 | E134: 1294.408904 | F134: 12.12040369 | G134: 105.235862
A135: 1619.537701 | B135: 4 | E135: 1082.511456 | F135: 11.09603121 | G135: 146.1593897
A136: 1801.454822 | B136: 2 | E136: 828.6226177 | F136: 13.13931128 | G136: 106.5519826
A137: 1535.521291 | B137: 1 | E137: 876.5816519 | F137: 10.85239702 | G137: 135.9072782
A138: 1584.1617 | B138: 1 | E138: 542.0157701 | F138: 10.31732766 | G138: 131.8520072
A139: 1945.416258 | B139: 1 | E139: 645.4219151 | F139: 10.78886796 | G139: 147.57993
A140: 1314.801441 | B140: 4 | E140: 1360.800983 | F140: 11.07405908 | G140: 145.2523694
A141: 1819.97 | B141: 5 | E141: 1247.878803 | F141: 13.47610541 | G141: 119.3488558
A142: 1120.969034 | B142: 4 | E142: 1107.203639 | F142: 10.87190077 | G142: 125.1269309
A143: 854.2187144 | B143: 4 | E143: 1043.729224 | F143: 10.60997655 | G143: 111.5588187
A144: 3285.367076 | B144: 3 | E144: 509.4019721 | F144: 14.20247531 | G144: 135.9757132
A145: 1223.755008 | B145: 4 | E145: 1389.854865 | F145: 10.95675422 | G145: 144.6810785
A146: 3527.384493 | B146: 3 | E146: 576.1911282 | F146: 14.23821472 | G146: 146.4721464
A147: 2307.312988 | B147: 5 | E147: 1356.482357 | F147: 13.14620407 | G147: 148.3052681
A148: 2137.275549 | B148: 6 | E148: 1495.904504 | F148: 14.30757291 | G148: 128.7155839
A149: 510.3374506 | B149: 4 | E149: 1054.350054 | F149: 10.08970646 | G149: 101.3714213
A150: 3308.650432 | B150: 2 | E150: 749.5546805 | F150: 13.97097808 | G150: 149.1677212
A151: 548.6395013 | B151: 4 | E151: 1453.083351 | F151: 10.48131951 | G151: 120.4202393
A152: 1669.571953 | B152: 5 | E152: 1379.181128 | F152: 12.10170803 | G152: 141.5598505
A153: 2832.14834 | B153: 6 | E153: 1252.184472 | F153: 14.69289789 | G153: 138.9466698
A154: 1956.874812 | B154: 4 | E154: 1066.507247 | F154: 11.73163754 | G154: 148.099286
A155: 1293.059522 | B155: 4 | E155: 1427.778873 | F155: 11.62729151 | G155: 135.377762
A156: 2306.390674 | B156: 5 | E156: 1117.193074 | F156: 13.77400866 | G156: 128.6659273
A157: 2364.480734 | B157: 1 | E157: 601.7432251 | F157: 11.98073044 | G157: 140.1147084
A158: 2328.76878 | B158: 2 | E158: 864.8292109 | F158: 12.81655482 | G158: 134.7241726
A159: 2958.615998 | B159: 3 | E159: 983.8931793 | F159: 14.08125941 | G159: 143.1552527
A160: 3322.5373 | B160: 3 | E160: 517.5730049 | F160: 14.31906168 | G160: 135.8789461
A161: 2744.799743 | B161: 2 | E161: 563.1263423 | F161: 13.27312421 | G161: 131.8459849
A162: 1644.812039 | B162: 6 | E162: 1410.467791 | F162: 14.84114639 | G162: 102.3731243
A163: 1500.685394 | B163: 2 | E163: 946.1526726 | F163: 13.0453212 | G163: 100.2865054
A164: 578.8199762 | B164: 4 | E164: 1259.190796 | F164: 10.48466071 | G164: 110.5042401
A165: 2248.582003 | B165: 1 | E165: 825.3877704 | F165: 11.89094764 | G165: 147.0961478
A166: 1485.281938 | B166: 1 | E166: 857.947609 | F166: 10.49784312 | G166: 140.5410354
A167: 1769.463867 | B167: 6 | E167: 1491.859885 | F167: 14.4277638 | G167: 114.0685385
A168: 2332.124477 | B168: 6 | E168: 1241.621067 | F168: 14.59164037 | G168: 122.8602506
A169: 1215.386277 | B169: 4 | E169: 1380.534485 | F169: 11.46291536 | G169: 132.4474559
A170: 1565.522646 | B170: 5 | E170: 1373.571003 | F170: 12.98510503 | G170: 121.3705858
A171: 471.4553302 | B171: 4 | E171: 1422.667971 | F171: 11.14243769 | G171: 101.6829516
A172: 1669.704319 | B172: 5 | E172: 1063.78967 | F172: 12.88159945 | G172: 114.3627053
A173: 900.2317178 | B173: 4 | E173: 1248.328648 | F173: 11.36667115 | G173: 111.2796622
A174: 1751.386339 | B174: 1 | E174: 999.433909 | F174: 11.7682324 | G174: 134.0193807
A175: 2082.623452 | B175: 2 | E175: 757.2744072 | F175: 12.68141427 | G175: 121.9108022
A176: 2510.502219 | B176: 6 | E176: 1393.090004 | F176: 14.00161078 | G176: 142.9963231
A177: 2382.070901 | B177: 6 | E177: 1377.155397 | F177: 14.63520305 | G177: 128.6525076
A178: 2449.27435 | B178: 2 | E178: 673.4225355 | F178: 12.70372874 | G178: 133.6624769
A179: 2051.536064 | B179: 5 | E179: 1308.046686 | F179: 13.39181607 | G179: 132.0109763
A180: 1979.621649 | B180: 6 | E180: 1368.556642 | F180: 14.44830862 | G180: 116.8517342
A181: 1358.390935 | B181: 1 | E181: 885.1464055 | F181: 11.26768481 | G181: 118.0339145
A182: 1873.803977 | B182: 2 | E182: 844.219234 | F182: 12.40028976 | G182: 121.1114192
A183: 1429.697351 | B183: 5 | E183: 1332.880197 | F183: 12.13103401 | G183: 127.7446224
A184: 471.0809145 | B184: 4 | E184: 1472.672658 | F184: 10.41796842 | G184: 118.3001764
A185: 1484.705348 | B185: 2 | E185: 722.6080701 | F185: 12.20510936 | G185: 101.0192368
A186: 2942.717019 | B186: 2 | E186: 673.5274001 | F186: 13.71583754 | G186: 136.8136113
A187: 2331.113595 | B187: 2 | E187: 966.6188316 | F187: 12.69051463 | G187: 141.3971542
A188: 1652.024765 | B188: 5 | E188: 1223.91955 | F188: 12.55703176 | G188: 125.4902204
A189: 1021.063883 | B189: 4 | E189: 1444.240816 | F189: 11.90065464 | G189: 117.8042524
A190: 1778.114126 | B190: 2 | E190: 971.4117017 | F190: 12.05325249 | G190: 128.543177
A191: 991.723968 | B191: 4 | E191: 1117.708242 | F191: 10.41703582 | G191: 128.4057651
A192: 3450.403829 | B192: 3 | E192: 840.2095717 | F192: 14.90622248 | G192: 142.8209654
A193: 316.5555138 | B193: 4 | E193: 1334.651036 | F193: 10.20958163 | G193: 104.5151414
A194: 973.7046971 | B194: 1 | E194: 666.8284 | F194: 10.36990336 | G194: 100.7393591
A195: 2636.393944 | B195: 6 | E195: 1301.802793 | F195: 14.60010052 | G195: 135.2702474
A196: 935.6694681 | B196: 4 | E196: 1385.046013 | F196: 10.94857544 | G196: 128.644014
A197: 2464.012546 | B197: 3 | E197: 904.4486294 | F197: 14.10153986 | G197: 122.0386312
A198: 958.1098717 | B198: 4 | E198: 1074.950743 | F198: 10.24900655 | G198: 127.7185177
A199: 1097.228053 | B199: 4 | E199: 1171.868877 | F199: 10.92013119 | G199: 126.3869909
A200: 3407.152714 | B200: 3 | E200: 846.6292998 | F200: 14.76738458 | G200: 143.607658
... 9800 more rows
